Publisher Label,Publisher URI,"Directorate code","Directorate","Service code","Service","Revenue or capital code","Revenue capital","Cost centre","Cost centre description","Bvsub Category","Bvsub description","Bvsum code","Bvsum description","Account code","Account description","Transaction No","Period","Transaction Date","Amount","Classification code","Classification description","Supplier ID","Supplier description","Company registration number","Company registration number Uri","VAT registration number"
"London Borough of Redbridge","http://opendatacommunities.org/doc/london-borough-council/redbridge","9BNONBVO","Outside the BVACOP Objective Structure","9CNONBVO","Outside the BVACOP Objective Structure","REV","Revenue","R0026","Collection Fund","05-THIRD","Third Party Payments","05E","Government departments","6752","GLA Council Tax � Precepts","60508028","202309",10/12/2022 00:00:00,3597793.51,"48583","Local Government","REDACTED DATA","GREATER LONDON AUTHORITY","",,"GB743811731"
"London Borough of Redbridge","http://opendatacommunities.org/doc/london-borough-council/redbridge","5BGFHOUSING","General Fund Housing","5CHOMELESS","Homelessness","REV","Revenue","R5630","HAC Temporary Accomodation","05-THIRD","Third Party Payments","05H","Private contractors","6900","Nightly Let Plus Charges","3719939","202309",04/12/2022 00:00:00,0,"31230","Employment and Recruitment Agencies","REDACTED DATA","ACCESS UK LTD T/AS ADAM","2343760","http://opencorporates.com/companies/gb/2343760","GB 108 2213 56"
"London Borough of Redbridge","http://opendatacommunities.org/doc/london-borough-council/redbridge","5BGFHOUSING","General Fund Housing","5CHOMELESS","Homelessness","REV","Revenue","R5630","HAC Temporary Accomodation","05-THIRD","Third Party Payments","05H","Private contractors","6900","Nightly Let Plus Charges","3719939","202309",04/12/2022 00:00:00,1380,"31230","Employment and Recruitment Agencies","REDACTED DATA","ACCESS UK LTD T/AS ADAM","2343760","http://opencorporates.com/companies/gb/2343760","GB 108 2213 56"
"London Borough of Redbridge","http://opendatacommunities.org/doc/london-borough-council/redbridge","5BGFHOUSING","General Fund Housing","5CHOMELESS","Homelessness","REV","Revenue","R5630","HAC Temporary Accomodation","05-THIRD","Third Party Payments","05H","Private contractors","6900","Nightly Let Plus Charges","3719939","202309",04/12/2022 00:00:00,0,"31230","Employment and Recruitment Agencies","REDACTED DATA","ACCESS UK LTD T/AS ADAM","2343760","http://opencorporates.com/companies/gb/2343760","GB 108 2213 56"
"London Borough of Redbridge","http://opendatacommunities.org/doc/london-borough-council/redbridge","5BGFHOUSING","General Fund Housing","5CHOMELESS","Homelessness","REV","Revenue","R5630","HAC Temporary Accomodation","05-THIRD","Third Party Payments","05H","Private contractors","6900","Nightly Let Plus Charges","3719939","202309",04/12/2022 00:00:00,-1260,"31230","Employment and Recruitment Agencies","REDACTED DATA","ACCESS UK LTD T/AS ADAM","2343760","http://opencorporates.com/companies/gb/2343760","GB 108 2213 56"
"London Borough of Redbridge","http://opendatacommunities.org/doc/london-borough-council/redbridge","5BGFHOUSING","General Fund Housing","5CHOMELESS","Homelessness","REV","Revenue","R5630","HAC Temporary Accomodation","05-THIRD","Third Party Payments","05H","Private contractors","6900","Nightly Let Plus Charges","3719939","202309",04/12/2022 00:00:00,0,"31230","Employment and Recruitment Agencies","REDACTED DATA","ACCESS UK LTD T/AS ADAM","2343760","http://opencorporates.com/companies/gb/2343760","GB 108 2213 56"
"London Borough of Redbridge","http://opendatacommunities.org/doc/london-borough-council/redbridge","5BGFHOUSING","General Fund Housing","5CHOMELESS","Homelessness","REV","Revenue","R5630","HAC Temporary Accomodation","05-THIRD","Third Party Payments","05H","Private contractors","6900","Nightly Let Plus Charges","3719939","202309",04/12/2022 00:00:00,1617.9,"31230","Employment and Recruitment Agencies","REDACTED DATA","ACCESS UK LTD T/AS ADAM","2343760","http://opencorporates.com/companies/gb/2343760","GB 108 2213 56"
"London Borough of Redbridge","http://opendatacommunities.org/doc/london-borough-council/redbridge","5BGFHOUSING","General Fund Housing","5CHOMELESS","Homelessness","REV","Revenue","R5630","HAC Temporary Accomodation","05-THIRD","Third Party Payments","05H","Private contractors","6900","Nightly Let Plus Charges","3719939","202309",04/12/2022 00:00:00,1371.6,"31230","Employment and Recruitment Agencies","REDACTED DATA","ACCESS UK LTD T/AS ADAM","2343760","http://opencorporates.com/companies/gb/2343760","GB 108 2213 56"
"London Borough of Redbridge","http://opendatacommunities.org/doc/london-borough-council/redbridge","5BGFHOUSING","General Fund Housing","5CHOMELESS","Homelessness","REV","Revenue","R5630","HAC Temporary Accomodation","05-THIRD","Third Party Payments","05H","Private contractors","6900","Nightly Let Plus Charges","3719939","202309",04/12/2022 00:00:00,0,"31230","Employment and Recruitment Agencies","REDACTED DATA","ACCESS UK LTD T/AS ADAM","2343760","http://opencorporates.com/companies/gb/2343760","GB 108 2213 56"
"London Borough of Redbridge","http://opendatacommunities.org/doc/london-borough-council/redbridge","5BGFHOUSING","General Fund Housing","5CHOMELESS","Homelessness","REV","Revenue","R5630","HAC Temporary Accomodation","05-THIRD","Third Party Payments","05H","Private contractors","6900","Nightly Let Plus Charges","3719939","202309",04/12/2022 00:00:00,0,"31230","Employment and Recruitment Agencies","REDACTED DATA","ACCESS UK LTD T/AS ADAM","2343760","http://opencorporates.com/companies/gb/2343760","GB 108 2213 56"
"London Borough of Redbridge","http://opendatacommunities.org/doc/london-borough-council/redbridge","5BGFHOUSING","General Fund Housing","5CHOMELESS","Homelessness","REV","Revenue","R5630","HAC Temporary Accomodation","05-THIRD","Third Party Payments","05H","Private contractors","6900","Nightly Let Plus Charges","3719939","202309",04/12/2022 00:00:00,1200,"31230","Employment and Recruitment Agencies","REDACTED DATA","ACCESS UK LTD T/AS ADAM","2343760","http://opencorporates.com/companies/gb/2343760","GB 108 2213 56"
"London Borough of Redbridge","http://opendatacommunities.org/doc/london-borough-council/redbridge","5BGFHOUSING","General Fund Housing","5CHOMELESS","Homelessness","REV","Revenue","R5630","HAC Temporary Accomodation","05-THIRD","Third Party Payments","05H","Private contractors","6900","Nightly Let Plus Charges","3719939","202309",04/12/2022 00:00:00,855,"31230","Employment and Recruitment Agencies","REDACTED DATA","ACCESS UK LTD T/AS ADAM","2343760","http://opencorporates.com/companies/gb/2343760","GB 108 2213 56"
"London Borough of Redbridge","http://opendatacommunities.org/doc/london-borough-council/redbridge","5BGFHOUSING","General Fund Housing","5CHOMELESS","Homelessness","REV","Revenue","R5630","HAC Temporary Accomodation","05-THIRD","Third Party Payments","05H","Private contractors","6900","Nightly Let Plus Charges","3719939","202309",04/12/2022 00:00:00,855,"31230","Employment and Recruitment Agencies","REDACTED DATA","ACCESS UK LTD T/AS ADAM","2343760","http://opencorporates.com/companies/gb/2343760","GB 108 2213 56"
"London Borough of Redbridge","http://opendatacommunities.org/doc/london-borough-council/redbridge","5BGFHOUSING","General Fund Housing","5CHOMELESS","Homelessness","REV","Revenue","R5630","HAC Temporary Accomodation","05-THIRD","Third Party Payments","05H","Private contractors","6900","Nightly Let Plus Charges","3719939","202309",04/12/2022 00:00:00,0,"31230","Employment and Recruitment Agencies","REDACTED DATA","ACCESS UK LTD T/AS ADAM","2343760","http://opencorporates.com/companies/gb/2343760","GB 108 2213 56"
"London Borough of Redbridge","http://opendatacommunities.org/doc/london-borough-council/redbridge","5BGFHOUSING","General Fund Housing","5CHOMELESS","Homelessness","REV","Revenue","R5630","HAC Temporary Accomodation","05-THIRD","Third Party Payments","05H","Private contractors","6900","Nightly Let Plus Charges","3719939","202309",04/12/2022 00:00:00,0,"31230","Employment and Recruitment Agencies","REDACTED DATA","ACCESS UK LTD T/AS ADAM","2343760","http://opencorporates.com/companies/gb/2343760","GB 108 2213 56"
"London Borough of Redbridge","http://opendatacommunities.org/doc/london-borough-council/redbridge","5BGFHOUSING","General Fund Housing","5CHOMELESS","Homelessness","REV","Revenue","R5630","HAC Temporary Accomodation","05-THIRD","Third Party Payments","05H","Private contractors","6900","Nightly Let Plus Charges","3719939","202309",04/12/2022 00:00:00,0,"31230","Employment and Recruitment Agencies","REDACTED DATA","ACCESS UK LTD T/AS ADAM","2343760","http://opencorporates.com/companies/gb/2343760","GB 108 2213 56"
"London Borough of Redbridge","http://opendatacommunities.org/doc/london-borough-council/redbridge","5BGFHOUSING","General Fund Housing","5CHOMELESS","Homelessness","REV","Revenue","R5630","HAC Temporary Accomodation","05-THIRD","Third Party Payments","05H","Private contractors","6900","Nightly Let Plus Charges","3719939","202309",04/12/2022 00:00:00,855,"31230","Employment and Recruitment Agencies","REDACTED DATA","ACCESS UK LTD T/AS ADAM","2343760","http://opencorporates.com/companies/gb/2343760","GB 108 2213 56"
"London Borough of Redbridge","http://opendatacommunities.org/doc/london-borough-council/redbridge","5BGFHOUSING","General Fund Housing","5CHOMELESS","Homelessness","REV","Revenue","R5630","HAC Temporary Accomodation","05-THIRD","Third Party Payments","05H","Private contractors","6900","Nightly Let Plus Charges","3719939","202309",04/12/2022 00:00:00,855,"31230","Employment and Recruitment Agencies","REDACTED DATA","ACCESS UK LTD T/AS ADAM","2343760","http://opencorporates.com/companies/gb/2343760","GB 108 2213 56"
"London Borough of Redbridge","http://opendatacommunities.org/doc/london-borough-council/redbridge","5BGFHOUSING","General Fund Housing","5CHOMELESS","Homelessness","REV","Revenue","R5630","HAC Temporary Accomodation","05-THIRD","Third Party Payments","05H","Private contractors","6900","Nightly Let Plus Charges","3719939","202309",04/12/2022 00:00:00,504,"31230","Employment and Recruitment Agencies","REDACTED DATA","ACCESS UK LTD T/AS ADAM","2343760","http://opencorporates.com/companies/gb/2343760","GB 108 2213 56"
"London Borough of Redbridge","http://opendatacommunities.org/doc/london-borough-council/redbridge","5BGFHOUSING","General Fund Housing","5CHOMELESS","Homelessness","REV","Revenue","R5630","HAC Temporary Accomodation","05-THIRD","Third Party Payments","05H","Private contractors","6900","Nightly Let Plus Charges","3719939","202309",04/12/2022 00:00:00,855,"31230","Employment and Recruitment Agencies","REDACTED DATA","ACCESS UK LTD T/AS ADAM","2343760","http://opencorporates.com/companies/gb/2343760","GB 108 2213 56"
"London Borough of Redbridge","http://opendatacommunities.org/doc/london-borough-council/redbridge","5BGFHOUSING","General Fund Housing","5CHOMELESS","Homelessness","REV","Revenue","R5630","HAC Temporary Accomodation","05-THIRD","Third Party Payments","05H","Private contractors","6900","Nightly Let Plus Charges","3719939","202309",04/12/2022 00:00:00,0,"31230","Employment and Recruitment Agencies","REDACTED DATA","ACCESS UK LTD T/AS ADAM","2343760","http://opencorporates.com/companies/gb/2343760","GB 108 2213 56"
"London Borough of Redbridge","http://opendatacommunities.org/doc/london-borough-council/redbridge","5BGFHOUSING","General Fund Housing","5CHOMELESS","Homelessness","REV","Revenue","R5630","HAC Temporary Accomodation","05-THIRD","Third Party Payments","05H","Private contractors","6900","Nightly Let Plus Charges","3719939","202309",04/12/2022 00:00:00,1260,"31230","Employment and Recruitment Agencies","REDACTED DATA","ACCESS UK LTD T/AS ADAM","2343760","http://opencorporates.com/companies/gb/2343760","GB 108 2213 56"
"London Borough of Redbridge","http://opendatacommunities.org/doc/london-borough-council/redbridge","5BGFHOUSING","General Fund Housing","5CHOMELESS","Homelessness","REV","Revenue","R5630","HAC Temporary Accomodation","05-THIRD","Third Party Payments","05H","Private contractors","6900","Nightly Let Plus Charges","3719939","202309",04/12/2022 00:00:00,0,"31230","Employment and Recruitment Agencies","REDACTED DATA","ACCESS UK LTD T/AS ADAM","2343760","http://opencorporates.com/companies/gb/2343760","GB 108 2213 56"
"London Borough of Redbridge","http://opendatacommunities.org/doc/london-borough-council/redbridge","5BGFHOUSING","General Fund Housing","5CHOMELESS","Homelessness","REV","Revenue","R5630","HAC Temporary Accomodation","05-THIRD","Third Party Payments","05H","Private contractors","6900","Nightly Let Plus Charges","3719939","202309",04/12/2022 00:00:00,1417.5,"31230","Employment and Recruitment Agencies","REDACTED DATA","ACCESS UK LTD T/AS ADAM","2343760","http://opencorporates.com/companies/gb/2343760","GB 108 2213 56"
"London Borough of Redbridge","http://opendatacommunities.org/doc/london-borough-council/redbridge","5BGFHOUSING","General Fund Housing","5CHOMELESS","Homelessness","REV","Revenue","R5630","HAC Temporary Accomodation","05-THIRD","Third Party Payments","05H","Private contractors","6900","Nightly Let Plus Charges","3719939","202309",04/12/2022 00:00:00,-1302,"31230","Employment and Recruitment Agencies","REDACTED DATA","ACCESS UK LTD T/AS ADAM","2343760","http://opencorporates.com/companies/gb/2343760","GB 108 2213 56"
"London Borough of Redbridge","http://opendatacommunities.org/doc/london-borough-council/redbridge","5BGFHOUSING","General Fund Housing","5CHOMELESS","Homelessness","REV","Revenue","R5630","HAC Temporary Accomodation","05-THIRD","Third Party Payments","05H","Private contractors","6900","Nightly Let Plus Charges","3719939","202309",04/12/2022 00:00:00,0,"31230","Employment and Recruitment Agencies","REDACTED DATA","ACCESS UK LTD T/AS ADAM","2343760","http://opencorporates.com/companies/gb/2343760","GB 108 2213 56"
"London Borough of Redbridge","http://opendatacommunities.org/doc/london-borough-council/redbridge","5BGFHOUSING","General Fund Housing","5CHOMELESS","Homelessness","REV","Revenue","R5630","HAC Temporary Accomodation","05-THIRD","Third Party Payments","05H","Private contractors","6900","Nightly Let Plus Charges","3719939","202309",04/12/2022 00:00:00,855,"31230","Employment and Recruitment Agencies","REDACTED DATA","ACCESS UK LTD T/AS ADAM","2343760","http://opencorporates.com/companies/gb/2343760","GB 108 2213 56"
"London Borough of Redbridge","http://opendatacommunities.org/doc/london-borough-council/redbridge","5BGFHOUSING","General Fund Housing","5CHOMELESS","Homelessness","REV","Revenue","R5630","HAC Temporary Accomodation","05-THIRD","Third Party Payments","05H","Private contractors","6900","Nightly Let Plus Charges","3719939","202309",04/12/2022 00:00:00,0,"31230","Employment and Recruitment Agencies","REDACTED DATA","ACCESS UK LTD T/AS ADAM","2343760","http://opencorporates.com/companies/gb/2343760","GB 108 2213 56"
"London Borough of Redbridge","http://opendatacommunities.org/doc/london-borough-council/redbridge","5BGFHOUSING","General Fund Housing","5CHOMELESS","Homelessness","REV","Revenue","R5630","HAC Temporary Accomodation","05-THIRD","Third Party Payments","05H","Private contractors","6900","Nightly Let Plus Charges","3719939","202309",04/12/2022 00:00:00,0,"31230","Employment and Recruitment Agencies","REDACTED DATA","ACCESS UK LTD T/AS ADAM","2343760","http://opencorporates.com/companies/gb/2343760","GB 108 2213 56"
"London Borough of Redbridge","http://opendatacommunities.org/doc/london-borough-council/redbridge","5BGFHOUSING","General Fund Housing","5CHOMELESS","Homelessness","REV","Revenue","R5630","HAC Temporary Accomodation","05-THIRD","Third Party Payments","05H","Private contractors","6900","Nightly Let Plus Charges","3719939","202309",04/12/2022 00:00:00,1818,"31230","Employment and Recruitment Agencies","REDACTED DATA","ACCESS UK LTD T/AS ADAM","2343760","http://opencorporates.com/companies/gb/2343760","GB 108 2213 56"
"London Borough of Redbridge","http://opendatacommunities.org/doc/london-borough-council/redbridge","5BGFHOUSING","General Fund Housing","5CHOMELESS","Homelessness","REV","Revenue","R5630","HAC Temporary Accomodation","05-THIRD","Third Party Payments","05H","Private contractors","6900","Nightly Let Plus Charges","3719939","202309",04/12/2022 00:00:00,855,"31230","Employment and Recruitment Agencies","REDACTED DATA","ACCESS UK LTD T/AS ADAM","2343760","http://opencorporates.com/companies/gb/2343760","GB 108 2213 56"
"London Borough of Redbridge","http://opendatacommunities.org/doc/london-borough-council/redbridge","5BGFHOUSING","General Fund Housing","5CHOMELESS","Homelessness","REV","Revenue","R5630","HAC Temporary Accomodation","05-THIRD","Third Party Payments","05H","Private contractors","6900","Nightly Let Plus Charges","3719939","202309",04/12/2022 00:00:00,1260,"31230","Employment and Recruitment Agencies","REDACTED DATA","ACCESS UK LTD T/AS ADAM","2343760","http://opencorporates.com/companies/gb/2343760","GB 108 2213 56"
"London Borough of Redbridge","http://opendatacommunities.org/doc/london-borough-council/redbridge","5BGFHOUSING","General Fund Housing","5CHOMELESS","Homelessness","REV","Revenue","R5630","HAC Temporary Accomodation","05-THIRD","Third Party Payments","05H","Private contractors","6900","Nightly Let Plus Charges","3719939","202309",04/12/2022 00:00:00,0,"31230","Employment and Recruitment Agencies","REDACTED DATA","ACCESS UK LTD T/AS ADAM","2343760","http://opencorporates.com/companies/gb/2343760","GB 108 2213 56"
"London Borough of Redbridge","http://opendatacommunities.org/doc/london-borough-council/redbridge","5BGFHOUSING","General Fund Housing","5CHOMELESS","Homelessness","REV","Revenue","R5630","HAC Temporary Accomodation","05-THIRD","Third Party Payments","05H","Private contractors","6900","Nightly Let Plus Charges","3719939","202309",04/12/2022 00:00:00,0,"31230","Employment and Recruitment Agencies","REDACTED DATA","ACCESS UK LTD T/AS ADAM","2343760","http://opencorporates.com/companies/gb/2343760","GB 108 2213 56"
"London Borough of Redbridge","http://opendatacommunities.org/doc/london-borough-council/redbridge","5BGFHOUSING","General Fund Housing","5CHOMELESS","Homelessness","REV","Revenue","R5630","HAC Temporary Accomodation","05-THIRD","Third Party Payments","05H","Private contractors","6900","Nightly Let Plus Charges","3719939","202309",04/12/2022 00:00:00,1521.3,"31230","Employment and Recruitment Agencies","REDACTED DATA","ACCESS UK LTD T/AS ADAM","2343760","http://opencorporates.com/companies/gb/2343760","GB 108 2213 56"
"London Borough of Redbridge","http://opendatacommunities.org/doc/london-borough-council/redbridge","5BGFHOUSING","General Fund Housing","5CHOMELESS","Homelessness","REV","Revenue","R5630","HAC Temporary Accomodation","05-THIRD","Third Party Payments","05H","Private contractors","6900","Nightly Let Plus Charges","3719939","202309",04/12/2022 00:00:00,0,"31230","Employment and Recruitment Agencies","REDACTED DATA","ACCESS UK LTD T/AS ADAM","2343760","http://opencorporates.com/companies/gb/2343760","GB 108 2213 56"
"London Borough of Redbridge","http://opendatacommunities.org/doc/london-borough-council/redbridge","5BGFHOUSING","General Fund Housing","5CHOMELESS","Homelessness","REV","Revenue","R5630","HAC Temporary Accomodation","05-THIRD","Third Party Payments","05H","Private contractors","6900","Nightly Let Plus Charges","3719939","202309",04/12/2022 00:00:00,0,"31230","Employment and Recruitment Agencies","REDACTED DATA","ACCESS UK LTD T/AS ADAM","2343760","http://opencorporates.com/companies/gb/2343760","GB 108 2213 56"
"London Borough of Redbridge","http://opendatacommunities.org/doc/london-borough-council/redbridge","5BGFHOUSING","General Fund Housing","5CHOMELESS","Homelessness","REV","Revenue","R5630","HAC Temporary Accomodation","05-THIRD","Third Party Payments","05H","Private contractors","6900","Nightly Let Plus Charges","3719939","202309",04/12/2022 00:00:00,855,"31230","Employment and Recruitment Agencies","REDACTED DATA","ACCESS UK LTD T/AS ADAM","2343760","http://opencorporates.com/companies/gb/2343760","GB 108 2213 56"
"London Borough of Redbridge","http://opendatacommunities.org/doc/london-borough-council/redbridge","5BGFHOUSING","General Fund Housing","5CHOMELESS","Homelessness","REV","Revenue","R5630","HAC Temporary Accomodation","05-THIRD","Third Party Payments","05H","Private contractors","6900","Nightly Let Plus Charges","3719939","202309",04/12/2022 00:00:00,772.2,"31230","Employment and Recruitment Agencies","REDACTED DATA","ACCESS UK LTD T/AS ADAM","2343760","http://opencorporates.com/companies/gb/2343760","GB 108 2213 56"
"London Borough of Redbridge","http://opendatacommunities.org/doc/london-borough-council/redbridge","5BGFHOUSING","General Fund Housing","5CHOMELESS","Homelessness","REV","Revenue","R5630","HAC Temporary Accomodation","05-THIRD","Third Party Payments","05H","Private contractors","6900","Nightly Let Plus Charges","3719939","202309",04/12/2022 00:00:00,990,"31230","Employment and Recruitment Agencies","REDACTED DATA","ACCESS UK LTD T/AS ADAM","2343760","http://opencorporates.com/companies/gb/2343760","GB 108 2213 56"
"London Borough of Redbridge","http://opendatacommunities.org/doc/london-borough-council/redbridge","5BGFHOUSING","General Fund Housing","5CHOMELESS","Homelessness","REV","Revenue","R5630","HAC Temporary Accomodation","05-THIRD","Third Party Payments","05H","Private contractors","6900","Nightly Let Plus Charges","3719939","202309",04/12/2022 00:00:00,0,"31230","Employment and Recruitment Agencies","REDACTED DATA","ACCESS UK LTD T/AS ADAM","2343760","http://opencorporates.com/companies/gb/2343760","GB 108 2213 56"
"London Borough of Redbridge","http://opendatacommunities.org/doc/london-borough-council/redbridge","5BGFHOUSING","General Fund Housing","5CHOMELESS","Homelessness","REV","Revenue","R5630","HAC Temporary Accomodation","05-THIRD","Third Party Payments","05H","Private contractors","6900","Nightly Let Plus Charges","3719939","202309",04/12/2022 00:00:00,0,"31230","Employment and Recruitment Agencies","REDACTED DATA","ACCESS UK LTD T/AS ADAM","2343760","http://opencorporates.com/companies/gb/2343760","GB 108 2213 56"
"London Borough of Redbridge","http://opendatacommunities.org/doc/london-borough-council/redbridge","5BGFHOUSING","General Fund Housing","5CHOMELESS","Homelessness","REV","Revenue","R5630","HAC Temporary Accomodation","05-THIRD","Third Party Payments","05H","Private contractors","6900","Nightly Let Plus Charges","3719939","202309",04/12/2022 00:00:00,0,"31230","Employment and Recruitment Agencies","REDACTED DATA","ACCESS UK LTD T/AS ADAM","2343760","http://opencorporates.com/companies/gb/2343760","GB 108 2213 56"
"London Borough of Redbridge","http://opendatacommunities.org/doc/london-borough-council/redbridge","5BGFHOUSING","General Fund Housing","5CHOMELESS","Homelessness","REV","Revenue","R5630","HAC Temporary Accomodation","05-THIRD","Third Party Payments","05H","Private contractors","6900","Nightly Let Plus Charges","3719939","202309",04/12/2022 00:00:00,855,"31230","Employment and Recruitment Agencies","REDACTED DATA","ACCESS UK LTD T/AS ADAM","2343760","http://opencorporates.com/companies/gb/2343760","GB 108 2213 56"
"London Borough of Redbridge","http://opendatacommunities.org/doc/london-borough-council/redbridge","5BGFHOUSING","General Fund Housing","5CHOMELESS","Homelessness","REV","Revenue","R5630","HAC Temporary Accomodation","05-THIRD","Third Party Payments","05H","Private contractors","6900","Nightly Let Plus Charges","3719939","202309",04/12/2022 00:00:00,927.9,"31230","Employment and Recruitment Agencies","REDACTED DATA","ACCESS UK LTD T/AS ADAM","2343760","http://opencorporates.com/companies/gb/2343760","GB 108 2213 56"
"London Borough of Redbridge","http://opendatacommunities.org/doc/london-borough-council/redbridge","5BGFHOUSING","General Fund Housing","5CHOMELESS","Homelessness","REV","Revenue","R5630","HAC Temporary Accomodation","05-THIRD","Third Party Payments","05H","Private contractors","6900","Nightly Let Plus Charges","3719939","202309",04/12/2022 00:00:00,0,"31230","Employment and Recruitment Agencies","REDACTED DATA","ACCESS UK LTD T/AS ADAM","2343760","http://opencorporates.com/companies/gb/2343760","GB 108 2213 56"
"London Borough of Redbridge","http://opendatacommunities.org/doc/london-borough-council/redbridge","5BGFHOUSING","General Fund Housing","5CHOMELESS","Homelessness","REV","Revenue","R5630","HAC Temporary Accomodation","05-THIRD","Third Party Payments","05H","Private contractors","6900","Nightly Let Plus Charges","3719939","202309",04/12/2022 00:00:00,1230,"31230","Employment and Recruitment Agencies","REDACTED DATA","ACCESS UK LTD T/AS ADAM","2343760","http://opencorporates.com/companies/gb/2343760","GB 108 2213 56"
"London Borough of Redbridge","http://opendatacommunities.org/doc/london-borough-council/redbridge","5BGFHOUSING","General Fund Housing","5CHOMELESS","Homelessness","REV","Revenue","R5630","HAC Temporary Accomodation","05-THIRD","Third Party Payments","05H","Private contractors","6900","Nightly Let Plus Charges","3719939","202309",04/12/2022 00:00:00,0,"31230","Employment and Recruitment Agencies","REDACTED DATA","ACCESS UK LTD T/AS ADAM","2343760","http://opencorporates.com/companies/gb/2343760","GB 108 2213 56"
"London Borough of Redbridge","http://opendatacommunities.org/doc/london-borough-council/redbridge","5BGFHOUSING","General Fund Housing","5CHOMELESS","Homelessness","REV","Revenue","R5630","HAC Temporary Accomodation","05-THIRD","Third Party Payments","05H","Private contractors","6900","Nightly Let Plus Charges","3719939","202309",04/12/2022 00:00:00,0,"31230","Employment and Recruitment Agencies","REDACTED DATA","ACCESS UK LTD T/AS ADAM","2343760","http://opencorporates.com/companies/gb/2343760","GB 108 2213 56"
"London Borough of Redbridge","http://opendatacommunities.org/doc/london-borough-council/redbridge","5BGFHOUSING","General Fund Housing","5CHOMELESS","Homelessness","REV","Revenue","R5630","HAC Temporary Accomodation","05-THIRD","Third Party Payments","05H","Private contractors","6900","Nightly Let Plus Charges","3719939","202309",04/12/2022 00:00:00,772.2,"31230","Employment and Recruitment Agencies","REDACTED DATA","ACCESS UK LTD T/AS ADAM","2343760","http://opencorporates.com/companies/gb/2343760","GB 108 2213 56"
"London Borough of Redbridge","http://opendatacommunities.org/doc/london-borough-council/redbridge","5BGFHOUSING","General Fund Housing","5CHOMELESS","Homelessness","REV","Revenue","R5630","HAC Temporary Accomodation","05-THIRD","Third Party Payments","05H","Private contractors","6900","Nightly Let Plus Charges","3719939","202309",04/12/2022 00:00:00,0,"31230","Employment and Recruitment Agencies","REDACTED DATA","ACCESS UK LTD T/AS ADAM","2343760","http://opencorporates.com/companies/gb/2343760","GB 108 2213 56"
"London Borough of Redbridge","http://opendatacommunities.org/doc/london-borough-council/redbridge","5BGFHOUSING","General Fund Housing","5CHOMELESS","Homelessness","REV","Revenue","R5630","HAC Temporary Accomodation","05-THIRD","Third Party Payments","05H","Private contractors","6900","Nightly Let Plus Charges","3719939","202309",04/12/2022 00:00:00,927.9,"31230","Employment and Recruitment Agencies","REDACTED DATA","ACCESS UK LTD T/AS ADAM","2343760","http://opencorporates.com/companies/gb/2343760","GB 108 2213 56"
"London Borough of Redbridge","http://opendatacommunities.org/doc/london-borough-council/redbridge","5BGFHOUSING","General Fund Housing","5CHOMELESS","Homelessness","REV","Revenue","R5630","HAC Temporary Accomodation","05-THIRD","Third Party Payments","05H","Private contractors","6900","Nightly Let Plus Charges","3719939","202309",04/12/2022 00:00:00,772.2,"31230","Employment and Recruitment Agencies","REDACTED DATA","ACCESS UK LTD T/AS ADAM","2343760","http://opencorporates.com/companies/gb/2343760","GB 108 2213 56"
"London Borough of Redbridge","http://opendatacommunities.org/doc/london-borough-council/redbridge","5BGFHOUSING","General Fund Housing","5CHOMELESS","Homelessness","REV","Revenue","R5630","HAC Temporary Accomodation","05-THIRD","Third Party Payments","05H","Private contractors","6900","Nightly Let Plus Charges","3719939","202309",04/12/2022 00:00:00,855,"31230","Employment and Recruitment Agencies","REDACTED DATA","ACCESS UK LTD T/AS ADAM","2343760","http://opencorporates.com/companies/gb/2343760","GB 108 2213 56"
"London Borough of Redbridge","http://opendatacommunities.org/doc/london-borough-council/redbridge","5BGFHOUSING","General Fund Housing","5CHOMELESS","Homelessness","REV","Revenue","R5630","HAC Temporary Accomodation","05-THIRD","Third Party Payments","05H","Private contractors","6900","Nightly Let Plus Charges","3719939","202309",04/12/2022 00:00:00,0,"31230","Employment and Recruitment Agencies","REDACTED DATA","ACCESS UK LTD T/AS ADAM","2343760","http://opencorporates.com/companies/gb/2343760","GB 108 2213 56"
"London Borough of Redbridge","http://opendatacommunities.org/doc/london-borough-council/redbridge","5BGFHOUSING","General Fund Housing","5CHOMELESS","Homelessness","REV","Revenue","R5630","HAC Temporary Accomodation","05-THIRD","Third Party Payments","05H","Private contractors","6900","Nightly Let Plus Charges","3719939","202309",04/12/2022 00:00:00,855,"31230","Employment and Recruitment Agencies","REDACTED DATA","ACCESS UK LTD T/AS ADAM","2343760","http://opencorporates.com/companies/gb/2343760","GB 108 2213 56"
"London Borough of Redbridge","http://opendatacommunities.org/doc/london-borough-council/redbridge","5BGFHOUSING","General Fund Housing","5CHOMELESS","Homelessness","REV","Revenue","R5630","HAC Temporary Accomodation","05-THIRD","Third Party Payments","05H","Private contractors","6900","Nightly Let Plus Charges","3719939","202309",04/12/2022 00:00:00,0,"31230","Employment and Recruitment Agencies","REDACTED DATA","ACCESS UK LTD T/AS ADAM","2343760","http://opencorporates.com/companies/gb/2343760","GB 108 2213 56"
"London Borough of Redbridge","http://opendatacommunities.org/doc/london-borough-council/redbridge","5BGFHOUSING","General Fund Housing","5CHOMELESS","Homelessness","REV","Revenue","R5630","HAC Temporary Accomodation","05-THIRD","Third Party Payments","05H","Private contractors","6900","Nightly Let Plus Charges","3719939","202309",04/12/2022 00:00:00,0,"31230","Employment and Recruitment Agencies","REDACTED DATA","ACCESS UK LTD T/AS ADAM","2343760","http://opencorporates.com/companies/gb/2343760","GB 108 2213 56"
"London Borough of Redbridge","http://opendatacommunities.org/doc/london-borough-council/redbridge","5BGFHOUSING","General Fund Housing","5CHOMELESS","Homelessness","REV","Revenue","R5630","HAC Temporary Accomodation","05-THIRD","Third Party Payments","05H","Private contractors","6900","Nightly Let Plus Charges","3719939","202309",04/12/2022 00:00:00,990,"31230","Employment and Recruitment Agencies","REDACTED DATA","ACCESS UK LTD T/AS ADAM","2343760","http://opencorporates.com/companies/gb/2343760","GB 108 2213 56"
"London Borough of Redbridge","http://opendatacommunities.org/doc/london-borough-council/redbridge","5BGFHOUSING","General Fund Housing","5CHOMELESS","Homelessness","REV","Revenue","R5630","HAC Temporary Accomodation","05-THIRD","Third Party Payments","05H","Private contractors","6900","Nightly Let Plus Charges","3719939","202309",04/12/2022 00:00:00,0,"31230","Employment and Recruitment Agencies","REDACTED DATA","ACCESS UK LTD T/AS ADAM","2343760","http://opencorporates.com/companies/gb/2343760","GB 108 2213 56"
"London Borough of Redbridge","http://opendatacommunities.org/doc/london-borough-council/redbridge","5BGFHOUSING","General Fund Housing","5CHOMELESS","Homelessness","REV","Revenue","R5630","HAC Temporary Accomodation","05-THIRD","Third Party Payments","05H","Private contractors","6900","Nightly Let Plus Charges","3719939","202309",04/12/2022 00:00:00,1607.1,"31230","Employment and Recruitment Agencies","REDACTED DATA","ACCESS UK LTD T/AS ADAM","2343760","http://opencorporates.com/companies/gb/2343760","GB 108 2213 56"
"London Borough of Redbridge","http://opendatacommunities.org/doc/london-borough-council/redbridge","5BGFHOUSING","General Fund Housing","5CHOMELESS","Homelessness","REV","Revenue","R5630","HAC Temporary Accomodation","05-THIRD","Third Party Payments","05H","Private contractors","6900","Nightly Let Plus Charges","3719939","202309",04/12/2022 00:00:00,0,"31230","Employment and Recruitment Agencies","REDACTED DATA","ACCESS UK LTD T/AS ADAM","2343760","http://opencorporates.com/companies/gb/2343760","GB 108 2213 56"
"London Borough of Redbridge","http://opendatacommunities.org/doc/london-borough-council/redbridge","5BGFHOUSING","General Fund Housing","5CHOMELESS","Homelessness","REV","Revenue","R5630","HAC Temporary Accomodation","05-THIRD","Third Party Payments","05H","Private contractors","6900","Nightly Let Plus Charges","3719939","202309",04/12/2022 00:00:00,855,"31230","Employment and Recruitment Agencies","REDACTED DATA","ACCESS UK LTD T/AS ADAM","2343760","http://opencorporates.com/companies/gb/2343760","GB 108 2213 56"
"London Borough of Redbridge","http://opendatacommunities.org/doc/london-borough-council/redbridge","5BGFHOUSING","General Fund Housing","5CHOMELESS","Homelessness","REV","Revenue","R5630","HAC Temporary Accomodation","05-THIRD","Third Party Payments","05H","Private contractors","6900","Nightly Let Plus Charges","3719939","202309",04/12/2022 00:00:00,0,"31230","Employment and Recruitment Agencies","REDACTED DATA","ACCESS UK LTD T/AS ADAM","2343760","http://opencorporates.com/companies/gb/2343760","GB 108 2213 56"
"London Borough of Redbridge","http://opendatacommunities.org/doc/london-borough-council/redbridge","5BGFHOUSING","General Fund Housing","5CHOMELESS","Homelessness","REV","Revenue","R5630","HAC Temporary Accomodation","05-THIRD","Third Party Payments","05H","Private contractors","6900","Nightly Let Plus Charges","3719939","202309",04/12/2022 00:00:00,1500,"31230","Employment and Recruitment Agencies","REDACTED DATA","ACCESS UK LTD T/AS ADAM","2343760","http://opencorporates.com/companies/gb/2343760","GB 108 2213 56"
"London Borough of Redbridge","http://opendatacommunities.org/doc/london-borough-council/redbridge","5BGFHOUSING","General Fund Housing","5CHOMELESS","Homelessness","REV","Revenue","R5630","HAC Temporary Accomodation","05-THIRD","Third Party Payments","05H","Private contractors","6900","Nightly Let Plus Charges","3719939","202309",04/12/2022 00:00:00,0,"31230","Employment and Recruitment Agencies","REDACTED DATA","ACCESS UK LTD T/AS ADAM","2343760","http://opencorporates.com/companies/gb/2343760","GB 108 2213 56"
"London Borough of Redbridge","http://opendatacommunities.org/doc/london-borough-council/redbridge","6BSOCIALSERV","Social Services","6CCHILLOOKED","Children Looked After","REV","Revenue","R2117","SEN and CD Care and Support Packages Social Care","05-THIRD","Third Party Payments","05H","Private contractors","6902","Respite Care","60507852","202309",07/11/2022 00:00:00,29292.24,"17580","Childcare Services","REDACTED DATA","Willcob Care Ltd","10721518","http://opencorporates.com/companies/gb/10721518","404997274"
"London Borough of Redbridge","http://opendatacommunities.org/doc/london-borough-council/redbridge","9BNONBVO","Outside the BVACOP Objective Structure","9CNONBVO","Outside the BVACOP Objective Structure","REV","Revenue","R5031","Central Heating HRA","02-PREMISES","Premises","02E","Water services","4005","Heating and Hot Water","3719929","202309",08/12/2022 00:00:00,3913.42,"39564","Gas Companies","REDACTED DATA","KENT COUNTY COUNCIL (GAS & ELECTRIC)","",,"204269191"
"London Borough of Redbridge","http://opendatacommunities.org/doc/london-borough-council/redbridge","9BNONBVO","Outside the BVACOP Objective Structure","9CNONBVO","Outside the BVACOP Objective Structure","REV","Revenue","R5031","Central Heating HRA","02-PREMISES","Premises","02E","Water services","4005","Heating and Hot Water","3719929","202309",08/12/2022 00:00:00,5382.5,"39564","Gas Companies","REDACTED DATA","KENT COUNTY COUNCIL (GAS & ELECTRIC)","",,"204269191"
"London Borough of Redbridge","http://opendatacommunities.org/doc/london-borough-council/redbridge","9BNONBVO","Outside the BVACOP Objective Structure","9CNONBVO","Outside the BVACOP Objective Structure","REV","Revenue","R5031","Central Heating HRA","02-PREMISES","Premises","02E","Water services","4005","Heating and Hot Water","3719929","202309",08/12/2022 00:00:00,4278.9,"39564","Gas Companies","REDACTED DATA","KENT COUNTY COUNCIL (GAS & ELECTRIC)","",,"204269191"
"London Borough of Redbridge","http://opendatacommunities.org/doc/london-borough-council/redbridge","9BNONBVO","Outside the BVACOP Objective Structure","9CNONBVO","Outside the BVACOP Objective Structure","REV","Revenue","R5031","Central Heating HRA","02-PREMISES","Premises","02E","Water services","4005","Heating and Hot Water","3719929","202309",08/12/2022 00:00:00,932.37,"39564","Gas Companies","REDACTED DATA","KENT COUNTY COUNCIL (GAS & ELECTRIC)","",,"204269191"
"London Borough of Redbridge","http://opendatacommunities.org/doc/london-borough-council/redbridge","9BNONBVO","Outside the BVACOP Objective Structure","9CNONBVO","Outside the BVACOP Objective Structure","REV","Revenue","R5031","Central Heating HRA","02-PREMISES","Premises","02E","Water services","4005","Heating and Hot Water","3719929","202309",08/12/2022 00:00:00,654.11,"39564","Gas Companies","REDACTED DATA","KENT COUNTY COUNCIL (GAS & ELECTRIC)","",,"204269191"
"London Borough of Redbridge","http://opendatacommunities.org/doc/london-borough-council/redbridge","9BNONBVO","Outside the BVACOP Objective Structure","9CNONBVO","Outside the BVACOP Objective Structure","REV","Revenue","R5031","Central Heating HRA","02-PREMISES","Premises","02E","Water services","4005","Heating and Hot Water","3719929","202309",08/12/2022 00:00:00,762.6,"39564","Gas Companies","REDACTED DATA","KENT COUNTY COUNCIL (GAS & ELECTRIC)","",,"204269191"
"London Borough of Redbridge","http://opendatacommunities.org/doc/london-borough-council/redbridge","9BNONBVO","Outside the BVACOP Objective Structure","9CNONBVO","Outside the BVACOP Objective Structure","REV","Revenue","R5031","Central Heating HRA","02-PREMISES","Premises","02E","Water services","4005","Heating and Hot Water","3719929","202309",08/12/2022 00:00:00,612.76,"39564","Gas Companies","REDACTED DATA","KENT COUNTY COUNCIL (GAS & ELECTRIC)","",,"204269191"
"London Borough of Redbridge","http://opendatacommunities.org/doc/london-borough-council/redbridge","9BNONBVO","Outside the BVACOP Objective Structure","9CNONBVO","Outside the BVACOP Objective Structure","REV","Revenue","R5031","Central Heating HRA","02-PREMISES","Premises","02E","Water services","4005","Heating and Hot Water","3719929","202309",08/12/2022 00:00:00,542.2,"39564","Gas Companies","REDACTED DATA","KENT COUNTY COUNCIL (GAS & ELECTRIC)","",,"204269191"
"London Borough of Redbridge","http://opendatacommunities.org/doc/london-borough-council/redbridge","9BNONBVO","Outside the BVACOP Objective Structure","9CNONBVO","Outside the BVACOP Objective Structure","REV","Revenue","R5031","Central Heating HRA","02-PREMISES","Premises","02E","Water services","4005","Heating and Hot Water","3719929","202309",08/12/2022 00:00:00,675.19,"39564","Gas Companies","REDACTED DATA","KENT COUNTY COUNCIL (GAS & ELECTRIC)","",,"204269191"
"London Borough of Redbridge","http://opendatacommunities.org/doc/london-borough-council/redbridge","9BNONBVO","Outside the BVACOP Objective Structure","9CNONBVO","Outside the BVACOP Objective Structure","REV","Revenue","R5031","Central Heating HRA","02-PREMISES","Premises","02E","Water services","4005","Heating and Hot Water","3719929","202309",08/12/2022 00:00:00,693.66,"39564","Gas Companies","REDACTED DATA","KENT COUNTY COUNCIL (GAS & ELECTRIC)","",,"204269191"
"London Borough of Redbridge","http://opendatacommunities.org/doc/london-borough-council/redbridge","5BGFHOUSING","General Fund Housing","5CHOMELESS","Homelessness","REV","Revenue","R5630","HAC Temporary Accomodation","05-THIRD","Third Party Payments","05H","Private contractors","6900","Nightly Let Plus Charges","3719939","202309",04/12/2022 00:00:00,0,"31230","Employment and Recruitment Agencies","REDACTED DATA","ACCESS UK LTD T/AS ADAM","2343760","http://opencorporates.com/companies/gb/2343760","GB 108 2213 56"
"London Borough of Redbridge","http://opendatacommunities.org/doc/london-borough-council/redbridge","5BGFHOUSING","General Fund Housing","5CHOMELESS","Homelessness","REV","Revenue","R5630","HAC Temporary Accomodation","05-THIRD","Third Party Payments","05H","Private contractors","6900","Nightly Let Plus Charges","3719939","202309",04/12/2022 00:00:00,0,"31230","Employment and Recruitment Agencies","REDACTED DATA","ACCESS UK LTD T/AS ADAM","2343760","http://opencorporates.com/companies/gb/2343760","GB 108 2213 56"
"London Borough of Redbridge","http://opendatacommunities.org/doc/london-borough-council/redbridge","5BGFHOUSING","General Fund Housing","5CHOMELESS","Homelessness","REV","Revenue","R5630","HAC Temporary Accomodation","05-THIRD","Third Party Payments","05H","Private contractors","6900","Nightly Let Plus Charges","3719939","202309",04/12/2022 00:00:00,855,"31230","Employment and Recruitment Agencies","REDACTED DATA","ACCESS UK LTD T/AS ADAM","2343760","http://opencorporates.com/companies/gb/2343760","GB 108 2213 56"
"London Borough of Redbridge","http://opendatacommunities.org/doc/london-borough-council/redbridge","5BGFHOUSING","General Fund Housing","5CHOMELESS","Homelessness","REV","Revenue","R5630","HAC Temporary Accomodation","05-THIRD","Third Party Payments","05H","Private contractors","6900","Nightly Let Plus Charges","3719939","202309",04/12/2022 00:00:00,0,"31230","Employment and Recruitment Agencies","REDACTED DATA","ACCESS UK LTD T/AS ADAM","2343760","http://opencorporates.com/companies/gb/2343760","GB 108 2213 56"
"London Borough of Redbridge","http://opendatacommunities.org/doc/london-borough-council/redbridge","5BGFHOUSING","General Fund Housing","5CHOMELESS","Homelessness","REV","Revenue","R5630","HAC Temporary Accomodation","05-THIRD","Third Party Payments","05H","Private contractors","6900","Nightly Let Plus Charges","3719939","202309",04/12/2022 00:00:00,0,"31230","Employment and Recruitment Agencies","REDACTED DATA","ACCESS UK LTD T/AS ADAM","2343760","http://opencorporates.com/companies/gb/2343760","GB 108 2213 56"
"London Borough of Redbridge","http://opendatacommunities.org/doc/london-borough-council/redbridge","5BGFHOUSING","General Fund Housing","5CHOMELESS","Homelessness","REV","Revenue","R5630","HAC Temporary Accomodation","05-THIRD","Third Party Payments","05H","Private contractors","6900","Nightly Let Plus Charges","3719939","202309",04/12/2022 00:00:00,855,"31230","Employment and Recruitment Agencies","REDACTED DATA","ACCESS UK LTD T/AS ADAM","2343760","http://opencorporates.com/companies/gb/2343760","GB 108 2213 56"
"London Borough of Redbridge","http://opendatacommunities.org/doc/london-borough-council/redbridge","5BGFHOUSING","General Fund Housing","5CHOMELESS","Homelessness","REV","Revenue","R5630","HAC Temporary Accomodation","05-THIRD","Third Party Payments","05H","Private contractors","6900","Nightly Let Plus Charges","3719939","202309",04/12/2022 00:00:00,1736,"31230","Employment and Recruitment Agencies","REDACTED DATA","ACCESS UK LTD T/AS ADAM","2343760","http://opencorporates.com/companies/gb/2343760","GB 108 2213 56"
"London Borough of Redbridge","http://opendatacommunities.org/doc/london-borough-council/redbridge","5BGFHOUSING","General Fund Housing","5CHOMELESS","Homelessness","REV","Revenue","R5630","HAC Temporary Accomodation","05-THIRD","Third Party Payments","05H","Private contractors","6900","Nightly Let Plus Charges","3719939","202309",04/12/2022 00:00:00,0,"31230","Employment and Recruitment Agencies","REDACTED DATA","ACCESS UK LTD T/AS ADAM","2343760","http://opencorporates.com/companies/gb/2343760","GB 108 2213 56"
"London Borough of Redbridge","http://opendatacommunities.org/doc/london-borough-council/redbridge","5BGFHOUSING","General Fund Housing","5CHOMELESS","Homelessness","REV","Revenue","R5630","HAC Temporary Accomodation","05-THIRD","Third Party Payments","05H","Private contractors","6900","Nightly Let Plus Charges","3719939","202309",04/12/2022 00:00:00,1680,"31230","Employment and Recruitment Agencies","REDACTED DATA","ACCESS UK LTD T/AS ADAM","2343760","http://opencorporates.com/companies/gb/2343760","GB 108 2213 56"
"London Borough of Redbridge","http://opendatacommunities.org/doc/london-borough-council/redbridge","5BGFHOUSING","General Fund Housing","5CHOMELESS","Homelessness","REV","Revenue","R5630","HAC Temporary Accomodation","05-THIRD","Third Party Payments","05H","Private contractors","6900","Nightly Let Plus Charges","3719939","202309",04/12/2022 00:00:00,855,"31230","Employment and Recruitment Agencies","REDACTED DATA","ACCESS UK LTD T/AS ADAM","2343760","http://opencorporates.com/companies/gb/2343760","GB 108 2213 56"
"London Borough of Redbridge","http://opendatacommunities.org/doc/london-borough-council/redbridge","5BGFHOUSING","General Fund Housing","5CHOMELESS","Homelessness","REV","Revenue","R5630","HAC Temporary Accomodation","05-THIRD","Third Party Payments","05H","Private contractors","6900","Nightly Let Plus Charges","3719939","202309",04/12/2022 00:00:00,0,"31230","Employment and Recruitment Agencies","REDACTED DATA","ACCESS UK LTD T/AS ADAM","2343760","http://opencorporates.com/companies/gb/2343760","GB 108 2213 56"
"London Borough of Redbridge","http://opendatacommunities.org/doc/london-borough-council/redbridge","5BGFHOUSING","General Fund Housing","5CHOMELESS","Homelessness","REV","Revenue","R5630","HAC Temporary Accomodation","05-THIRD","Third Party Payments","05H","Private contractors","6900","Nightly Let Plus Charges","3719939","202309",04/12/2022 00:00:00,855,"31230","Employment and Recruitment Agencies","REDACTED DATA","ACCESS UK LTD T/AS ADAM","2343760","http://opencorporates.com/companies/gb/2343760","GB 108 2213 56"
"London Borough of Redbridge","http://opendatacommunities.org/doc/london-borough-council/redbridge","5BGFHOUSING","General Fund Housing","5CHOMELESS","Homelessness","REV","Revenue","R5630","HAC Temporary Accomodation","05-THIRD","Third Party Payments","05H","Private contractors","6900","Nightly Let Plus Charges","3719939","202309",04/12/2022 00:00:00,0,"31230","Employment and Recruitment Agencies","REDACTED DATA","ACCESS UK LTD T/AS ADAM","2343760","http://opencorporates.com/companies/gb/2343760","GB 108 2213 56"
"London Borough of Redbridge","http://opendatacommunities.org/doc/london-borough-council/redbridge","5BGFHOUSING","General Fund Housing","5CHOMELESS","Homelessness","REV","Revenue","R5630","HAC Temporary Accomodation","05-THIRD","Third Party Payments","05H","Private contractors","6900","Nightly Let Plus Charges","3719939","202309",04/12/2022 00:00:00,855,"31230","Employment and Recruitment Agencies","REDACTED DATA","ACCESS UK LTD T/AS ADAM","2343760","http://opencorporates.com/companies/gb/2343760","GB 108 2213 56"
"London Borough of Redbridge","http://opendatacommunities.org/doc/london-borough-council/redbridge","5BGFHOUSING","General Fund Housing","5CHOMELESS","Homelessness","REV","Revenue","R5630","HAC Temporary Accomodation","05-THIRD","Third Party Payments","05H","Private contractors","6900","Nightly Let Plus Charges","3719939","202309",04/12/2022 00:00:00,0,"31230","Employment and Recruitment Agencies","REDACTED DATA","ACCESS UK LTD T/AS ADAM","2343760","http://opencorporates.com/companies/gb/2343760","GB 108 2213 56"
"London Borough of Redbridge","http://opendatacommunities.org/doc/london-borough-council/redbridge","5BGFHOUSING","General Fund Housing","5CHOMELESS","Homelessness","REV","Revenue","R5630","HAC Temporary Accomodation","05-THIRD","Third Party Payments","05H","Private contractors","6900","Nightly Let Plus Charges","3719939","202309",04/12/2022 00:00:00,1500,"31230","Employment and Recruitment Agencies","REDACTED DATA","ACCESS UK LTD T/AS ADAM","2343760","http://opencorporates.com/companies/gb/2343760","GB 108 2213 56"
"London Borough of Redbridge","http://opendatacommunities.org/doc/london-borough-council/redbridge","5BGFHOUSING","General Fund Housing","5CHOMELESS","Homelessness","REV","Revenue","R5630","HAC Temporary Accomodation","05-THIRD","Third Party Payments","05H","Private contractors","6900","Nightly Let Plus Charges","3719939","202309",04/12/2022 00:00:00,0,"31230","Employment and Recruitment Agencies","REDACTED DATA","ACCESS UK LTD T/AS ADAM","2343760","http://opencorporates.com/companies/gb/2343760","GB 108 2213 56"
"London Borough of Redbridge","http://opendatacommunities.org/doc/london-borough-council/redbridge","5BGFHOUSING","General Fund Housing","5CHOMELESS","Homelessness","REV","Revenue","R5630","HAC Temporary Accomodation","05-THIRD","Third Party Payments","05H","Private contractors","6900","Nightly Let Plus Charges","3719939","202309",04/12/2022 00:00:00,1106.1,"31230","Employment and Recruitment Agencies","REDACTED DATA","ACCESS UK LTD T/AS ADAM","2343760","http://opencorporates.com/companies/gb/2343760","GB 108 2213 56"
"London Borough of Redbridge","http://opendatacommunities.org/doc/london-borough-council/redbridge","5BGFHOUSING","General Fund Housing","5CHOMELESS","Homelessness","REV","Revenue","R5630","HAC Temporary Accomodation","05-THIRD","Third Party Payments","05H","Private contractors","6900","Nightly Let Plus Charges","3719939","202309",04/12/2022 00:00:00,0,"31230","Employment and Recruitment Agencies","REDACTED DATA","ACCESS UK LTD T/AS ADAM","2343760","http://opencorporates.com/companies/gb/2343760","GB 108 2213 56"
"London Borough of Redbridge","http://opendatacommunities.org/doc/london-borough-council/redbridge","5BGFHOUSING","General Fund Housing","5CHOMELESS","Homelessness","REV","Revenue","R5630","HAC Temporary Accomodation","05-THIRD","Third Party Payments","05H","Private contractors","6900","Nightly Let Plus Charges","3719939","202309",04/12/2022 00:00:00,1500,"31230","Employment and Recruitment Agencies","REDACTED DATA","ACCESS UK LTD T/AS ADAM","2343760","http://opencorporates.com/companies/gb/2343760","GB 108 2213 56"
"London Borough of Redbridge","http://opendatacommunities.org/doc/london-borough-council/redbridge","5BGFHOUSING","General Fund Housing","5CHOMELESS","Homelessness","REV","Revenue","R5630","HAC Temporary Accomodation","05-THIRD","Third Party Payments","05H","Private contractors","6900","Nightly Let Plus Charges","3719939","202309",04/12/2022 00:00:00,1260,"31230","Employment and Recruitment Agencies","REDACTED DATA","ACCESS UK LTD T/AS ADAM","2343760","http://opencorporates.com/companies/gb/2343760","GB 108 2213 56"
"London Borough of Redbridge","http://opendatacommunities.org/doc/london-borough-council/redbridge","5BGFHOUSING","General Fund Housing","5CHOMELESS","Homelessness","REV","Revenue","R5630","HAC Temporary Accomodation","05-THIRD","Third Party Payments","05H","Private contractors","6900","Nightly Let Plus Charges","3719939","202309",04/12/2022 00:00:00,0,"31230","Employment and Recruitment Agencies","REDACTED DATA","ACCESS UK LTD T/AS ADAM","2343760","http://opencorporates.com/companies/gb/2343760","GB 108 2213 56"
"London Borough of Redbridge","http://opendatacommunities.org/doc/london-borough-council/redbridge","9BNONBVO","Outside the BVACOP Objective Structure","9CNONBVO","Outside the BVACOP Objective Structure","REV","Revenue","R5031","Central Heating HRA","02-PREMISES","Premises","02E","Water services","4005","Heating and Hot Water","3719929","202309",08/12/2022 00:00:00,519.56,"39564","Gas Companies","REDACTED DATA","KENT COUNTY COUNCIL (GAS & ELECTRIC)","",,"204269191"
"London Borough of Redbridge","http://opendatacommunities.org/doc/london-borough-council/redbridge","9BNONBVO","Outside the BVACOP Objective Structure","9CNONBVO","Outside the BVACOP Objective Structure","REV","Revenue","R5031","Central Heating HRA","02-PREMISES","Premises","02E","Water services","4005","Heating and Hot Water","3719929","202309",08/12/2022 00:00:00,504.5,"39564","Gas Companies","REDACTED DATA","KENT COUNTY COUNCIL (GAS & ELECTRIC)","",,"204269191"
"London Borough of Redbridge","http://opendatacommunities.org/doc/london-borough-council/redbridge","9BNONBVO","Outside the BVACOP Objective Structure","9CNONBVO","Outside the BVACOP Objective Structure","REV","Revenue","R5031","Central Heating HRA","02-PREMISES","Premises","02E","Water services","4005","Heating and Hot Water","3719929","202309",08/12/2022 00:00:00,603.61,"39564","Gas Companies","REDACTED DATA","KENT COUNTY COUNCIL (GAS & ELECTRIC)","",,"204269191"
"London Borough of Redbridge","http://opendatacommunities.org/doc/london-borough-council/redbridge","9BNONBVO","Outside the BVACOP Objective Structure","9CNONBVO","Outside the BVACOP Objective Structure","REV","Revenue","R5031","Central Heating HRA","02-PREMISES","Premises","02E","Water services","4005","Heating and Hot Water","3719929","202309",08/12/2022 00:00:00,674.36,"39564","Gas Companies","REDACTED DATA","KENT COUNTY COUNCIL (GAS & ELECTRIC)","",,"204269191"
"London Borough of Redbridge","http://opendatacommunities.org/doc/london-borough-council/redbridge","9BNONBVO","Outside the BVACOP Objective Structure","9CNONBVO","Outside the BVACOP Objective Structure","REV","Revenue","R5031","Central Heating HRA","02-PREMISES","Premises","02E","Water services","4005","Heating and Hot Water","3719929","202309",08/12/2022 00:00:00,129.46,"39564","Gas Companies","REDACTED DATA","KENT COUNTY COUNCIL (GAS & ELECTRIC)","",,"204269191"
"London Borough of Redbridge","http://opendatacommunities.org/doc/london-borough-council/redbridge","9BNONBVO","Outside the BVACOP Objective Structure","9CNONBVO","Outside the BVACOP Objective Structure","REV","Revenue","R5031","Central Heating HRA","02-PREMISES","Premises","02E","Water services","4005","Heating and Hot Water","3719929","202309",08/12/2022 00:00:00,66.38,"39564","Gas Companies","REDACTED DATA","KENT COUNTY COUNCIL (GAS & ELECTRIC)","",,"204269191"
"London Borough of Redbridge","http://opendatacommunities.org/doc/london-borough-council/redbridge","9BNONBVO","Outside the BVACOP Objective Structure","9CNONBVO","Outside the BVACOP Objective Structure","REV","Revenue","R5031","Central Heating HRA","02-PREMISES","Premises","02E","Water services","4005","Heating and Hot Water","3719929","202309",08/12/2022 00:00:00,629.08,"39564","Gas Companies","REDACTED DATA","KENT COUNTY COUNCIL (GAS & ELECTRIC)","",,"204269191"
"London Borough of Redbridge","http://opendatacommunities.org/doc/london-borough-council/redbridge","9BNONBVO","Outside the BVACOP Objective Structure","9CNONBVO","Outside the BVACOP Objective Structure","REV","Revenue","R5114","Shu HRA Expenses","02-PREMISES","Premises","02E","Water services","4005","Heating and Hot Water","3719929","202309",08/12/2022 00:00:00,5456.15,"39564","Gas Companies","REDACTED DATA","KENT COUNTY COUNCIL (GAS & ELECTRIC)","",,"204269191"
"London Borough of Redbridge","http://opendatacommunities.org/doc/london-borough-council/redbridge","9BNONBVO","Outside the BVACOP Objective Structure","9CNONBVO","Outside the BVACOP Objective Structure","REV","Revenue","R5114","Shu HRA Expenses","02-PREMISES","Premises","02E","Water services","4005","Heating and Hot Water","3719929","202309",08/12/2022 00:00:00,3882.55,"39564","Gas Companies","REDACTED DATA","KENT COUNTY COUNCIL (GAS & ELECTRIC)","",,"204269191"
"London Borough of Redbridge","http://opendatacommunities.org/doc/london-borough-council/redbridge","9BNONBVO","Outside the BVACOP Objective Structure","9CNONBVO","Outside the BVACOP Objective Structure","REV","Revenue","R5211","Orchard and Manford Office Costs","02-PREMISES","Premises","02B","Energy costs","4002","Gas","3719929","202309",08/12/2022 00:00:00,1657.34,"39564","Gas Companies","REDACTED DATA","KENT COUNTY COUNCIL (GAS & ELECTRIC)","",,"204269191"
"London Borough of Redbridge","http://opendatacommunities.org/doc/london-borough-council/redbridge","5BGFHOUSING","General Fund Housing","5CWELFARE","Welfare Services","REV","Revenue","R4111","Supporting People - CPB","05-THIRD","Third Party Payments","05G","Other establishments","6851","Housing Association Payments","60504900","202309",01/11/2022 00:00:00,34386.38,"17020","Charities and Voluntary Organisations","REDACTED DATA","SINGLE HOMELESS PROJECT","1741926","http://opencorporates.com/companies/gb/1741926",""
"London Borough of Redbridge","http://opendatacommunities.org/doc/london-borough-council/redbridge","9BNONBVO","Outside the BVACOP Objective Structure","9CNONBVO","Outside the BVACOP Objective Structure","REV","Revenue","R5035","Orchard Billing Platform","02-PREMISES","Premises","02E","Water services","4005","Heating and Hot Water","3719930","202309",08/12/2022 00:00:00,3863.2,"39564","Gas Companies","REDACTED DATA","KENT COUNTY COUNCIL (GAS & ELECTRIC)","",,"204269191"
"London Borough of Redbridge","http://opendatacommunities.org/doc/london-borough-council/redbridge","9BNONBVO","Outside the BVACOP Objective Structure","9CNONBVO","Outside the BVACOP Objective Structure","REV","Revenue","R5035","Orchard Billing Platform","02-PREMISES","Premises","02E","Water services","4005","Heating and Hot Water","3719930","202309",08/12/2022 00:00:00,4482.05,"39564","Gas Companies","REDACTED DATA","KENT COUNTY COUNCIL (GAS & ELECTRIC)","",,"204269191"
"London Borough of Redbridge","http://opendatacommunities.org/doc/london-borough-council/redbridge","9BNONBVO","Outside the BVACOP Objective Structure","9CNONBVO","Outside the BVACOP Objective Structure","REV","Revenue","R5035","Orchard Billing Platform","02-PREMISES","Premises","02E","Water services","4005","Heating and Hot Water","3719930","202309",08/12/2022 00:00:00,4463.56,"39564","Gas Companies","REDACTED DATA","KENT COUNTY COUNCIL (GAS & ELECTRIC)","",,"204269191"
"London Borough of Redbridge","http://opendatacommunities.org/doc/london-borough-council/redbridge","9BNONBVO","Outside the BVACOP Objective Structure","9CNONBVO","Outside the BVACOP Objective Structure","REV","Revenue","R5035","Orchard Billing Platform","02-PREMISES","Premises","02E","Water services","4005","Heating and Hot Water","3719930","202309",08/12/2022 00:00:00,7798.82,"39564","Gas Companies","REDACTED DATA","KENT COUNTY COUNCIL (GAS & ELECTRIC)","",,"204269191"
"London Borough of Redbridge","http://opendatacommunities.org/doc/london-borough-council/redbridge","9BNONBVO","Outside the BVACOP Objective Structure","9CNONBVO","Outside the BVACOP Objective Structure","REV","Revenue","R5035","Orchard Billing Platform","02-PREMISES","Premises","02E","Water services","4005","Heating and Hot Water","3719930","202309",08/12/2022 00:00:00,7267.2,"39564","Gas Companies","REDACTED DATA","KENT COUNTY COUNCIL (GAS & ELECTRIC)","",,"204269191"
"London Borough of Redbridge","http://opendatacommunities.org/doc/london-borough-council/redbridge","9BNONBVO","Outside the BVACOP Objective Structure","9CNONBVO","Outside the BVACOP Objective Structure","REV","Revenue","R5035","Orchard Billing Platform","02-PREMISES","Premises","02E","Water services","4005","Heating and Hot Water","3719930","202309",08/12/2022 00:00:00,4411.03,"39564","Gas Companies","REDACTED DATA","KENT COUNTY COUNCIL (GAS & ELECTRIC)","",,"204269191"
"London Borough of Redbridge","http://opendatacommunities.org/doc/london-borough-council/redbridge","6BADULTSOCIA","Adult Social Care","6CADMENHLTH","Adults Under 65 with Mental Health Needs","REV","Revenue","R4190","MH - Residential Care","05-THIRD","Third Party Payments","05F","Voluntary associations","6802","Residential Homes","91366186","202309",30/11/2022 00:00:00,33678.1,"64710","Residential Care Homes","REDACTED DATA","SIGNHEALTH","2610559","http://opencorporates.com/companies/gb/2610559",""
"London Borough of Redbridge","http://opendatacommunities.org/doc/london-borough-council/redbridge","6BADULTSOCIA","Adult Social Care","6CLONGT65","Long-Term Support 65+ Years","REV","Revenue","R4446","Learning Disabilities - Wanstead and Woodford","05-THIRD","Third Party Payments","05F","Voluntary associations","6802","Residential Homes","91366187","202309",22/11/2022 00:00:00,33337.2,"64710","Residential Care Homes","REDACTED DATA","CLEARWATER CARE (HACKNEY) LTD","5084728","http://opencorporates.com/companies/gb/5084728",""
"London Borough of Redbridge","http://opendatacommunities.org/doc/london-borough-council/redbridge","6BADULTSOCIA","Adult Social Care","6CLONGT65","Long-Term Support 65+ Years","REV","Revenue","R4446","Learning Disabilities - Wanstead and Woodford","05-THIRD","Third Party Payments","05F","Voluntary associations","6802","Residential Homes","91366208","202309",22/11/2022 00:00:00,34201.44,"64710","Residential Care Homes","REDACTED DATA","CAS CARE SERVICES LTD","2683377","http://opencorporates.com/companies/gb/2683377",""
"London Borough of Redbridge","http://opendatacommunities.org/doc/london-borough-council/redbridge","6BADULTSOCIA","Adult Social Care","6CLONGT65","Long-Term Support 65+ Years","REV","Revenue","R4446","Learning Disabilities - Wanstead and Woodford","09-INCOME","Income","09C","Customer and Client Receipts","8555","Accommodation Charges","91366208","202309",22/11/2022 00:00:00,-877.6,"64710","Residential Care Homes","REDACTED DATA","CAS CARE SERVICES LTD","2683377","http://opencorporates.com/companies/gb/2683377",""
"London Borough of Redbridge","http://opendatacommunities.org/doc/london-borough-council/redbridge","9BNONBVO","Outside the BVACOP Objective Structure","9CNONBVO","Outside the BVACOP Objective Structure","CAP","Capital","C4344","School Conditioning","99-NONBV","Capital, Balance Sheet and Control","50E","Capital - Contract Payments","9150","Main Contract","70126942","202309",06/12/2022 00:00:00,27158.6,"21555","Construction Contractors - General","REDACTED DATA","Longley Group Ltd","7633349","http://opencorporates.com/companies/gb/7633349","165771972"
"London Borough of Redbridge","http://opendatacommunities.org/doc/london-borough-council/redbridge","3BLEACENTFND","LEA Centrally Held School Funds","3CNONSCH","Non Schools","REV","Revenue","R2234","Maintained Post 16 colleges","05-THIRD","Third Party Payments","05G","Other establishments","7433","OOB Post 16 Top Up","60508768","202309",20/12/2022 00:00:00,32545.33,"67981","Schools - Local Authority","REDACTED DATA","NATIONAL STAR FOUNDATION- NATIONAL STAR COLLEGE","522846","http://opencorporates.com/companies/gb/522846",""
"London Borough of Redbridge","http://opendatacommunities.org/doc/london-borough-council/redbridge","9BNONBVO","Outside the BVACOP Objective Structure","9CNONBVO","Outside the BVACOP Objective Structure","REV","Revenue","R5035","Orchard Billing Platform","02-PREMISES","Premises","02E","Water services","4005","Heating and Hot Water","3721051","202309",15/12/2022 00:00:00,7734.36,"39564","Gas Companies","REDACTED DATA","KENT COUNTY COUNCIL (GAS & ELECTRIC)","",,"204269191"
"London Borough of Redbridge","http://opendatacommunities.org/doc/london-borough-council/redbridge","9BNONBVO","Outside the BVACOP Objective Structure","9CNONBVO","Outside the BVACOP Objective Structure","REV","Revenue","R5035","Orchard Billing Platform","02-PREMISES","Premises","02E","Water services","4005","Heating and Hot Water","3721051","202309",15/12/2022 00:00:00,4777.18,"39564","Gas Companies","REDACTED DATA","KENT COUNTY COUNCIL (GAS & ELECTRIC)","",,"204269191"
"London Borough of Redbridge","http://opendatacommunities.org/doc/london-borough-council/redbridge","9BNONBVO","Outside the BVACOP Objective Structure","9CNONBVO","Outside the BVACOP Objective Structure","REV","Revenue","R5035","Orchard Billing Platform","02-PREMISES","Premises","02E","Water services","4005","Heating and Hot Water","3721051","202309",15/12/2022 00:00:00,4744.96,"39564","Gas Companies","REDACTED DATA","KENT COUNTY COUNCIL (GAS & ELECTRIC)","",,"204269191"
"London Borough of Redbridge","http://opendatacommunities.org/doc/london-borough-council/redbridge","9BNONBVO","Outside the BVACOP Objective Structure","9CNONBVO","Outside the BVACOP Objective Structure","REV","Revenue","R5035","Orchard Billing Platform","02-PREMISES","Premises","02E","Water services","4005","Heating and Hot Water","3721051","202309",15/12/2022 00:00:00,4839.23,"39564","Gas Companies","REDACTED DATA","KENT COUNTY COUNCIL (GAS & ELECTRIC)","",,"204269191"
"London Borough of Redbridge","http://opendatacommunities.org/doc/london-borough-council/redbridge","9BNONBVO","Outside the BVACOP Objective Structure","9CNONBVO","Outside the BVACOP Objective Structure","REV","Revenue","R5035","Orchard Billing Platform","02-PREMISES","Premises","02E","Water services","4005","Heating and Hot Water","3721051","202309",15/12/2022 00:00:00,8239.22,"39564","Gas Companies","REDACTED DATA","KENT COUNTY COUNCIL (GAS & ELECTRIC)","",,"204269191"
"London Borough of Redbridge","http://opendatacommunities.org/doc/london-borough-council/redbridge","6BADULTSOCIA","Adult Social Care","6CLONGT1864","Long-Term Support 18 - 64 Years","REV","Revenue","R4441","Older People - Seven Kings","05-THIRD","Third Party Payments","05F","Voluntary associations","6802","Residential Homes","91366185","202309",22/11/2022 00:00:00,17300.4,"64710","Residential Care Homes","REDACTED DATA","Oakland Primecare LTD Re Woodland Grove","10127904","http://opencorporates.com/companies/gb/10127904",""
"London Borough of Redbridge","http://opendatacommunities.org/doc/london-borough-council/redbridge","6BADULTSOCIA","Adult Social Care","6CLONGT1864","Long-Term Support 18 - 64 Years","REV","Revenue","R4441","Older People - Seven Kings","05-THIRD","Third Party Payments","05F","Voluntary associations","6802","Residential Homes","91366185","202309",22/11/2022 00:00:00,14457.2,"64710","Residential Care Homes","REDACTED DATA","Oakland Primecare LTD Re Woodland Grove","10127904","http://opencorporates.com/companies/gb/10127904",""
"London Borough of Redbridge","http://opendatacommunities.org/doc/london-borough-council/redbridge","9BNONBVO","Outside the BVACOP Objective Structure","9CNONBVO","Outside the BVACOP Objective Structure","REV","Revenue","R0030","Levies","05-THIRD","Third Party Payments","05B","Joint authorities","6602","London Pension Fund Authority","60507114","202309",10/12/2022 00:00:00,30502.7,"48583","Local Government","REDACTED DATA","GREATER LONDON AUTHORITY","",,"GB743811731"
"London Borough of Redbridge","http://opendatacommunities.org/doc/london-borough-council/redbridge","6BADULTSOCIA","Adult Social Care","6CLONGT1864","Long-Term Support 18 - 64 Years","REV","Revenue","R4437","Learning Disabilities - Cranbrook & Loxford","05-THIRD","Third Party Payments","05F","Voluntary associations","6802","Residential Homes","91366774","202309",30/11/2022 00:00:00,8026.75,"68200","Schools - Special","REDACTED DATA","HESLEY GROUP  LTD","2665377","http://opencorporates.com/companies/gb/2665377",""
"London Borough of Redbridge","http://opendatacommunities.org/doc/london-borough-council/redbridge","6BADULTSOCIA","Adult Social Care","6CLONGT1864","Long-Term Support 18 - 64 Years","REV","Revenue","R4437","Learning Disabilities - Cranbrook & Loxford","05-THIRD","Third Party Payments","05F","Voluntary associations","6802","Residential Homes","91366774","202309",30/11/2022 00:00:00,22081.11,"68200","Schools - Special","REDACTED DATA","HESLEY GROUP  LTD","2665377","http://opencorporates.com/companies/gb/2665377",""
"London Borough of Redbridge","http://opendatacommunities.org/doc/london-borough-council/redbridge","5BGFHOUSING","General Fund Housing","5CHOMELESS","Homelessness","REV","Revenue","R5630","HAC Temporary Accomodation","04-SUPPLIES","Supplies And Services","04E","Services","5754","Consultancy","60506301","202309",21/11/2022 00:00:00,30000,"48583","Local Government","REDACTED DATA","LONDON BOROUGH OF EALING","",,"226670070"
"London Borough of Redbridge","http://opendatacommunities.org/doc/london-borough-council/redbridge","9BNONBVO","Outside the BVACOP Objective Structure","9CNONBVO","Outside the BVACOP Objective Structure","CAP","Capital","C2204","Major Resurfacing Borough Roads LBR","99-NONBV","Capital, Balance Sheet and Control","50E","Capital - Contract Payments","9157","Footways & cycle tracks","3719749","202309",08/12/2022 00:00:00,25000,"18632","Civil Engineers","REDACTED DATA","KENSON CONTRACTORS BENINGTON LTD","1314691","http://opencorporates.com/companies/gb/1314691","301629589"
"London Borough of Redbridge","http://opendatacommunities.org/doc/london-borough-council/redbridge","6BPUBHEALTH","Public Health","6CPHYSACTIV","Physical Activity","REV","Revenue","R4814","Physical Activity - Children","05-THIRD","Third Party Payments","05I","Other agencies -  Controllable","6960","Vision","60506185","202309",11/11/2022 00:00:00,29000,"48583","Local Government","REDACTED DATA","VISION REDBRIDGE CULTURE AND LEISURE","6032714","http://opencorporates.com/companies/gb/6032714","906429031"
"London Borough of Redbridge","http://opendatacommunities.org/doc/london-borough-council/redbridge","1BOTHEROPI&E","Other Operating Income & Expenditure","1CTRADSURDEF","Trading Account Surpluses & Deficits","REV","Revenue","R9354","Legal Disbursements","04-SUPPLIES","Supplies And Services","04H","Grants and subscriptions","5954","Professional Fees","60507428","202309",30/11/2022 00:00:00,24150.5,"45170","Information Services","REDACTED DATA","Pinsent Mason LLP","OC333653","http://opencorporates.com/companies/gb/OC333653","GB125463034"
"London Borough of Redbridge","http://opendatacommunities.org/doc/london-borough-council/redbridge","3BLEACENTFND","LEA Centrally Held School Funds","3CSUPPORTSEN","Supporting Special Education Needs","REV","Revenue","R3022","Home Tuition","05-THIRD","Third Party Payments","05A","Independent units within the council","6513","Agency & Contracted Services","60507322","202309",27/11/2022 00:00:00,23975.82,"31230","Employment and Recruitment Agencies","REDACTED DATA","REMEDY RECRUITMENT GROUP LTD","4651426","http://opencorporates.com/companies/gb/4651426","820791924"
"London Borough of Redbridge","http://opendatacommunities.org/doc/london-borough-council/redbridge","9BNONBVO","Outside the BVACOP Objective Structure","9CNONBVO","Outside the BVACOP Objective Structure","CAP","Capital","C2235","Crossrail Capital","99-NONBV","Capital, Balance Sheet and Control","50E","Capital - Contract Payments","9157","Footways & cycle tracks","3720464","202309",15/12/2022 00:00:00,23294.4,"18632","Civil Engineers","REDACTED DATA","KENSON CONTRACTORS BENINGTON LTD","1314691","http://opencorporates.com/companies/gb/1314691","301629589"
"London Borough of Redbridge","http://opendatacommunities.org/doc/london-borough-council/redbridge","9BNONBVO","Outside the BVACOP Objective Structure","9CNONBVO","Outside the BVACOP Objective Structure","CAP","Capital","C4334","Wanstead High School","99-NONBV","Capital, Balance Sheet and Control","50A","Capital - Employee Costs","9000","Employee Costs Architects","60507125","202309",30/11/2022 00:00:00,23237.5,"11400","Building Services","REDACTED DATA","JOHN ROWAN AND PARTNERS LLP","OC302030","http://opencorporates.com/companies/gb/OC302030","229079447"
"London Borough of Redbridge","http://opendatacommunities.org/doc/london-borough-council/redbridge","3BNONSCHFUND","Non-School Funding","6CCHILLOOKED","Children Looked After","REV","Revenue","R2238","Looked After Children Placements LA","05-THIRD","Third Party Payments","05H","Private contractors","6907","Private Homes","60506269","202309",07/11/2022 00:00:00,27550.81,"64710","Residential Care Homes","REDACTED DATA","RESTORATION CARE & SERVICES LTD","8880894","http://opencorporates.com/companies/gb/8880894",""
"London Borough of Redbridge","http://opendatacommunities.org/doc/london-borough-council/redbridge","3BNONSCHFUND","Non-School Funding","3CNONSCH","Non Schools","REV","Revenue","R3962","Early Years - 3 and 4 Year Olds","05-THIRD","Third Party Payments","05A","Independent units within the council","6517","Non-Maintained Schools","3720706","202309",16/12/2022 00:00:00,27239.91,"67981","Schools - Local Authority","REDACTED DATA","CHURCHFIELDS INFANT SCHOOL A/C","",,""
"London Borough of Redbridge","http://opendatacommunities.org/doc/london-borough-council/redbridge","3BLEACENTFND","LEA Centrally Held School Funds","3CSUPPORTSEN","Supporting Special Education Needs","REV","Revenue","R3022","Home Tuition","05-THIRD","Third Party Payments","05A","Independent units within the council","6513","Agency & Contracted Services","60507319","202309",20/11/2022 00:00:00,22588.74,"31230","Employment and Recruitment Agencies","REDACTED DATA","REMEDY RECRUITMENT GROUP LTD","4651426","http://opencorporates.com/companies/gb/4651426","820791924"
"London Borough of Redbridge","http://opendatacommunities.org/doc/london-borough-council/redbridge","1BOTHEROPI&E","Other Operating Income & Expenditure","1CTRADSURDEF","Trading Account Surpluses & Deficits","REV","Revenue","R9576","Broadway Chambers Service Charge Account","04-SUPPLIES","Supplies And Services","04H","Grants and subscriptions","5954","Professional Fees","60508617","202309",29/11/2022 00:00:00,26722.2,"61896","Property and Estate Management","REDACTED DATA","SPENCER CRAIG PARTNERSHIP","5500269","http://opencorporates.com/companies/gb/5500269","863664200"
"London Borough of Redbridge","http://opendatacommunities.org/doc/london-borough-council/redbridge","6BADULTSOCIA","Adult Social Care","6CLONGT65","Long-Term Support 65+ Years","REV","Revenue","R4438","Older People - Cranbrook & Loxford","05-THIRD","Third Party Payments","05H","Private contractors","6902","Respite Care","91366317","202309",22/11/2022 00:00:00,26285.71,"64710","Residential Care Homes","REDACTED DATA","BENNETTS CASTLE LTD","3723811","http://opencorporates.com/companies/gb/3723811",""
"London Borough of Redbridge","http://opendatacommunities.org/doc/london-borough-council/redbridge","6BADULTSOCIA","Adult Social Care","6CLONGT1864","Long-Term Support 18 - 64 Years","REV","Revenue","R4441","Older People - Seven Kings","05-THIRD","Third Party Payments","05H","Private contractors","6909","Nursing Homes","91366274","202309",22/11/2022 00:00:00,8637.2,"64710","Residential Care Homes","REDACTED DATA","ABBEY CARE SERVICES LTD","1009941","http://opencorporates.com/companies/gb/1009941",""
"London Borough of Redbridge","http://opendatacommunities.org/doc/london-borough-council/redbridge","6BADULTSOCIA","Adult Social Care","6CLONGT1864","Long-Term Support 18 - 64 Years","REV","Revenue","R4441","Older People - Seven Kings","05-THIRD","Third Party Payments","05H","Private contractors","6909","Nursing Homes","91366274","202309",22/11/2022 00:00:00,17362.8,"64710","Residential Care Homes","REDACTED DATA","ABBEY CARE SERVICES LTD","1009941","http://opencorporates.com/companies/gb/1009941",""
"London Borough of Redbridge","http://opendatacommunities.org/doc/london-borough-council/redbridge","9BNONBVO","Outside the BVACOP Objective Structure","9CNONBVO","Outside the BVACOP Objective Structure","REV","Revenue","R5032","Staircase Lighting HRA","02-PREMISES","Premises","02B","Energy costs","4000","Electricity","3719928","202309",30/11/2022 00:00:00,101.96,"39564","Gas Companies","REDACTED DATA","KENT COUNTY COUNCIL (GAS & ELECTRIC)","",,"204269191"
"London Borough of Redbridge","http://opendatacommunities.org/doc/london-borough-council/redbridge","9BNONBVO","Outside the BVACOP Objective Structure","9CNONBVO","Outside the BVACOP Objective Structure","REV","Revenue","R5032","Staircase Lighting HRA","02-PREMISES","Premises","02B","Energy costs","4000","Electricity","3719928","202309",30/11/2022 00:00:00,98.84,"39564","Gas Companies","REDACTED DATA","KENT COUNTY COUNCIL (GAS & ELECTRIC)","",,"204269191"
"London Borough of Redbridge","http://opendatacommunities.org/doc/london-borough-council/redbridge","9BNONBVO","Outside the BVACOP Objective Structure","9CNONBVO","Outside the BVACOP Objective Structure","REV","Revenue","R5032","Staircase Lighting HRA","02-PREMISES","Premises","02B","Energy costs","4000","Electricity","3719928","202309",30/11/2022 00:00:00,71.97,"39564","Gas Companies","REDACTED DATA","KENT COUNTY COUNCIL (GAS & ELECTRIC)","",,"204269191"
"London Borough of Redbridge","http://opendatacommunities.org/doc/london-borough-council/redbridge","9BNONBVO","Outside the BVACOP Objective Structure","9CNONBVO","Outside the BVACOP Objective Structure","REV","Revenue","R5032","Staircase Lighting HRA","02-PREMISES","Premises","02B","Energy costs","4000","Electricity","3719928","202309",30/11/2022 00:00:00,131.08,"39564","Gas Companies","REDACTED DATA","KENT COUNTY COUNCIL (GAS & ELECTRIC)","",,"204269191"
"London Borough of Redbridge","http://opendatacommunities.org/doc/london-borough-council/redbridge","9BNONBVO","Outside the BVACOP Objective Structure","9CNONBVO","Outside the BVACOP Objective Structure","REV","Revenue","R5032","Staircase Lighting HRA","02-PREMISES","Premises","02B","Energy costs","4000","Electricity","3719928","202309",30/11/2022 00:00:00,94.16,"39564","Gas Companies","REDACTED DATA","KENT COUNTY COUNCIL (GAS & ELECTRIC)","",,"204269191"
"London Borough of Redbridge","http://opendatacommunities.org/doc/london-borough-council/redbridge","9BNONBVO","Outside the BVACOP Objective Structure","9CNONBVO","Outside the BVACOP Objective Structure","REV","Revenue","R5032","Staircase Lighting HRA","02-PREMISES","Premises","02B","Energy costs","4000","Electricity","3719928","202309",30/11/2022 00:00:00,161.92,"39564","Gas Companies","REDACTED DATA","KENT COUNTY COUNCIL (GAS & ELECTRIC)","",,"204269191"
"London Borough of Redbridge","http://opendatacommunities.org/doc/london-borough-council/redbridge","9BNONBVO","Outside the BVACOP Objective Structure","9CNONBVO","Outside the BVACOP Objective Structure","REV","Revenue","R5032","Staircase Lighting HRA","02-PREMISES","Premises","02B","Energy costs","4000","Electricity","3719928","202309",01/12/2022 00:00:00,73.17,"39564","Gas Companies","REDACTED DATA","KENT COUNTY COUNCIL (GAS & ELECTRIC)","",,"204269191"
"London Borough of Redbridge","http://opendatacommunities.org/doc/london-borough-council/redbridge","9BNONBVO","Outside the BVACOP Objective Structure","9CNONBVO","Outside the BVACOP Objective Structure","REV","Revenue","R5032","Staircase Lighting HRA","02-PREMISES","Premises","02B","Energy costs","4000","Electricity","3719928","202309",06/12/2022 00:00:00,2347.36,"39564","Gas Companies","REDACTED DATA","KENT COUNTY COUNCIL (GAS & ELECTRIC)","",,"204269191"
"London Borough of Redbridge","http://opendatacommunities.org/doc/london-borough-council/redbridge","9BNONBVO","Outside the BVACOP Objective Structure","9CNONBVO","Outside the BVACOP Objective Structure","REV","Revenue","R5032","Staircase Lighting HRA","02-PREMISES","Premises","02B","Energy costs","4000","Electricity","3719928","202309",06/12/2022 00:00:00,2748.5,"39564","Gas Companies","REDACTED DATA","KENT COUNTY COUNCIL (GAS & ELECTRIC)","",,"204269191"
"London Borough of Redbridge","http://opendatacommunities.org/doc/london-borough-council/redbridge","9BNONBVO","Outside the BVACOP Objective Structure","9CNONBVO","Outside the BVACOP Objective Structure","REV","Revenue","R5032","Staircase Lighting HRA","02-PREMISES","Premises","02B","Energy costs","4000","Electricity","3719928","202309",27/10/2022 00:00:00,49.89,"39564","Gas Companies","REDACTED DATA","KENT COUNTY COUNCIL (GAS & ELECTRIC)","",,"204269191"
"London Borough of Redbridge","http://opendatacommunities.org/doc/london-borough-council/redbridge","9BNONBVO","Outside the BVACOP Objective Structure","9CNONBVO","Outside the BVACOP Objective Structure","REV","Revenue","R5032","Staircase Lighting HRA","02-PREMISES","Premises","02B","Energy costs","4000","Electricity","3719928","202309",28/11/2022 00:00:00,86.97,"39564","Gas Companies","REDACTED DATA","KENT COUNTY COUNCIL (GAS & ELECTRIC)","",,"204269191"
"London Borough of Redbridge","http://opendatacommunities.org/doc/london-borough-council/redbridge","9BNONBVO","Outside the BVACOP Objective Structure","9CNONBVO","Outside the BVACOP Objective Structure","REV","Revenue","R5032","Staircase Lighting HRA","02-PREMISES","Premises","02B","Energy costs","4000","Electricity","3719928","202309",30/11/2022 00:00:00,76.63,"39564","Gas Companies","REDACTED DATA","KENT COUNTY COUNCIL (GAS & ELECTRIC)","",,"204269191"
"London Borough of Redbridge","http://opendatacommunities.org/doc/london-borough-council/redbridge","9BNONBVO","Outside the BVACOP Objective Structure","9CNONBVO","Outside the BVACOP Objective Structure","REV","Revenue","R5032","Staircase Lighting HRA","02-PREMISES","Premises","02B","Energy costs","4000","Electricity","3719928","202309",30/11/2022 00:00:00,106.08,"39564","Gas Companies","REDACTED DATA","KENT COUNTY COUNCIL (GAS & ELECTRIC)","",,"204269191"
"London Borough of Redbridge","http://opendatacommunities.org/doc/london-borough-council/redbridge","9BNONBVO","Outside the BVACOP Objective Structure","9CNONBVO","Outside the BVACOP Objective Structure","REV","Revenue","R5032","Staircase Lighting HRA","02-PREMISES","Premises","02B","Energy costs","4000","Electricity","3719928","202309",30/11/2022 00:00:00,75.28,"39564","Gas Companies","REDACTED DATA","KENT COUNTY COUNCIL (GAS & ELECTRIC)","",,"204269191"
"London Borough of Redbridge","http://opendatacommunities.org/doc/london-borough-council/redbridge","9BNONBVO","Outside the BVACOP Objective Structure","9CNONBVO","Outside the BVACOP Objective Structure","REV","Revenue","R5032","Staircase Lighting HRA","02-PREMISES","Premises","02B","Energy costs","4000","Electricity","3719928","202309",27/10/2022 00:00:00,14.65,"39564","Gas Companies","REDACTED DATA","KENT COUNTY COUNCIL (GAS & ELECTRIC)","",,"204269191"
"London Borough of Redbridge","http://opendatacommunities.org/doc/london-borough-council/redbridge","9BNONBVO","Outside the BVACOP Objective Structure","9CNONBVO","Outside the BVACOP Objective Structure","REV","Revenue","R5032","Staircase Lighting HRA","02-PREMISES","Premises","02B","Energy costs","4000","Electricity","3719928","202309",28/10/2022 00:00:00,103.17,"39564","Gas Companies","REDACTED DATA","KENT COUNTY COUNCIL (GAS & ELECTRIC)","",,"204269191"
"London Borough of Redbridge","http://opendatacommunities.org/doc/london-borough-council/redbridge","9BNONBVO","Outside the BVACOP Objective Structure","9CNONBVO","Outside the BVACOP Objective Structure","REV","Revenue","R5032","Staircase Lighting HRA","02-PREMISES","Premises","02B","Energy costs","4000","Electricity","3719928","202309",01/12/2022 00:00:00,72.08,"39564","Gas Companies","REDACTED DATA","KENT COUNTY COUNCIL (GAS & ELECTRIC)","",,"204269191"
"London Borough of Redbridge","http://opendatacommunities.org/doc/london-borough-council/redbridge","9BNONBVO","Outside the BVACOP Objective Structure","9CNONBVO","Outside the BVACOP Objective Structure","REV","Revenue","R5032","Staircase Lighting HRA","02-PREMISES","Premises","02B","Energy costs","4000","Electricity","3719928","202309",30/11/2022 00:00:00,92.8,"39564","Gas Companies","REDACTED DATA","KENT COUNTY COUNCIL (GAS & ELECTRIC)","",,"204269191"
"London Borough of Redbridge","http://opendatacommunities.org/doc/london-borough-council/redbridge","9BNONBVO","Outside the BVACOP Objective Structure","9CNONBVO","Outside the BVACOP Objective Structure","REV","Revenue","R5032","Staircase Lighting HRA","02-PREMISES","Premises","02B","Energy costs","4000","Electricity","3719928","202309",30/11/2022 00:00:00,126.27,"39564","Gas Companies","REDACTED DATA","KENT COUNTY COUNCIL (GAS & ELECTRIC)","",,"204269191"
"London Borough of Redbridge","http://opendatacommunities.org/doc/london-borough-council/redbridge","9BNONBVO","Outside the BVACOP Objective Structure","9CNONBVO","Outside the BVACOP Objective Structure","REV","Revenue","R5032","Staircase Lighting HRA","02-PREMISES","Premises","02B","Energy costs","4000","Electricity","3719928","202309",30/11/2022 00:00:00,236.3,"39564","Gas Companies","REDACTED DATA","KENT COUNTY COUNCIL (GAS & ELECTRIC)","",,"204269191"
"London Borough of Redbridge","http://opendatacommunities.org/doc/london-borough-council/redbridge","9BNONBVO","Outside the BVACOP Objective Structure","9CNONBVO","Outside the BVACOP Objective Structure","REV","Revenue","R5032","Staircase Lighting HRA","02-PREMISES","Premises","02B","Energy costs","4000","Electricity","3719928","202309",30/11/2022 00:00:00,111.54,"39564","Gas Companies","REDACTED DATA","KENT COUNTY COUNCIL (GAS & ELECTRIC)","",,"204269191"
"London Borough of Redbridge","http://opendatacommunities.org/doc/london-borough-council/redbridge","9BNONBVO","Outside the BVACOP Objective Structure","9CNONBVO","Outside the BVACOP Objective Structure","REV","Revenue","R5032","Staircase Lighting HRA","02-PREMISES","Premises","02B","Energy costs","4000","Electricity","3719928","202309",30/11/2022 00:00:00,101.28,"39564","Gas Companies","REDACTED DATA","KENT COUNTY COUNCIL (GAS & ELECTRIC)","",,"204269191"
"London Borough of Redbridge","http://opendatacommunities.org/doc/london-borough-council/redbridge","9BNONBVO","Outside the BVACOP Objective Structure","9CNONBVO","Outside the BVACOP Objective Structure","REV","Revenue","R5032","Staircase Lighting HRA","02-PREMISES","Premises","02B","Energy costs","4000","Electricity","3719928","202309",28/11/2022 00:00:00,7381.51,"39564","Gas Companies","REDACTED DATA","KENT COUNTY COUNCIL (GAS & ELECTRIC)","",,"204269191"
"London Borough of Redbridge","http://opendatacommunities.org/doc/london-borough-council/redbridge","9BNONBVO","Outside the BVACOP Objective Structure","9CNONBVO","Outside the BVACOP Objective Structure","REV","Revenue","R5032","Staircase Lighting HRA","02-PREMISES","Premises","02B","Energy costs","4000","Electricity","3719928","202309",30/11/2022 00:00:00,99.82,"39564","Gas Companies","REDACTED DATA","KENT COUNTY COUNCIL (GAS & ELECTRIC)","",,"204269191"
"London Borough of Redbridge","http://opendatacommunities.org/doc/london-borough-council/redbridge","9BNONBVO","Outside the BVACOP Objective Structure","9CNONBVO","Outside the BVACOP Objective Structure","REV","Revenue","R5032","Staircase Lighting HRA","02-PREMISES","Premises","02B","Energy costs","4000","Electricity","3719928","202309",30/11/2022 00:00:00,90.6,"39564","Gas Companies","REDACTED DATA","KENT COUNTY COUNCIL (GAS & ELECTRIC)","",,"204269191"
"London Borough of Redbridge","http://opendatacommunities.org/doc/london-borough-council/redbridge","9BNONBVO","Outside the BVACOP Objective Structure","9CNONBVO","Outside the BVACOP Objective Structure","REV","Revenue","R5032","Staircase Lighting HRA","02-PREMISES","Premises","02B","Energy costs","4000","Electricity","3719928","202309",30/11/2022 00:00:00,152.74,"39564","Gas Companies","REDACTED DATA","KENT COUNTY COUNCIL (GAS & ELECTRIC)","",,"204269191"
"London Borough of Redbridge","http://opendatacommunities.org/doc/london-borough-council/redbridge","9BNONBVO","Outside the BVACOP Objective Structure","9CNONBVO","Outside the BVACOP Objective Structure","REV","Revenue","R5032","Staircase Lighting HRA","02-PREMISES","Premises","02B","Energy costs","4000","Electricity","3719928","202309",30/11/2022 00:00:00,-45.28,"39564","Gas Companies","REDACTED DATA","KENT COUNTY COUNCIL (GAS & ELECTRIC)","",,"204269191"
"London Borough of Redbridge","http://opendatacommunities.org/doc/london-borough-council/redbridge","9BNONBVO","Outside the BVACOP Objective Structure","9CNONBVO","Outside the BVACOP Objective Structure","REV","Revenue","R5032","Staircase Lighting HRA","02-PREMISES","Premises","02B","Energy costs","4000","Electricity","3719928","202309",30/11/2022 00:00:00,117.96,"39564","Gas Companies","REDACTED DATA","KENT COUNTY COUNCIL (GAS & ELECTRIC)","",,"204269191"
"London Borough of Redbridge","http://opendatacommunities.org/doc/london-borough-council/redbridge","9BNONBVO","Outside the BVACOP Objective Structure","9CNONBVO","Outside the BVACOP Objective Structure","REV","Revenue","R5032","Staircase Lighting HRA","02-PREMISES","Premises","02B","Energy costs","4000","Electricity","3719928","202309",30/11/2022 00:00:00,91.73,"39564","Gas Companies","REDACTED DATA","KENT COUNTY COUNCIL (GAS & ELECTRIC)","",,"204269191"
"London Borough of Redbridge","http://opendatacommunities.org/doc/london-borough-council/redbridge","9BNONBVO","Outside the BVACOP Objective Structure","9CNONBVO","Outside the BVACOP Objective Structure","REV","Revenue","R5032","Staircase Lighting HRA","02-PREMISES","Premises","02B","Energy costs","4000","Electricity","3719928","202309",30/11/2022 00:00:00,107.55,"39564","Gas Companies","REDACTED DATA","KENT COUNTY COUNCIL (GAS & ELECTRIC)","",,"204269191"
"London Borough of Redbridge","http://opendatacommunities.org/doc/london-borough-council/redbridge","9BNONBVO","Outside the BVACOP Objective Structure","9CNONBVO","Outside the BVACOP Objective Structure","REV","Revenue","R5032","Staircase Lighting HRA","02-PREMISES","Premises","02B","Energy costs","4000","Electricity","3719928","202309",30/11/2022 00:00:00,98.47,"39564","Gas Companies","REDACTED DATA","KENT COUNTY COUNCIL (GAS & ELECTRIC)","",,"204269191"
"London Borough of Redbridge","http://opendatacommunities.org/doc/london-borough-council/redbridge","9BNONBVO","Outside the BVACOP Objective Structure","9CNONBVO","Outside the BVACOP Objective Structure","REV","Revenue","R5032","Staircase Lighting HRA","02-PREMISES","Premises","02B","Energy costs","4000","Electricity","3719928","202309",30/11/2022 00:00:00,150.82,"39564","Gas Companies","REDACTED DATA","KENT COUNTY COUNCIL (GAS & ELECTRIC)","",,"204269191"
"London Borough of Redbridge","http://opendatacommunities.org/doc/london-borough-council/redbridge","9BNONBVO","Outside the BVACOP Objective Structure","9CNONBVO","Outside the BVACOP Objective Structure","REV","Revenue","R5032","Staircase Lighting HRA","02-PREMISES","Premises","02B","Energy costs","4000","Electricity","3719928","202309",30/11/2022 00:00:00,156.14,"39564","Gas Companies","REDACTED DATA","KENT COUNTY COUNCIL (GAS & ELECTRIC)","",,"204269191"
"London Borough of Redbridge","http://opendatacommunities.org/doc/london-borough-council/redbridge","9BNONBVO","Outside the BVACOP Objective Structure","9CNONBVO","Outside the BVACOP Objective Structure","REV","Revenue","R5032","Staircase Lighting HRA","02-PREMISES","Premises","02B","Energy costs","4000","Electricity","3719928","202309",30/11/2022 00:00:00,66.47,"39564","Gas Companies","REDACTED DATA","KENT COUNTY COUNCIL (GAS & ELECTRIC)","",,"204269191"
"London Borough of Redbridge","http://opendatacommunities.org/doc/london-borough-council/redbridge","9BNONBVO","Outside the BVACOP Objective Structure","9CNONBVO","Outside the BVACOP Objective Structure","REV","Revenue","R5032","Staircase Lighting HRA","02-PREMISES","Premises","02B","Energy costs","4000","Electricity","3719928","202309",27/10/2022 00:00:00,-54.39,"39564","Gas Companies","REDACTED DATA","KENT COUNTY COUNCIL (GAS & ELECTRIC)","",,"204269191"
"London Borough of Redbridge","http://opendatacommunities.org/doc/london-borough-council/redbridge","9BNONBVO","Outside the BVACOP Objective Structure","9CNONBVO","Outside the BVACOP Objective Structure","REV","Revenue","R5032","Staircase Lighting HRA","02-PREMISES","Premises","02B","Energy costs","4000","Electricity","3719928","202309",27/10/2022 00:00:00,-53.59,"39564","Gas Companies","REDACTED DATA","KENT COUNTY COUNCIL (GAS & ELECTRIC)","",,"204269191"
"London Borough of Redbridge","http://opendatacommunities.org/doc/london-borough-council/redbridge","9BNONBVO","Outside the BVACOP Objective Structure","9CNONBVO","Outside the BVACOP Objective Structure","REV","Revenue","R5032","Staircase Lighting HRA","02-PREMISES","Premises","02B","Energy costs","4000","Electricity","3719928","202309",27/10/2022 00:00:00,-44.43,"39564","Gas Companies","REDACTED DATA","KENT COUNTY COUNCIL (GAS & ELECTRIC)","",,"204269191"
"London Borough of Redbridge","http://opendatacommunities.org/doc/london-borough-council/redbridge","9BNONBVO","Outside the BVACOP Objective Structure","9CNONBVO","Outside the BVACOP Objective Structure","REV","Revenue","R5032","Staircase Lighting HRA","02-PREMISES","Premises","02B","Energy costs","4000","Electricity","3719928","202309",27/10/2022 00:00:00,-44.42,"39564","Gas Companies","REDACTED DATA","KENT COUNTY COUNCIL (GAS & ELECTRIC)","",,"204269191"
"London Borough of Redbridge","http://opendatacommunities.org/doc/london-borough-council/redbridge","9BNONBVO","Outside the BVACOP Objective Structure","9CNONBVO","Outside the BVACOP Objective Structure","REV","Revenue","R5032","Staircase Lighting HRA","02-PREMISES","Premises","02B","Energy costs","4000","Electricity","3719928","202309",27/10/2022 00:00:00,-67.1,"39564","Gas Companies","REDACTED DATA","KENT COUNTY COUNCIL (GAS & ELECTRIC)","",,"204269191"
"London Borough of Redbridge","http://opendatacommunities.org/doc/london-borough-council/redbridge","9BNONBVO","Outside the BVACOP Objective Structure","9CNONBVO","Outside the BVACOP Objective Structure","REV","Revenue","R5032","Staircase Lighting HRA","02-PREMISES","Premises","02B","Energy costs","4000","Electricity","3719928","202309",27/10/2022 00:00:00,-65.3,"39564","Gas Companies","REDACTED DATA","KENT COUNTY COUNCIL (GAS & ELECTRIC)","",,"204269191"
"London Borough of Redbridge","http://opendatacommunities.org/doc/london-borough-council/redbridge","9BNONBVO","Outside the BVACOP Objective Structure","9CNONBVO","Outside the BVACOP Objective Structure","REV","Revenue","R5032","Staircase Lighting HRA","02-PREMISES","Premises","02B","Energy costs","4000","Electricity","3719928","202309",28/11/2022 00:00:00,162.04,"39564","Gas Companies","REDACTED DATA","KENT COUNTY COUNCIL (GAS & ELECTRIC)","",,"204269191"
"London Borough of Redbridge","http://opendatacommunities.org/doc/london-borough-council/redbridge","9BNONBVO","Outside the BVACOP Objective Structure","9CNONBVO","Outside the BVACOP Objective Structure","REV","Revenue","R5032","Staircase Lighting HRA","02-PREMISES","Premises","02B","Energy costs","4000","Electricity","3719928","202309",28/11/2022 00:00:00,159.16,"39564","Gas Companies","REDACTED DATA","KENT COUNTY COUNCIL (GAS & ELECTRIC)","",,"204269191"
"London Borough of Redbridge","http://opendatacommunities.org/doc/london-borough-council/redbridge","9BNONBVO","Outside the BVACOP Objective Structure","9CNONBVO","Outside the BVACOP Objective Structure","REV","Revenue","R5032","Staircase Lighting HRA","02-PREMISES","Premises","02B","Energy costs","4000","Electricity","3719928","202309",28/11/2022 00:00:00,1214.19,"39564","Gas Companies","REDACTED DATA","KENT COUNTY COUNCIL (GAS & ELECTRIC)","",,"204269191"
"London Borough of Redbridge","http://opendatacommunities.org/doc/london-borough-council/redbridge","9BNONBVO","Outside the BVACOP Objective Structure","9CNONBVO","Outside the BVACOP Objective Structure","REV","Revenue","R5032","Staircase Lighting HRA","02-PREMISES","Premises","02B","Energy costs","4000","Electricity","3719928","202309",28/11/2022 00:00:00,-692.85,"39564","Gas Companies","REDACTED DATA","KENT COUNTY COUNCIL (GAS & ELECTRIC)","",,"204269191"
"London Borough of Redbridge","http://opendatacommunities.org/doc/london-borough-council/redbridge","9BNONBVO","Outside the BVACOP Objective Structure","9CNONBVO","Outside the BVACOP Objective Structure","REV","Revenue","R5032","Staircase Lighting HRA","02-PREMISES","Premises","02B","Energy costs","4000","Electricity","3719928","202309",28/11/2022 00:00:00,-746.73,"39564","Gas Companies","REDACTED DATA","KENT COUNTY COUNCIL (GAS & ELECTRIC)","",,"204269191"
"London Borough of Redbridge","http://opendatacommunities.org/doc/london-borough-council/redbridge","9BNONBVO","Outside the BVACOP Objective Structure","9CNONBVO","Outside the BVACOP Objective Structure","REV","Revenue","R5032","Staircase Lighting HRA","02-PREMISES","Premises","02B","Energy costs","4000","Electricity","3719928","202309",30/11/2022 00:00:00,-43.81,"39564","Gas Companies","REDACTED DATA","KENT COUNTY COUNCIL (GAS & ELECTRIC)","",,"204269191"
"London Borough of Redbridge","http://opendatacommunities.org/doc/london-borough-council/redbridge","9BNONBVO","Outside the BVACOP Objective Structure","9CNONBVO","Outside the BVACOP Objective Structure","REV","Revenue","R5032","Staircase Lighting HRA","02-PREMISES","Premises","02B","Energy costs","4000","Electricity","3719928","202309",30/11/2022 00:00:00,-45.43,"39564","Gas Companies","REDACTED DATA","KENT COUNTY COUNCIL (GAS & ELECTRIC)","",,"204269191"
"London Borough of Redbridge","http://opendatacommunities.org/doc/london-borough-council/redbridge","9BNONBVO","Outside the BVACOP Objective Structure","9CNONBVO","Outside the BVACOP Objective Structure","REV","Revenue","R5032","Staircase Lighting HRA","02-PREMISES","Premises","02B","Energy costs","4000","Electricity","3719928","202309",30/11/2022 00:00:00,-45.52,"39564","Gas Companies","REDACTED DATA","KENT COUNTY COUNCIL (GAS & ELECTRIC)","",,"204269191"
"London Borough of Redbridge","http://opendatacommunities.org/doc/london-borough-council/redbridge","9BNONBVO","Outside the BVACOP Objective Structure","9CNONBVO","Outside the BVACOP Objective Structure","REV","Revenue","R5032","Staircase Lighting HRA","02-PREMISES","Premises","02B","Energy costs","4000","Electricity","3719928","202309",02/12/2022 00:00:00,134.51,"39564","Gas Companies","REDACTED DATA","KENT COUNTY COUNCIL (GAS & ELECTRIC)","",,"204269191"
"London Borough of Redbridge","http://opendatacommunities.org/doc/london-borough-council/redbridge","9BNONBVO","Outside the BVACOP Objective Structure","9CNONBVO","Outside the BVACOP Objective Structure","REV","Revenue","R5032","Staircase Lighting HRA","02-PREMISES","Premises","02B","Energy costs","4000","Electricity","3719928","202309",01/12/2022 00:00:00,2988.24,"39564","Gas Companies","REDACTED DATA","KENT COUNTY COUNCIL (GAS & ELECTRIC)","",,"204269191"
"London Borough of Redbridge","http://opendatacommunities.org/doc/london-borough-council/redbridge","9BNONBVO","Outside the BVACOP Objective Structure","9CNONBVO","Outside the BVACOP Objective Structure","REV","Revenue","R5032","Staircase Lighting HRA","02-PREMISES","Premises","02B","Energy costs","4000","Electricity","3719928","202309",01/12/2022 00:00:00,93.17,"39564","Gas Companies","REDACTED DATA","KENT COUNTY COUNCIL (GAS & ELECTRIC)","",,"204269191"
"London Borough of Redbridge","http://opendatacommunities.org/doc/london-borough-council/redbridge","9BNONBVO","Outside the BVACOP Objective Structure","9CNONBVO","Outside the BVACOP Objective Structure","REV","Revenue","R5032","Staircase Lighting HRA","02-PREMISES","Premises","02B","Energy costs","4000","Electricity","3719928","202309",30/11/2022 00:00:00,98.76,"39564","Gas Companies","REDACTED DATA","KENT COUNTY COUNCIL (GAS & ELECTRIC)","",,"204269191"
"London Borough of Redbridge","http://opendatacommunities.org/doc/london-borough-council/redbridge","9BNONBVO","Outside the BVACOP Objective Structure","9CNONBVO","Outside the BVACOP Objective Structure","REV","Revenue","R5032","Staircase Lighting HRA","02-PREMISES","Premises","02B","Energy costs","4000","Electricity","3719928","202309",30/11/2022 00:00:00,108.67,"39564","Gas Companies","REDACTED DATA","KENT COUNTY COUNCIL (GAS & ELECTRIC)","",,"204269191"
"London Borough of Redbridge","http://opendatacommunities.org/doc/london-borough-council/redbridge","9BNONBVO","Outside the BVACOP Objective Structure","9CNONBVO","Outside the BVACOP Objective Structure","REV","Revenue","R5032","Staircase Lighting HRA","02-PREMISES","Premises","02B","Energy costs","4000","Electricity","3719928","202309",30/11/2022 00:00:00,94.11,"39564","Gas Companies","REDACTED DATA","KENT COUNTY COUNCIL (GAS & ELECTRIC)","",,"204269191"
"London Borough of Redbridge","http://opendatacommunities.org/doc/london-borough-council/redbridge","9BNONBVO","Outside the BVACOP Objective Structure","9CNONBVO","Outside the BVACOP Objective Structure","REV","Revenue","R5032","Staircase Lighting HRA","02-PREMISES","Premises","02B","Energy costs","4000","Electricity","3719928","202309",30/11/2022 00:00:00,146.77,"39564","Gas Companies","REDACTED DATA","KENT COUNTY COUNCIL (GAS & ELECTRIC)","",,"204269191"
"London Borough of Redbridge","http://opendatacommunities.org/doc/london-borough-council/redbridge","9BNONBVO","Outside the BVACOP Objective Structure","9CNONBVO","Outside the BVACOP Objective Structure","REV","Revenue","R5032","Staircase Lighting HRA","02-PREMISES","Premises","02B","Energy costs","4000","Electricity","3719928","202309",28/11/2022 00:00:00,101.64,"39564","Gas Companies","REDACTED DATA","KENT COUNTY COUNCIL (GAS & ELECTRIC)","",,"204269191"
"London Borough of Redbridge","http://opendatacommunities.org/doc/london-borough-council/redbridge","9BNONBVO","Outside the BVACOP Objective Structure","9CNONBVO","Outside the BVACOP Objective Structure","REV","Revenue","R5032","Staircase Lighting HRA","02-PREMISES","Premises","02B","Energy costs","4000","Electricity","3719928","202309",29/11/2022 00:00:00,47.09,"39564","Gas Companies","REDACTED DATA","KENT COUNTY COUNCIL (GAS & ELECTRIC)","",,"204269191"
"London Borough of Redbridge","http://opendatacommunities.org/doc/london-borough-council/redbridge","9BNONBVO","Outside the BVACOP Objective Structure","9CNONBVO","Outside the BVACOP Objective Structure","REV","Revenue","R5032","Staircase Lighting HRA","02-PREMISES","Premises","02B","Energy costs","4000","Electricity","3719928","202309",28/11/2022 00:00:00,95.62,"39564","Gas Companies","REDACTED DATA","KENT COUNTY COUNCIL (GAS & ELECTRIC)","",,"204269191"
"London Borough of Redbridge","http://opendatacommunities.org/doc/london-borough-council/redbridge","9BNONBVO","Outside the BVACOP Objective Structure","9CNONBVO","Outside the BVACOP Objective Structure","REV","Revenue","R5032","Staircase Lighting HRA","02-PREMISES","Premises","02B","Energy costs","4000","Electricity","3719928","202309",28/11/2022 00:00:00,90.99,"39564","Gas Companies","REDACTED DATA","KENT COUNTY COUNCIL (GAS & ELECTRIC)","",,"204269191"
"London Borough of Redbridge","http://opendatacommunities.org/doc/london-borough-council/redbridge","9BNONBVO","Outside the BVACOP Objective Structure","9CNONBVO","Outside the BVACOP Objective Structure","REV","Revenue","R5032","Staircase Lighting HRA","02-PREMISES","Premises","02B","Energy costs","4000","Electricity","3719928","202309",28/11/2022 00:00:00,98.71,"39564","Gas Companies","REDACTED DATA","KENT COUNTY COUNCIL (GAS & ELECTRIC)","",,"204269191"
"London Borough of Redbridge","http://opendatacommunities.org/doc/london-borough-council/redbridge","9BNONBVO","Outside the BVACOP Objective Structure","9CNONBVO","Outside the BVACOP Objective Structure","REV","Revenue","R5032","Staircase Lighting HRA","02-PREMISES","Premises","02B","Energy costs","4000","Electricity","3719928","202309",30/11/2022 00:00:00,-45.52,"39564","Gas Companies","REDACTED DATA","KENT COUNTY COUNCIL (GAS & ELECTRIC)","",,"204269191"
"London Borough of Redbridge","http://opendatacommunities.org/doc/london-borough-council/redbridge","9BNONBVO","Outside the BVACOP Objective Structure","9CNONBVO","Outside the BVACOP Objective Structure","REV","Revenue","R5032","Staircase Lighting HRA","02-PREMISES","Premises","02B","Energy costs","4000","Electricity","3719928","202309",30/11/2022 00:00:00,115.89,"39564","Gas Companies","REDACTED DATA","KENT COUNTY COUNCIL (GAS & ELECTRIC)","",,"204269191"
"London Borough of Redbridge","http://opendatacommunities.org/doc/london-borough-council/redbridge","9BNONBVO","Outside the BVACOP Objective Structure","9CNONBVO","Outside the BVACOP Objective Structure","REV","Revenue","R5032","Staircase Lighting HRA","02-PREMISES","Premises","02B","Energy costs","4000","Electricity","3719928","202309",30/11/2022 00:00:00,96.67,"39564","Gas Companies","REDACTED DATA","KENT COUNTY COUNCIL (GAS & ELECTRIC)","",,"204269191"
"London Borough of Redbridge","http://opendatacommunities.org/doc/london-borough-council/redbridge","9BNONBVO","Outside the BVACOP Objective Structure","9CNONBVO","Outside the BVACOP Objective Structure","REV","Revenue","R5032","Staircase Lighting HRA","02-PREMISES","Premises","02B","Energy costs","4000","Electricity","3719928","202309",28/11/2022 00:00:00,227.93,"39564","Gas Companies","REDACTED DATA","KENT COUNTY COUNCIL (GAS & ELECTRIC)","",,"204269191"
"London Borough of Redbridge","http://opendatacommunities.org/doc/london-borough-council/redbridge","9BNONBVO","Outside the BVACOP Objective Structure","9CNONBVO","Outside the BVACOP Objective Structure","REV","Revenue","R5032","Staircase Lighting HRA","02-PREMISES","Premises","02B","Energy costs","4000","Electricity","3719928","202309",30/11/2022 00:00:00,59.99,"39564","Gas Companies","REDACTED DATA","KENT COUNTY COUNCIL (GAS & ELECTRIC)","",,"204269191"
"London Borough of Redbridge","http://opendatacommunities.org/doc/london-borough-council/redbridge","9BNONBVO","Outside the BVACOP Objective Structure","9CNONBVO","Outside the BVACOP Objective Structure","REV","Revenue","R5032","Staircase Lighting HRA","02-PREMISES","Premises","02B","Energy costs","4000","Electricity","3719928","202309",30/11/2022 00:00:00,90.34,"39564","Gas Companies","REDACTED DATA","KENT COUNTY COUNCIL (GAS & ELECTRIC)","",,"204269191"
"London Borough of Redbridge","http://opendatacommunities.org/doc/london-borough-council/redbridge","9BNONBVO","Outside the BVACOP Objective Structure","9CNONBVO","Outside the BVACOP Objective Structure","REV","Revenue","R5032","Staircase Lighting HRA","02-PREMISES","Premises","02B","Energy costs","4000","Electricity","3719928","202309",30/11/2022 00:00:00,89.03,"39564","Gas Companies","REDACTED DATA","KENT COUNTY COUNCIL (GAS & ELECTRIC)","",,"204269191"
"London Borough of Redbridge","http://opendatacommunities.org/doc/london-borough-council/redbridge","9BNONBVO","Outside the BVACOP Objective Structure","9CNONBVO","Outside the BVACOP Objective Structure","REV","Revenue","R5032","Staircase Lighting HRA","02-PREMISES","Premises","02B","Energy costs","4000","Electricity","3719928","202309",30/11/2022 00:00:00,79.32,"39564","Gas Companies","REDACTED DATA","KENT COUNTY COUNCIL (GAS & ELECTRIC)","",,"204269191"
"London Borough of Redbridge","http://opendatacommunities.org/doc/london-borough-council/redbridge","9BNONBVO","Outside the BVACOP Objective Structure","9CNONBVO","Outside the BVACOP Objective Structure","REV","Revenue","R5032","Staircase Lighting HRA","02-PREMISES","Premises","02B","Energy costs","4000","Electricity","3719928","202309",28/11/2022 00:00:00,91.08,"39564","Gas Companies","REDACTED DATA","KENT COUNTY COUNCIL (GAS & ELECTRIC)","",,"204269191"
"London Borough of Redbridge","http://opendatacommunities.org/doc/london-borough-council/redbridge","9BNONBVO","Outside the BVACOP Objective Structure","9CNONBVO","Outside the BVACOP Objective Structure","REV","Revenue","R5032","Staircase Lighting HRA","02-PREMISES","Premises","02B","Energy costs","4000","Electricity","3719928","202309",29/11/2022 00:00:00,53.27,"39564","Gas Companies","REDACTED DATA","KENT COUNTY COUNCIL (GAS & ELECTRIC)","",,"204269191"
"London Borough of Redbridge","http://opendatacommunities.org/doc/london-borough-council/redbridge","9BNONBVO","Outside the BVACOP Objective Structure","9CNONBVO","Outside the BVACOP Objective Structure","REV","Revenue","R5032","Staircase Lighting HRA","02-PREMISES","Premises","02B","Energy costs","4000","Electricity","3719928","202309",28/11/2022 00:00:00,157.33,"39564","Gas Companies","REDACTED DATA","KENT COUNTY COUNCIL (GAS & ELECTRIC)","",,"204269191"
"London Borough of Redbridge","http://opendatacommunities.org/doc/london-borough-council/redbridge","9BNONBVO","Outside the BVACOP Objective Structure","9CNONBVO","Outside the BVACOP Objective Structure","REV","Revenue","R5032","Staircase Lighting HRA","02-PREMISES","Premises","02B","Energy costs","4000","Electricity","3719928","202309",28/11/2022 00:00:00,112.08,"39564","Gas Companies","REDACTED DATA","KENT COUNTY COUNCIL (GAS & ELECTRIC)","",,"204269191"
"London Borough of Redbridge","http://opendatacommunities.org/doc/london-borough-council/redbridge","9BNONBVO","Outside the BVACOP Objective Structure","9CNONBVO","Outside the BVACOP Objective Structure","REV","Revenue","R5032","Staircase Lighting HRA","02-PREMISES","Premises","02B","Energy costs","4000","Electricity","3719928","202309",28/11/2022 00:00:00,78.63,"39564","Gas Companies","REDACTED DATA","KENT COUNTY COUNCIL (GAS & ELECTRIC)","",,"204269191"
"London Borough of Redbridge","http://opendatacommunities.org/doc/london-borough-council/redbridge","9BNONBVO","Outside the BVACOP Objective Structure","9CNONBVO","Outside the BVACOP Objective Structure","REV","Revenue","R5032","Staircase Lighting HRA","02-PREMISES","Premises","02B","Energy costs","4000","Electricity","3719928","202309",28/11/2022 00:00:00,109.72,"39564","Gas Companies","REDACTED DATA","KENT COUNTY COUNCIL (GAS & ELECTRIC)","",,"204269191"
"London Borough of Redbridge","http://opendatacommunities.org/doc/london-borough-council/redbridge","9BNONBVO","Outside the BVACOP Objective Structure","9CNONBVO","Outside the BVACOP Objective Structure","REV","Revenue","R5032","Staircase Lighting HRA","02-PREMISES","Premises","02B","Energy costs","4000","Electricity","3719928","202309",27/10/2022 00:00:00,49.41,"39564","Gas Companies","REDACTED DATA","KENT COUNTY COUNCIL (GAS & ELECTRIC)","",,"204269191"
"London Borough of Redbridge","http://opendatacommunities.org/doc/london-borough-council/redbridge","9BNONBVO","Outside the BVACOP Objective Structure","9CNONBVO","Outside the BVACOP Objective Structure","REV","Revenue","R5032","Staircase Lighting HRA","02-PREMISES","Premises","02B","Energy costs","4000","Electricity","3719928","202309",27/10/2022 00:00:00,45.66,"39564","Gas Companies","REDACTED DATA","KENT COUNTY COUNCIL (GAS & ELECTRIC)","",,"204269191"
"London Borough of Redbridge","http://opendatacommunities.org/doc/london-borough-council/redbridge","9BNONBVO","Outside the BVACOP Objective Structure","9CNONBVO","Outside the BVACOP Objective Structure","REV","Revenue","R5032","Staircase Lighting HRA","02-PREMISES","Premises","02B","Energy costs","4000","Electricity","3719928","202309",27/10/2022 00:00:00,44.24,"39564","Gas Companies","REDACTED DATA","KENT COUNTY COUNCIL (GAS & ELECTRIC)","",,"204269191"
"London Borough of Redbridge","http://opendatacommunities.org/doc/london-borough-council/redbridge","9BNONBVO","Outside the BVACOP Objective Structure","9CNONBVO","Outside the BVACOP Objective Structure","REV","Revenue","R5032","Staircase Lighting HRA","02-PREMISES","Premises","02B","Energy costs","4000","Electricity","3719928","202309",27/10/2022 00:00:00,13.85,"39564","Gas Companies","REDACTED DATA","KENT COUNTY COUNCIL (GAS & ELECTRIC)","",,"204269191"
"London Borough of Redbridge","http://opendatacommunities.org/doc/london-borough-council/redbridge","9BNONBVO","Outside the BVACOP Objective Structure","9CNONBVO","Outside the BVACOP Objective Structure","REV","Revenue","R5032","Staircase Lighting HRA","02-PREMISES","Premises","02B","Energy costs","4000","Electricity","3719928","202309",30/11/2022 00:00:00,74.89,"39564","Gas Companies","REDACTED DATA","KENT COUNTY COUNCIL (GAS & ELECTRIC)","",,"204269191"
"London Borough of Redbridge","http://opendatacommunities.org/doc/london-borough-council/redbridge","9BNONBVO","Outside the BVACOP Objective Structure","9CNONBVO","Outside the BVACOP Objective Structure","REV","Revenue","R5032","Staircase Lighting HRA","02-PREMISES","Premises","02B","Energy costs","4000","Electricity","3719928","202309",30/11/2022 00:00:00,50.95,"39564","Gas Companies","REDACTED DATA","KENT COUNTY COUNCIL (GAS & ELECTRIC)","",,"204269191"
"London Borough of Redbridge","http://opendatacommunities.org/doc/london-borough-council/redbridge","9BNONBVO","Outside the BVACOP Objective Structure","9CNONBVO","Outside the BVACOP Objective Structure","REV","Revenue","R5032","Staircase Lighting HRA","02-PREMISES","Premises","02B","Energy costs","4000","Electricity","3719928","202309",30/11/2022 00:00:00,95.14,"39564","Gas Companies","REDACTED DATA","KENT COUNTY COUNCIL (GAS & ELECTRIC)","",,"204269191"
"London Borough of Redbridge","http://opendatacommunities.org/doc/london-borough-council/redbridge","5BGFHOUSING","General Fund Housing","5CHOMELESS","Homelessness","REV","Revenue","R5630","HAC Temporary Accomodation","05-THIRD","Third Party Payments","05H","Private contractors","6900","Nightly Let Plus Charges","3719939","202309",04/12/2022 00:00:00,855,"31230","Employment and Recruitment Agencies","REDACTED DATA","ACCESS UK LTD T/AS ADAM","2343760","http://opencorporates.com/companies/gb/2343760","GB 108 2213 56"
"London Borough of Redbridge","http://opendatacommunities.org/doc/london-borough-council/redbridge","5BGFHOUSING","General Fund Housing","5CHOMELESS","Homelessness","REV","Revenue","R5630","HAC Temporary Accomodation","05-THIRD","Third Party Payments","05H","Private contractors","6900","Nightly Let Plus Charges","3719939","202309",04/12/2022 00:00:00,855,"31230","Employment and Recruitment Agencies","REDACTED DATA","ACCESS UK LTD T/AS ADAM","2343760","http://opencorporates.com/companies/gb/2343760","GB 108 2213 56"
"London Borough of Redbridge","http://opendatacommunities.org/doc/london-borough-council/redbridge","5BGFHOUSING","General Fund Housing","5CHOMELESS","Homelessness","REV","Revenue","R5630","HAC Temporary Accomodation","05-THIRD","Third Party Payments","05H","Private contractors","6900","Nightly Let Plus Charges","3719939","202309",04/12/2022 00:00:00,0,"31230","Employment and Recruitment Agencies","REDACTED DATA","ACCESS UK LTD T/AS ADAM","2343760","http://opencorporates.com/companies/gb/2343760","GB 108 2213 56"
"London Borough of Redbridge","http://opendatacommunities.org/doc/london-borough-council/redbridge","5BGFHOUSING","General Fund Housing","5CHOMELESS","Homelessness","REV","Revenue","R5630","HAC Temporary Accomodation","05-THIRD","Third Party Payments","05H","Private contractors","6900","Nightly Let Plus Charges","3719939","202309",04/12/2022 00:00:00,1140,"31230","Employment and Recruitment Agencies","REDACTED DATA","ACCESS UK LTD T/AS ADAM","2343760","http://opencorporates.com/companies/gb/2343760","GB 108 2213 56"
"London Borough of Redbridge","http://opendatacommunities.org/doc/london-borough-council/redbridge","5BGFHOUSING","General Fund Housing","5CHOMELESS","Homelessness","REV","Revenue","R5630","HAC Temporary Accomodation","05-THIRD","Third Party Payments","05H","Private contractors","6900","Nightly Let Plus Charges","3719939","202309",04/12/2022 00:00:00,0,"31230","Employment and Recruitment Agencies","REDACTED DATA","ACCESS UK LTD T/AS ADAM","2343760","http://opencorporates.com/companies/gb/2343760","GB 108 2213 56"
"London Borough of Redbridge","http://opendatacommunities.org/doc/london-borough-council/redbridge","5BGFHOUSING","General Fund Housing","5CHOMELESS","Homelessness","REV","Revenue","R5630","HAC Temporary Accomodation","05-THIRD","Third Party Payments","05H","Private contractors","6900","Nightly Let Plus Charges","3719939","202309",04/12/2022 00:00:00,855,"31230","Employment and Recruitment Agencies","REDACTED DATA","ACCESS UK LTD T/AS ADAM","2343760","http://opencorporates.com/companies/gb/2343760","GB 108 2213 56"
"London Borough of Redbridge","http://opendatacommunities.org/doc/london-borough-council/redbridge","5BGFHOUSING","General Fund Housing","5CHOMELESS","Homelessness","REV","Revenue","R5630","HAC Temporary Accomodation","05-THIRD","Third Party Payments","05H","Private contractors","6900","Nightly Let Plus Charges","3719939","202309",04/12/2022 00:00:00,972.6,"31230","Employment and Recruitment Agencies","REDACTED DATA","ACCESS UK LTD T/AS ADAM","2343760","http://opencorporates.com/companies/gb/2343760","GB 108 2213 56"
"London Borough of Redbridge","http://opendatacommunities.org/doc/london-borough-council/redbridge","5BGFHOUSING","General Fund Housing","5CHOMELESS","Homelessness","REV","Revenue","R5630","HAC Temporary Accomodation","05-THIRD","Third Party Payments","05H","Private contractors","6900","Nightly Let Plus Charges","3719939","202309",04/12/2022 00:00:00,0,"31230","Employment and Recruitment Agencies","REDACTED DATA","ACCESS UK LTD T/AS ADAM","2343760","http://opencorporates.com/companies/gb/2343760","GB 108 2213 56"
"London Borough of Redbridge","http://opendatacommunities.org/doc/london-borough-council/redbridge","5BGFHOUSING","General Fund Housing","5CHOMELESS","Homelessness","REV","Revenue","R5630","HAC Temporary Accomodation","05-THIRD","Third Party Payments","05H","Private contractors","6900","Nightly Let Plus Charges","3719939","202309",04/12/2022 00:00:00,855,"31230","Employment and Recruitment Agencies","REDACTED DATA","ACCESS UK LTD T/AS ADAM","2343760","http://opencorporates.com/companies/gb/2343760","GB 108 2213 56"
"London Borough of Redbridge","http://opendatacommunities.org/doc/london-borough-council/redbridge","5BGFHOUSING","General Fund Housing","5CHOMELESS","Homelessness","REV","Revenue","R5630","HAC Temporary Accomodation","05-THIRD","Third Party Payments","05H","Private contractors","6900","Nightly Let Plus Charges","3719939","202309",04/12/2022 00:00:00,0,"31230","Employment and Recruitment Agencies","REDACTED DATA","ACCESS UK LTD T/AS ADAM","2343760","http://opencorporates.com/companies/gb/2343760","GB 108 2213 56"
"London Borough of Redbridge","http://opendatacommunities.org/doc/london-borough-council/redbridge","5BGFHOUSING","General Fund Housing","5CHOMELESS","Homelessness","REV","Revenue","R5630","HAC Temporary Accomodation","05-THIRD","Third Party Payments","05H","Private contractors","6900","Nightly Let Plus Charges","3719939","202309",04/12/2022 00:00:00,0,"31230","Employment and Recruitment Agencies","REDACTED DATA","ACCESS UK LTD T/AS ADAM","2343760","http://opencorporates.com/companies/gb/2343760","GB 108 2213 56"
"London Borough of Redbridge","http://opendatacommunities.org/doc/london-borough-council/redbridge","9BNONBVO","Outside the BVACOP Objective Structure","9CNONBVO","Outside the BVACOP Objective Structure","REV","Revenue","R5032","Staircase Lighting HRA","02-PREMISES","Premises","02B","Energy costs","4000","Electricity","3719928","202309",27/10/2022 00:00:00,45.81,"39564","Gas Companies","REDACTED DATA","KENT COUNTY COUNCIL (GAS & ELECTRIC)","",,"204269191"
"London Borough of Redbridge","http://opendatacommunities.org/doc/london-borough-council/redbridge","9BNONBVO","Outside the BVACOP Objective Structure","9CNONBVO","Outside the BVACOP Objective Structure","REV","Revenue","R5032","Staircase Lighting HRA","02-PREMISES","Premises","02B","Energy costs","4000","Electricity","3719928","202309",27/10/2022 00:00:00,44.25,"39564","Gas Companies","REDACTED DATA","KENT COUNTY COUNCIL (GAS & ELECTRIC)","",,"204269191"
"London Borough of Redbridge","http://opendatacommunities.org/doc/london-borough-council/redbridge","9BNONBVO","Outside the BVACOP Objective Structure","9CNONBVO","Outside the BVACOP Objective Structure","REV","Revenue","R5032","Staircase Lighting HRA","02-PREMISES","Premises","02B","Energy costs","4000","Electricity","3719928","202309",30/11/2022 00:00:00,98.85,"39564","Gas Companies","REDACTED DATA","KENT COUNTY COUNCIL (GAS & ELECTRIC)","",,"204269191"
"London Borough of Redbridge","http://opendatacommunities.org/doc/london-borough-council/redbridge","9BNONBVO","Outside the BVACOP Objective Structure","9CNONBVO","Outside the BVACOP Objective Structure","REV","Revenue","R5032","Staircase Lighting HRA","02-PREMISES","Premises","02B","Energy costs","4000","Electricity","3719928","202309",30/11/2022 00:00:00,-43.81,"39564","Gas Companies","REDACTED DATA","KENT COUNTY COUNCIL (GAS & ELECTRIC)","",,"204269191"
"London Borough of Redbridge","http://opendatacommunities.org/doc/london-borough-council/redbridge","9BNONBVO","Outside the BVACOP Objective Structure","9CNONBVO","Outside the BVACOP Objective Structure","REV","Revenue","R5032","Staircase Lighting HRA","02-PREMISES","Premises","02B","Energy costs","4000","Electricity","3719928","202309",30/11/2022 00:00:00,108.8,"39564","Gas Companies","REDACTED DATA","KENT COUNTY COUNCIL (GAS & ELECTRIC)","",,"204269191"
"London Borough of Redbridge","http://opendatacommunities.org/doc/london-borough-council/redbridge","9BNONBVO","Outside the BVACOP Objective Structure","9CNONBVO","Outside the BVACOP Objective Structure","REV","Revenue","R5032","Staircase Lighting HRA","02-PREMISES","Premises","02B","Energy costs","4000","Electricity","3719928","202309",30/11/2022 00:00:00,77.69,"39564","Gas Companies","REDACTED DATA","KENT COUNTY COUNCIL (GAS & ELECTRIC)","",,"204269191"
"London Borough of Redbridge","http://opendatacommunities.org/doc/london-borough-council/redbridge","9BNONBVO","Outside the BVACOP Objective Structure","9CNONBVO","Outside the BVACOP Objective Structure","REV","Revenue","R5032","Staircase Lighting HRA","02-PREMISES","Premises","02B","Energy costs","4000","Electricity","3719928","202309",30/11/2022 00:00:00,97.39,"39564","Gas Companies","REDACTED DATA","KENT COUNTY COUNCIL (GAS & ELECTRIC)","",,"204269191"
"London Borough of Redbridge","http://opendatacommunities.org/doc/london-borough-council/redbridge","9BNONBVO","Outside the BVACOP Objective Structure","9CNONBVO","Outside the BVACOP Objective Structure","REV","Revenue","R5032","Staircase Lighting HRA","02-PREMISES","Premises","02B","Energy costs","4000","Electricity","3719928","202309",30/11/2022 00:00:00,79.62,"39564","Gas Companies","REDACTED DATA","KENT COUNTY COUNCIL (GAS & ELECTRIC)","",,"204269191"
"London Borough of Redbridge","http://opendatacommunities.org/doc/london-borough-council/redbridge","9BNONBVO","Outside the BVACOP Objective Structure","9CNONBVO","Outside the BVACOP Objective Structure","REV","Revenue","R5032","Staircase Lighting HRA","02-PREMISES","Premises","02B","Energy costs","4000","Electricity","3719928","202309",30/11/2022 00:00:00,95,"39564","Gas Companies","REDACTED DATA","KENT COUNTY COUNCIL (GAS & ELECTRIC)","",,"204269191"
"London Borough of Redbridge","http://opendatacommunities.org/doc/london-borough-council/redbridge","9BNONBVO","Outside the BVACOP Objective Structure","9CNONBVO","Outside the BVACOP Objective Structure","REV","Revenue","R5032","Staircase Lighting HRA","02-PREMISES","Premises","02B","Energy costs","4000","Electricity","3719928","202309",30/11/2022 00:00:00,120.28,"39564","Gas Companies","REDACTED DATA","KENT COUNTY COUNCIL (GAS & ELECTRIC)","",,"204269191"
"London Borough of Redbridge","http://opendatacommunities.org/doc/london-borough-council/redbridge","9BNONBVO","Outside the BVACOP Objective Structure","9CNONBVO","Outside the BVACOP Objective Structure","REV","Revenue","R5032","Staircase Lighting HRA","02-PREMISES","Premises","02B","Energy costs","4000","Electricity","3719928","202309",30/11/2022 00:00:00,-43.81,"39564","Gas Companies","REDACTED DATA","KENT COUNTY COUNCIL (GAS & ELECTRIC)","",,"204269191"
"London Borough of Redbridge","http://opendatacommunities.org/doc/london-borough-council/redbridge","9BNONBVO","Outside the BVACOP Objective Structure","9CNONBVO","Outside the BVACOP Objective Structure","REV","Revenue","R5032","Staircase Lighting HRA","02-PREMISES","Premises","02B","Energy costs","4000","Electricity","3719928","202309",30/11/2022 00:00:00,-45.43,"39564","Gas Companies","REDACTED DATA","KENT COUNTY COUNCIL (GAS & ELECTRIC)","",,"204269191"
"London Borough of Redbridge","http://opendatacommunities.org/doc/london-borough-council/redbridge","5BGFHOUSING","General Fund Housing","5CHOMELESS","Homelessness","REV","Revenue","R5630","HAC Temporary Accomodation","05-THIRD","Third Party Payments","05H","Private contractors","6900","Nightly Let Plus Charges","3719939","202309",04/12/2022 00:00:00,0,"31230","Employment and Recruitment Agencies","REDACTED DATA","ACCESS UK LTD T/AS ADAM","2343760","http://opencorporates.com/companies/gb/2343760","GB 108 2213 56"
"London Borough of Redbridge","http://opendatacommunities.org/doc/london-borough-council/redbridge","5BGFHOUSING","General Fund Housing","5CHOMELESS","Homelessness","REV","Revenue","R5630","HAC Temporary Accomodation","05-THIRD","Third Party Payments","05H","Private contractors","6900","Nightly Let Plus Charges","3719939","202309",04/12/2022 00:00:00,1818,"31230","Employment and Recruitment Agencies","REDACTED DATA","ACCESS UK LTD T/AS ADAM","2343760","http://opencorporates.com/companies/gb/2343760","GB 108 2213 56"
"London Borough of Redbridge","http://opendatacommunities.org/doc/london-borough-council/redbridge","5BGFHOUSING","General Fund Housing","5CHOMELESS","Homelessness","REV","Revenue","R5630","HAC Temporary Accomodation","05-THIRD","Third Party Payments","05H","Private contractors","6900","Nightly Let Plus Charges","3719939","202309",04/12/2022 00:00:00,1260,"31230","Employment and Recruitment Agencies","REDACTED DATA","ACCESS UK LTD T/AS ADAM","2343760","http://opencorporates.com/companies/gb/2343760","GB 108 2213 56"
"London Borough of Redbridge","http://opendatacommunities.org/doc/london-borough-council/redbridge","5BGFHOUSING","General Fund Housing","5CHOMELESS","Homelessness","REV","Revenue","R5630","HAC Temporary Accomodation","05-THIRD","Third Party Payments","05H","Private contractors","6900","Nightly Let Plus Charges","3719939","202309",04/12/2022 00:00:00,0,"31230","Employment and Recruitment Agencies","REDACTED DATA","ACCESS UK LTD T/AS ADAM","2343760","http://opencorporates.com/companies/gb/2343760","GB 108 2213 56"
"London Borough of Redbridge","http://opendatacommunities.org/doc/london-borough-council/redbridge","5BGFHOUSING","General Fund Housing","5CHOMELESS","Homelessness","REV","Revenue","R5630","HAC Temporary Accomodation","05-THIRD","Third Party Payments","05H","Private contractors","6900","Nightly Let Plus Charges","3719939","202309",04/12/2022 00:00:00,1560,"31230","Employment and Recruitment Agencies","REDACTED DATA","ACCESS UK LTD T/AS ADAM","2343760","http://opencorporates.com/companies/gb/2343760","GB 108 2213 56"
"London Borough of Redbridge","http://opendatacommunities.org/doc/london-borough-council/redbridge","5BGFHOUSING","General Fund Housing","5CHOMELESS","Homelessness","REV","Revenue","R5630","HAC Temporary Accomodation","05-THIRD","Third Party Payments","05H","Private contractors","6900","Nightly Let Plus Charges","3719939","202309",04/12/2022 00:00:00,927.9,"31230","Employment and Recruitment Agencies","REDACTED DATA","ACCESS UK LTD T/AS ADAM","2343760","http://opencorporates.com/companies/gb/2343760","GB 108 2213 56"
"London Borough of Redbridge","http://opendatacommunities.org/doc/london-borough-council/redbridge","5BGFHOUSING","General Fund Housing","5CHOMELESS","Homelessness","REV","Revenue","R5630","HAC Temporary Accomodation","05-THIRD","Third Party Payments","05H","Private contractors","6900","Nightly Let Plus Charges","3719939","202309",04/12/2022 00:00:00,0,"31230","Employment and Recruitment Agencies","REDACTED DATA","ACCESS UK LTD T/AS ADAM","2343760","http://opencorporates.com/companies/gb/2343760","GB 108 2213 56"
"London Borough of Redbridge","http://opendatacommunities.org/doc/london-borough-council/redbridge","5BGFHOUSING","General Fund Housing","5CHOMELESS","Homelessness","REV","Revenue","R5630","HAC Temporary Accomodation","05-THIRD","Third Party Payments","05H","Private contractors","6900","Nightly Let Plus Charges","3719939","202309",04/12/2022 00:00:00,855,"31230","Employment and Recruitment Agencies","REDACTED DATA","ACCESS UK LTD T/AS ADAM","2343760","http://opencorporates.com/companies/gb/2343760","GB 108 2213 56"
"London Borough of Redbridge","http://opendatacommunities.org/doc/london-borough-council/redbridge","5BGFHOUSING","General Fund Housing","5CHOMELESS","Homelessness","REV","Revenue","R5630","HAC Temporary Accomodation","05-THIRD","Third Party Payments","05H","Private contractors","6900","Nightly Let Plus Charges","3719939","202309",04/12/2022 00:00:00,0,"31230","Employment and Recruitment Agencies","REDACTED DATA","ACCESS UK LTD T/AS ADAM","2343760","http://opencorporates.com/companies/gb/2343760","GB 108 2213 56"
"London Borough of Redbridge","http://opendatacommunities.org/doc/london-borough-council/redbridge","5BGFHOUSING","General Fund Housing","5CHOMELESS","Homelessness","REV","Revenue","R5630","HAC Temporary Accomodation","05-THIRD","Third Party Payments","05H","Private contractors","6900","Nightly Let Plus Charges","3719939","202309",04/12/2022 00:00:00,0,"31230","Employment and Recruitment Agencies","REDACTED DATA","ACCESS UK LTD T/AS ADAM","2343760","http://opencorporates.com/companies/gb/2343760","GB 108 2213 56"
"London Borough of Redbridge","http://opendatacommunities.org/doc/london-borough-council/redbridge","5BGFHOUSING","General Fund Housing","5CHOMELESS","Homelessness","REV","Revenue","R5630","HAC Temporary Accomodation","05-THIRD","Third Party Payments","05H","Private contractors","6900","Nightly Let Plus Charges","3719939","202309",04/12/2022 00:00:00,1380,"31230","Employment and Recruitment Agencies","REDACTED DATA","ACCESS UK LTD T/AS ADAM","2343760","http://opencorporates.com/companies/gb/2343760","GB 108 2213 56"
"London Borough of Redbridge","http://opendatacommunities.org/doc/london-borough-council/redbridge","9BNONBVO","Outside the BVACOP Objective Structure","9CNONBVO","Outside the BVACOP Objective Structure","REV","Revenue","R5032","Staircase Lighting HRA","02-PREMISES","Premises","02B","Energy costs","4000","Electricity","3719928","202309",30/11/2022 00:00:00,-45.28,"39564","Gas Companies","REDACTED DATA","KENT COUNTY COUNCIL (GAS & ELECTRIC)","",,"204269191"
"London Borough of Redbridge","http://opendatacommunities.org/doc/london-borough-council/redbridge","9BNONBVO","Outside the BVACOP Objective Structure","9CNONBVO","Outside the BVACOP Objective Structure","REV","Revenue","R5032","Staircase Lighting HRA","02-PREMISES","Premises","02B","Energy costs","4000","Electricity","3719928","202309",30/11/2022 00:00:00,-45.28,"39564","Gas Companies","REDACTED DATA","KENT COUNTY COUNCIL (GAS & ELECTRIC)","",,"204269191"
"London Borough of Redbridge","http://opendatacommunities.org/doc/london-borough-council/redbridge","9BNONBVO","Outside the BVACOP Objective Structure","9CNONBVO","Outside the BVACOP Objective Structure","REV","Revenue","R5032","Staircase Lighting HRA","02-PREMISES","Premises","02B","Energy costs","4000","Electricity","3719928","202309",30/11/2022 00:00:00,-45.28,"39564","Gas Companies","REDACTED DATA","KENT COUNTY COUNCIL (GAS & ELECTRIC)","",,"204269191"
"London Borough of Redbridge","http://opendatacommunities.org/doc/london-borough-council/redbridge","9BNONBVO","Outside the BVACOP Objective Structure","9CNONBVO","Outside the BVACOP Objective Structure","REV","Revenue","R5032","Staircase Lighting HRA","02-PREMISES","Premises","02B","Energy costs","4000","Electricity","3719928","202309",30/11/2022 00:00:00,-45.52,"39564","Gas Companies","REDACTED DATA","KENT COUNTY COUNCIL (GAS & ELECTRIC)","",,"204269191"
"London Borough of Redbridge","http://opendatacommunities.org/doc/london-borough-council/redbridge","9BNONBVO","Outside the BVACOP Objective Structure","9CNONBVO","Outside the BVACOP Objective Structure","REV","Revenue","R5032","Staircase Lighting HRA","02-PREMISES","Premises","02B","Energy costs","4000","Electricity","3719928","202309",30/11/2022 00:00:00,-43.81,"39564","Gas Companies","REDACTED DATA","KENT COUNTY COUNCIL (GAS & ELECTRIC)","",,"204269191"
"London Borough of Redbridge","http://opendatacommunities.org/doc/london-borough-council/redbridge","9BNONBVO","Outside the BVACOP Objective Structure","9CNONBVO","Outside the BVACOP Objective Structure","REV","Revenue","R5032","Staircase Lighting HRA","02-PREMISES","Premises","02B","Energy costs","4000","Electricity","3719928","202309",30/11/2022 00:00:00,-45.28,"39564","Gas Companies","REDACTED DATA","KENT COUNTY COUNCIL (GAS & ELECTRIC)","",,"204269191"
"London Borough of Redbridge","http://opendatacommunities.org/doc/london-borough-council/redbridge","9BNONBVO","Outside the BVACOP Objective Structure","9CNONBVO","Outside the BVACOP Objective Structure","REV","Revenue","R5032","Staircase Lighting HRA","02-PREMISES","Premises","02B","Energy costs","4000","Electricity","3719928","202309",30/11/2022 00:00:00,-43.81,"39564","Gas Companies","REDACTED DATA","KENT COUNTY COUNCIL (GAS & ELECTRIC)","",,"204269191"
"London Borough of Redbridge","http://opendatacommunities.org/doc/london-borough-council/redbridge","9BNONBVO","Outside the BVACOP Objective Structure","9CNONBVO","Outside the BVACOP Objective Structure","REV","Revenue","R5032","Staircase Lighting HRA","02-PREMISES","Premises","02B","Energy costs","4000","Electricity","3719928","202309",30/11/2022 00:00:00,-45.53,"39564","Gas Companies","REDACTED DATA","KENT COUNTY COUNCIL (GAS & ELECTRIC)","",,"204269191"
"London Borough of Redbridge","http://opendatacommunities.org/doc/london-borough-council/redbridge","9BNONBVO","Outside the BVACOP Objective Structure","9CNONBVO","Outside the BVACOP Objective Structure","REV","Revenue","R5032","Staircase Lighting HRA","02-PREMISES","Premises","02B","Energy costs","4000","Electricity","3719928","202309",30/11/2022 00:00:00,-45.53,"39564","Gas Companies","REDACTED DATA","KENT COUNTY COUNCIL (GAS & ELECTRIC)","",,"204269191"
"London Borough of Redbridge","http://opendatacommunities.org/doc/london-borough-council/redbridge","9BNONBVO","Outside the BVACOP Objective Structure","9CNONBVO","Outside the BVACOP Objective Structure","REV","Revenue","R5032","Staircase Lighting HRA","02-PREMISES","Premises","02B","Energy costs","4000","Electricity","3719928","202309",30/11/2022 00:00:00,-45.28,"39564","Gas Companies","REDACTED DATA","KENT COUNTY COUNCIL (GAS & ELECTRIC)","",,"204269191"
"London Borough of Redbridge","http://opendatacommunities.org/doc/london-borough-council/redbridge","9BNONBVO","Outside the BVACOP Objective Structure","9CNONBVO","Outside the BVACOP Objective Structure","REV","Revenue","R5032","Staircase Lighting HRA","02-PREMISES","Premises","02B","Energy costs","4000","Electricity","3719928","202309",30/11/2022 00:00:00,-43.81,"39564","Gas Companies","REDACTED DATA","KENT COUNTY COUNCIL (GAS & ELECTRIC)","",,"204269191"
"London Borough of Redbridge","http://opendatacommunities.org/doc/london-borough-council/redbridge","9BNONBVO","Outside the BVACOP Objective Structure","9CNONBVO","Outside the BVACOP Objective Structure","REV","Revenue","R5032","Staircase Lighting HRA","02-PREMISES","Premises","02B","Energy costs","4000","Electricity","3719928","202309",30/11/2022 00:00:00,-65.7,"39564","Gas Companies","REDACTED DATA","KENT COUNTY COUNCIL (GAS & ELECTRIC)","",,"204269191"
"London Borough of Redbridge","http://opendatacommunities.org/doc/london-borough-council/redbridge","9BNONBVO","Outside the BVACOP Objective Structure","9CNONBVO","Outside the BVACOP Objective Structure","REV","Revenue","R5032","Staircase Lighting HRA","02-PREMISES","Premises","02B","Energy costs","4000","Electricity","3719928","202309",30/11/2022 00:00:00,93.67,"39564","Gas Companies","REDACTED DATA","KENT COUNTY COUNCIL (GAS & ELECTRIC)","",,"204269191"
"London Borough of Redbridge","http://opendatacommunities.org/doc/london-borough-council/redbridge","9BNONBVO","Outside the BVACOP Objective Structure","9CNONBVO","Outside the BVACOP Objective Structure","REV","Revenue","R5032","Staircase Lighting HRA","02-PREMISES","Premises","02B","Energy costs","4000","Electricity","3719928","202309",30/11/2022 00:00:00,146.69,"39564","Gas Companies","REDACTED DATA","KENT COUNTY COUNCIL (GAS & ELECTRIC)","",,"204269191"
"London Borough of Redbridge","http://opendatacommunities.org/doc/london-borough-council/redbridge","9BNONBVO","Outside the BVACOP Objective Structure","9CNONBVO","Outside the BVACOP Objective Structure","REV","Revenue","R5032","Staircase Lighting HRA","02-PREMISES","Premises","02B","Energy costs","4000","Electricity","3719928","202309",30/11/2022 00:00:00,313.52,"39564","Gas Companies","REDACTED DATA","KENT COUNTY COUNCIL (GAS & ELECTRIC)","",,"204269191"
"London Borough of Redbridge","http://opendatacommunities.org/doc/london-borough-council/redbridge","9BNONBVO","Outside the BVACOP Objective Structure","9CNONBVO","Outside the BVACOP Objective Structure","REV","Revenue","R5032","Staircase Lighting HRA","02-PREMISES","Premises","02B","Energy costs","4000","Electricity","3719928","202309",30/11/2022 00:00:00,78.64,"39564","Gas Companies","REDACTED DATA","KENT COUNTY COUNCIL (GAS & ELECTRIC)","",,"204269191"
"London Borough of Redbridge","http://opendatacommunities.org/doc/london-borough-council/redbridge","9BNONBVO","Outside the BVACOP Objective Structure","9CNONBVO","Outside the BVACOP Objective Structure","REV","Revenue","R5032","Staircase Lighting HRA","02-PREMISES","Premises","02B","Energy costs","4000","Electricity","3719928","202309",30/11/2022 00:00:00,48.79,"39564","Gas Companies","REDACTED DATA","KENT COUNTY COUNCIL (GAS & ELECTRIC)","",,"204269191"
"London Borough of Redbridge","http://opendatacommunities.org/doc/london-borough-council/redbridge","9BNONBVO","Outside the BVACOP Objective Structure","9CNONBVO","Outside the BVACOP Objective Structure","REV","Revenue","R5032","Staircase Lighting HRA","02-PREMISES","Premises","02B","Energy costs","4000","Electricity","3719928","202309",30/11/2022 00:00:00,130.61,"39564","Gas Companies","REDACTED DATA","KENT COUNTY COUNCIL (GAS & ELECTRIC)","",,"204269191"
"London Borough of Redbridge","http://opendatacommunities.org/doc/london-borough-council/redbridge","9BNONBVO","Outside the BVACOP Objective Structure","9CNONBVO","Outside the BVACOP Objective Structure","REV","Revenue","R5032","Staircase Lighting HRA","02-PREMISES","Premises","02B","Energy costs","4000","Electricity","3719928","202309",28/11/2022 00:00:00,-641.98,"39564","Gas Companies","REDACTED DATA","KENT COUNTY COUNCIL (GAS & ELECTRIC)","",,"204269191"
"London Borough of Redbridge","http://opendatacommunities.org/doc/london-borough-council/redbridge","9BNONBVO","Outside the BVACOP Objective Structure","9CNONBVO","Outside the BVACOP Objective Structure","REV","Revenue","R5032","Staircase Lighting HRA","02-PREMISES","Premises","02B","Energy costs","4000","Electricity","3719928","202309",28/11/2022 00:00:00,-849.58,"39564","Gas Companies","REDACTED DATA","KENT COUNTY COUNCIL (GAS & ELECTRIC)","",,"204269191"
"London Borough of Redbridge","http://opendatacommunities.org/doc/london-borough-council/redbridge","9BNONBVO","Outside the BVACOP Objective Structure","9CNONBVO","Outside the BVACOP Objective Structure","REV","Revenue","R5032","Staircase Lighting HRA","02-PREMISES","Premises","02B","Energy costs","4000","Electricity","3719928","202309",29/11/2022 00:00:00,-99.87,"39564","Gas Companies","REDACTED DATA","KENT COUNTY COUNCIL (GAS & ELECTRIC)","",,"204269191"
"London Borough of Redbridge","http://opendatacommunities.org/doc/london-borough-council/redbridge","9BNONBVO","Outside the BVACOP Objective Structure","9CNONBVO","Outside the BVACOP Objective Structure","REV","Revenue","R5032","Staircase Lighting HRA","02-PREMISES","Premises","02B","Energy costs","4000","Electricity","3719928","202309",30/11/2022 00:00:00,-74.27,"39564","Gas Companies","REDACTED DATA","KENT COUNTY COUNCIL (GAS & ELECTRIC)","",,"204269191"
"London Borough of Redbridge","http://opendatacommunities.org/doc/london-borough-council/redbridge","9BNONBVO","Outside the BVACOP Objective Structure","9CNONBVO","Outside the BVACOP Objective Structure","REV","Revenue","R5032","Staircase Lighting HRA","02-PREMISES","Premises","02B","Energy costs","4000","Electricity","3719928","202309",30/11/2022 00:00:00,-45.53,"39564","Gas Companies","REDACTED DATA","KENT COUNTY COUNCIL (GAS & ELECTRIC)","",,"204269191"
"London Borough of Redbridge","http://opendatacommunities.org/doc/london-borough-council/redbridge","9BNONBVO","Outside the BVACOP Objective Structure","9CNONBVO","Outside the BVACOP Objective Structure","REV","Revenue","R5114","Shu HRA Expenses","02-PREMISES","Premises","02B","Energy costs","4000","Electricity","3719928","202309",29/11/2022 00:00:00,760.58,"39564","Gas Companies","REDACTED DATA","KENT COUNTY COUNCIL (GAS & ELECTRIC)","",,"204269191"
"London Borough of Redbridge","http://opendatacommunities.org/doc/london-borough-council/redbridge","9BNONBVO","Outside the BVACOP Objective Structure","9CNONBVO","Outside the BVACOP Objective Structure","REV","Revenue","R5114","Shu HRA Expenses","02-PREMISES","Premises","02B","Energy costs","4000","Electricity","3719928","202309",28/11/2022 00:00:00,883.16,"39564","Gas Companies","REDACTED DATA","KENT COUNTY COUNCIL (GAS & ELECTRIC)","",,"204269191"
"London Borough of Redbridge","http://opendatacommunities.org/doc/london-borough-council/redbridge","9BNONBVO","Outside the BVACOP Objective Structure","9CNONBVO","Outside the BVACOP Objective Structure","REV","Revenue","R5114","Shu HRA Expenses","02-PREMISES","Premises","02B","Energy costs","4000","Electricity","3719928","202309",28/11/2022 00:00:00,2087.36,"39564","Gas Companies","REDACTED DATA","KENT COUNTY COUNCIL (GAS & ELECTRIC)","",,"204269191"
"London Borough of Redbridge","http://opendatacommunities.org/doc/london-borough-council/redbridge","9BNONBVO","Outside the BVACOP Objective Structure","9CNONBVO","Outside the BVACOP Objective Structure","REV","Revenue","R5114","Shu HRA Expenses","02-PREMISES","Premises","02B","Energy costs","4000","Electricity","3719928","202309",28/11/2022 00:00:00,296.85,"39564","Gas Companies","REDACTED DATA","KENT COUNTY COUNCIL (GAS & ELECTRIC)","",,"204269191"
"London Borough of Redbridge","http://opendatacommunities.org/doc/london-borough-council/redbridge","9BNONBVO","Outside the BVACOP Objective Structure","9CNONBVO","Outside the BVACOP Objective Structure","REV","Revenue","R5114","Shu HRA Expenses","02-PREMISES","Premises","02B","Energy costs","4000","Electricity","3719928","202309",29/11/2022 00:00:00,-714.66,"39564","Gas Companies","REDACTED DATA","KENT COUNTY COUNCIL (GAS & ELECTRIC)","",,"204269191"
"London Borough of Redbridge","http://opendatacommunities.org/doc/london-borough-council/redbridge","9BNONBVO","Outside the BVACOP Objective Structure","9CNONBVO","Outside the BVACOP Objective Structure","REV","Revenue","R5114","Shu HRA Expenses","02-PREMISES","Premises","02B","Energy costs","4000","Electricity","3719928","202309",29/11/2022 00:00:00,-680.5,"39564","Gas Companies","REDACTED DATA","KENT COUNTY COUNCIL (GAS & ELECTRIC)","",,"204269191"
"London Borough of Redbridge","http://opendatacommunities.org/doc/london-borough-council/redbridge","9BNONBVO","Outside the BVACOP Objective Structure","9CNONBVO","Outside the BVACOP Objective Structure","REV","Revenue","R5114","Shu HRA Expenses","02-PREMISES","Premises","02B","Energy costs","4000","Electricity","3719928","202309",29/11/2022 00:00:00,581.92,"39564","Gas Companies","REDACTED DATA","KENT COUNTY COUNCIL (GAS & ELECTRIC)","",,"204269191"
"London Borough of Redbridge","http://opendatacommunities.org/doc/london-borough-council/redbridge","9BNONBVO","Outside the BVACOP Objective Structure","9CNONBVO","Outside the BVACOP Objective Structure","REV","Revenue","R5211","Orchard and Manford Office Costs","02-PREMISES","Premises","02B","Energy costs","4000","Electricity","3719928","202309",25/10/2022 00:00:00,1136.58,"39564","Gas Companies","REDACTED DATA","KENT COUNTY COUNCIL (GAS & ELECTRIC)","",,"204269191"
"London Borough of Redbridge","http://opendatacommunities.org/doc/london-borough-council/redbridge","9BNONBVO","Outside the BVACOP Objective Structure","9CNONBVO","Outside the BVACOP Objective Structure","REV","Revenue","R5211","Orchard and Manford Office Costs","02-PREMISES","Premises","02B","Energy costs","4000","Electricity","3719928","202309",25/10/2022 00:00:00,948.47,"39564","Gas Companies","REDACTED DATA","KENT COUNTY COUNCIL (GAS & ELECTRIC)","",,"204269191"
"London Borough of Redbridge","http://opendatacommunities.org/doc/london-borough-council/redbridge","9BNONBVO","Outside the BVACOP Objective Structure","9CNONBVO","Outside the BVACOP Objective Structure","REV","Revenue","R5211","Orchard and Manford Office Costs","02-PREMISES","Premises","02B","Energy costs","4000","Electricity","3719928","202309",25/10/2022 00:00:00,1087.95,"39564","Gas Companies","REDACTED DATA","KENT COUNTY COUNCIL (GAS & ELECTRIC)","",,"204269191"
"London Borough of Redbridge","http://opendatacommunities.org/doc/london-borough-council/redbridge","9BNONBVO","Outside the BVACOP Objective Structure","9CNONBVO","Outside the BVACOP Objective Structure","REV","Revenue","R5211","Orchard and Manford Office Costs","02-PREMISES","Premises","02B","Energy costs","4000","Electricity","3719928","202309",25/10/2022 00:00:00,1087.87,"39564","Gas Companies","REDACTED DATA","KENT COUNTY COUNCIL (GAS & ELECTRIC)","",,"204269191"
"London Borough of Redbridge","http://opendatacommunities.org/doc/london-borough-council/redbridge","9BNONBVO","Outside the BVACOP Objective Structure","9CNONBVO","Outside the BVACOP Objective Structure","REV","Revenue","R5211","Orchard and Manford Office Costs","02-PREMISES","Premises","02B","Energy costs","4000","Electricity","3719928","202309",25/10/2022 00:00:00,1066.4,"39564","Gas Companies","REDACTED DATA","KENT COUNTY COUNCIL (GAS & ELECTRIC)","",,"204269191"
"London Borough of Redbridge","http://opendatacommunities.org/doc/london-borough-council/redbridge","9BNONBVO","Outside the BVACOP Objective Structure","9CNONBVO","Outside the BVACOP Objective Structure","REV","Revenue","R5211","Orchard and Manford Office Costs","02-PREMISES","Premises","02B","Energy costs","4000","Electricity","3719928","202309",26/10/2022 00:00:00,1242.72,"39564","Gas Companies","REDACTED DATA","KENT COUNTY COUNCIL (GAS & ELECTRIC)","",,"204269191"
"London Borough of Redbridge","http://opendatacommunities.org/doc/london-borough-council/redbridge","9BNONBVO","Outside the BVACOP Objective Structure","9CNONBVO","Outside the BVACOP Objective Structure","REV","Revenue","R5211","Orchard and Manford Office Costs","02-PREMISES","Premises","02B","Energy costs","4000","Electricity","3719928","202309",27/10/2022 00:00:00,-1174.65,"39564","Gas Companies","REDACTED DATA","KENT COUNTY COUNCIL (GAS & ELECTRIC)","",,"204269191"
"London Borough of Redbridge","http://opendatacommunities.org/doc/london-borough-council/redbridge","9BNONBVO","Outside the BVACOP Objective Structure","9CNONBVO","Outside the BVACOP Objective Structure","REV","Revenue","R5211","Orchard and Manford Office Costs","02-PREMISES","Premises","02B","Energy costs","4000","Electricity","3719928","202309",30/11/2022 00:00:00,1890.28,"39564","Gas Companies","REDACTED DATA","KENT COUNTY COUNCIL (GAS & ELECTRIC)","",,"204269191"
"London Borough of Redbridge","http://opendatacommunities.org/doc/london-borough-council/redbridge","9BNONBVO","Outside the BVACOP Objective Structure","9CNONBVO","Outside the BVACOP Objective Structure","REV","Revenue","R5211","Orchard and Manford Office Costs","02-PREMISES","Premises","02B","Energy costs","4000","Electricity","3719928","202309",27/10/2022 00:00:00,-1115.32,"39564","Gas Companies","REDACTED DATA","KENT COUNTY COUNCIL (GAS & ELECTRIC)","",,"204269191"
"London Borough of Redbridge","http://opendatacommunities.org/doc/london-borough-council/redbridge","9BNONBVO","Outside the BVACOP Objective Structure","9CNONBVO","Outside the BVACOP Objective Structure","REV","Revenue","R5211","Orchard and Manford Office Costs","02-PREMISES","Premises","02B","Energy costs","4000","Electricity","3719928","202309",27/10/2022 00:00:00,-1133.82,"39564","Gas Companies","REDACTED DATA","KENT COUNTY COUNCIL (GAS & ELECTRIC)","",,"204269191"
"London Borough of Redbridge","http://opendatacommunities.org/doc/london-borough-council/redbridge","9BNONBVO","Outside the BVACOP Objective Structure","9CNONBVO","Outside the BVACOP Objective Structure","REV","Revenue","R5211","Orchard and Manford Office Costs","02-PREMISES","Premises","02B","Energy costs","4000","Electricity","3719928","202309",27/10/2022 00:00:00,-1163.28,"39564","Gas Companies","REDACTED DATA","KENT COUNTY COUNCIL (GAS & ELECTRIC)","",,"204269191"
"London Borough of Redbridge","http://opendatacommunities.org/doc/london-borough-council/redbridge","9BNONBVO","Outside the BVACOP Objective Structure","9CNONBVO","Outside the BVACOP Objective Structure","REV","Revenue","R5211","Orchard and Manford Office Costs","02-PREMISES","Premises","02B","Energy costs","4000","Electricity","3719928","202309",26/10/2022 00:00:00,1449.15,"39564","Gas Companies","REDACTED DATA","KENT COUNTY COUNCIL (GAS & ELECTRIC)","",,"204269191"
"London Borough of Redbridge","http://opendatacommunities.org/doc/london-borough-council/redbridge","9BNONBVO","Outside the BVACOP Objective Structure","9CNONBVO","Outside the BVACOP Objective Structure","REV","Revenue","R5211","Orchard and Manford Office Costs","02-PREMISES","Premises","02B","Energy costs","4000","Electricity","3719928","202309",26/10/2022 00:00:00,1333.22,"39564","Gas Companies","REDACTED DATA","KENT COUNTY COUNCIL (GAS & ELECTRIC)","",,"204269191"
"London Borough of Redbridge","http://opendatacommunities.org/doc/london-borough-council/redbridge","9BNONBVO","Outside the BVACOP Objective Structure","9CNONBVO","Outside the BVACOP Objective Structure","REV","Revenue","R5211","Orchard and Manford Office Costs","02-PREMISES","Premises","02B","Energy costs","4000","Electricity","3719928","202309",26/10/2022 00:00:00,1302.24,"39564","Gas Companies","REDACTED DATA","KENT COUNTY COUNCIL (GAS & ELECTRIC)","",,"204269191"
"London Borough of Redbridge","http://opendatacommunities.org/doc/london-borough-council/redbridge","9BNONBVO","Outside the BVACOP Objective Structure","9CNONBVO","Outside the BVACOP Objective Structure","REV","Revenue","R5211","Orchard and Manford Office Costs","02-PREMISES","Premises","02B","Energy costs","4000","Electricity","3719928","202309",26/10/2022 00:00:00,1198.72,"39564","Gas Companies","REDACTED DATA","KENT COUNTY COUNCIL (GAS & ELECTRIC)","",,"204269191"
"London Borough of Redbridge","http://opendatacommunities.org/doc/london-borough-council/redbridge","9BNONBVO","Outside the BVACOP Objective Structure","9CNONBVO","Outside the BVACOP Objective Structure","REV","Revenue","R5211","Orchard and Manford Office Costs","02-PREMISES","Premises","02B","Energy costs","4000","Electricity","3719928","202309",27/10/2022 00:00:00,-1163.95,"39564","Gas Companies","REDACTED DATA","KENT COUNTY COUNCIL (GAS & ELECTRIC)","",,"204269191"
"London Borough of Redbridge","http://opendatacommunities.org/doc/london-borough-council/redbridge","9BNONBVO","Outside the BVACOP Objective Structure","9CNONBVO","Outside the BVACOP Objective Structure","REV","Revenue","R5211","Orchard and Manford Office Costs","02-PREMISES","Premises","02B","Energy costs","4000","Electricity","3719928","202309",27/10/2022 00:00:00,-1161.29,"39564","Gas Companies","REDACTED DATA","KENT COUNTY COUNCIL (GAS & ELECTRIC)","",,"204269191"
"London Borough of Redbridge","http://opendatacommunities.org/doc/london-borough-council/redbridge","9BNONBVO","Outside the BVACOP Objective Structure","9CNONBVO","Outside the BVACOP Objective Structure","REV","Revenue","R5211","Orchard and Manford Office Costs","02-PREMISES","Premises","02B","Energy costs","4000","Electricity","3719928","202309",27/10/2022 00:00:00,-1140.59,"39564","Gas Companies","REDACTED DATA","KENT COUNTY COUNCIL (GAS & ELECTRIC)","",,"204269191"
"London Borough of Redbridge","http://opendatacommunities.org/doc/london-borough-council/redbridge","9BNONBVO","Outside the BVACOP Objective Structure","9CNONBVO","Outside the BVACOP Objective Structure","REV","Revenue","R5211","Orchard and Manford Office Costs","02-PREMISES","Premises","02B","Energy costs","4000","Electricity","3719928","202309",27/10/2022 00:00:00,-1152.77,"39564","Gas Companies","REDACTED DATA","KENT COUNTY COUNCIL (GAS & ELECTRIC)","",,"204269191"
"London Borough of Redbridge","http://opendatacommunities.org/doc/london-borough-council/redbridge","9BNONBVO","Outside the BVACOP Objective Structure","9CNONBVO","Outside the BVACOP Objective Structure","REV","Revenue","R5211","Orchard and Manford Office Costs","02-PREMISES","Premises","02B","Energy costs","4000","Electricity","3719928","202309",27/10/2022 00:00:00,-1059.1,"39564","Gas Companies","REDACTED DATA","KENT COUNTY COUNCIL (GAS & ELECTRIC)","",,"204269191"
"London Borough of Redbridge","http://opendatacommunities.org/doc/london-borough-council/redbridge","9BNONBVO","Outside the BVACOP Objective Structure","9CNONBVO","Outside the BVACOP Objective Structure","REV","Revenue","R5211","Orchard and Manford Office Costs","02-PREMISES","Premises","02B","Energy costs","4000","Electricity","3719928","202309",27/10/2022 00:00:00,-1182.01,"39564","Gas Companies","REDACTED DATA","KENT COUNTY COUNCIL (GAS & ELECTRIC)","",,"204269191"
"London Borough of Redbridge","http://opendatacommunities.org/doc/london-borough-council/redbridge","9BNONBVO","Outside the BVACOP Objective Structure","9CNONBVO","Outside the BVACOP Objective Structure","REV","Revenue","R5211","Orchard and Manford Office Costs","02-PREMISES","Premises","02B","Energy costs","4000","Electricity","3719928","202309",27/10/2022 00:00:00,-1125.54,"39564","Gas Companies","REDACTED DATA","KENT COUNTY COUNCIL (GAS & ELECTRIC)","",,"204269191"
"London Borough of Redbridge","http://opendatacommunities.org/doc/london-borough-council/redbridge","3BINDSCHFUND","Individual School Funds","3CNONSCH","Non Schools","REV","Revenue","R2001","Secondary Schools SEN Top Up Fees","05-THIRD","Third Party Payments","05G","Other establishments","7430","LBR Pre 16 Top Up","3718812","202309",05/12/2022 00:00:00,25865.58,"67981","Schools - Local Authority","REDACTED DATA","CHADWELL HEATH ACADEMY","7346826","http://opencorporates.com/companies/gb/7346826",""
"London Borough of Redbridge","http://opendatacommunities.org/doc/london-borough-council/redbridge","3BNONSCHFUND","Non-School Funding","3CNONSCH","Non Schools","REV","Revenue","R3962","Early Years - 3 and 4 Year Olds","05-THIRD","Third Party Payments","05A","Independent units within the council","6517","Non-Maintained Schools","3720697","202309",16/12/2022 00:00:00,25791.15,"17580","Childcare Services","REDACTED DATA","FIRST DAY NURSERY LTD","9750129","http://opencorporates.com/companies/gb/9750129",""
"London Borough of Redbridge","http://opendatacommunities.org/doc/london-borough-council/redbridge","9BNONBVO","Outside the BVACOP Objective Structure","9CNONBVO","Outside the BVACOP Objective Structure","CAP","Capital","C2116","Internal Housing","99-NONBV","Capital, Balance Sheet and Control","50E","Capital - Contract Payments","9150","Main Contract","60506537","202309",29/11/2022 00:00:00,21337,"11400","Building Services","REDACTED DATA","MJ GENERAL BUILDERS & DECORATORS LTD","6694603","http://opencorporates.com/companies/gb/6694603","979216966"
"London Borough of Redbridge","http://opendatacommunities.org/doc/london-borough-council/redbridge","9BNONBVO","Outside the BVACOP Objective Structure","9CNONBVO","Outside the BVACOP Objective Structure","CAP","Capital","C2116","Internal Housing","99-NONBV","Capital, Balance Sheet and Control","50E","Capital - Contract Payments","9150","Main Contract","60506537","202309",29/11/2022 00:00:00,-21337,"11400","Building Services","REDACTED DATA","MJ GENERAL BUILDERS & DECORATORS LTD","6694603","http://opencorporates.com/companies/gb/6694603","979216966"
"London Borough of Redbridge","http://opendatacommunities.org/doc/london-borough-council/redbridge","9BNONBVO","Outside the BVACOP Objective Structure","9CNONBVO","Outside the BVACOP Objective Structure","CAP","Capital","C2116","Internal Housing","99-NONBV","Capital, Balance Sheet and Control","50E","Capital - Contract Payments","9150","Main Contract","60506537","202309",29/11/2022 00:00:00,15203.12,"11400","Building Services","REDACTED DATA","MJ GENERAL BUILDERS & DECORATORS LTD","6694603","http://opencorporates.com/companies/gb/6694603","979216966"
"London Borough of Redbridge","http://opendatacommunities.org/doc/london-borough-council/redbridge","9BNONBVO","Outside the BVACOP Objective Structure","9CNONBVO","Outside the BVACOP Objective Structure","CAP","Capital","C2116","Internal Housing","99-NONBV","Capital, Balance Sheet and Control","50E","Capital - Contract Payments","9150","Main Contract","60506537","202309",29/11/2022 00:00:00,6133.88,"11400","Building Services","REDACTED DATA","MJ GENERAL BUILDERS & DECORATORS LTD","6694603","http://opencorporates.com/companies/gb/6694603","979216966"
"London Borough of Redbridge","http://opendatacommunities.org/doc/london-borough-council/redbridge","1BOTHEROPI&E","Other Operating Income & Expenditure","1CTRADSURDEF","Trading Account Surpluses & Deficits","REV","Revenue","R9255","Support","04-SUPPLIES","Supplies And Services","04D","Printing, stationery and general office expenses","5706","Printing","60508287","202309",08/11/2022 00:00:00,21250.96,"57614","Photocopiers","REDACTED DATA","CANON UK LTD","1264300","http://opencorporates.com/companies/gb/1264300","523797128"
"London Borough of Redbridge","http://opendatacommunities.org/doc/london-borough-council/redbridge","9BNONBVO","Outside the BVACOP Objective Structure","9CNONBVO","Outside the BVACOP Objective Structure","CAP","Capital","C4344","School Conditioning","99-NONBV","Capital, Balance Sheet and Control","50E","Capital - Contract Payments","9150","Main Contract","70127186","202309",21/12/2022 00:00:00,20963.82,"21555","Construction Contractors - General","REDACTED DATA","Longley Group Ltd","7633349","http://opencorporates.com/companies/gb/7633349","165771972"
"London Borough of Redbridge","http://opendatacommunities.org/doc/london-borough-council/redbridge","3BNONSCHFUND","Non-School Funding","6CCHILLOOKED","Children Looked After","REV","Revenue","R2238","Looked After Children Placements LA","05-THIRD","Third Party Payments","05H","Private contractors","6907","Private Homes","60505572","202309",17/11/2022 00:00:00,24578.57,"64710","Residential Care Homes","REDACTED DATA","BRYN MELYN CARE LTD","6442752","http://opencorporates.com/companies/gb/6442752",""
"London Borough of Redbridge","http://opendatacommunities.org/doc/london-borough-council/redbridge","9BNONBVO","Outside the BVACOP Objective Structure","9CNONBVO","Outside the BVACOP Objective Structure","CAP","Capital","C4344","School Conditioning","99-NONBV","Capital, Balance Sheet and Control","50E","Capital - Contract Payments","9150","Main Contract","70126941","202309",06/12/2022 00:00:00,20426.14,"50275","Mechanical Engineers","REDACTED DATA","SJP MECHANICAL SERVICES LTD","1495029221","http://opencorporates.com/companies/gb/1495029221",""
"London Borough of Redbridge","http://opendatacommunities.org/doc/london-borough-council/redbridge","3BLEACENTFND","LEA Centrally Held School Funds","3CNONSCH","Non Schools","REV","Revenue","R2004","Non-maintained and Independent settings","05-THIRD","Third Party Payments","05H","Private contractors","6906","Independent Schools","60506410","202309",24/11/2022 00:00:00,24500,"67860","Schools - Independent and Preparatory","REDACTED DATA","CAVENDISH LEARNING (LONDON) LTD","9622592","http://opencorporates.com/companies/gb/9622592",""
"London Borough of Redbridge","http://opendatacommunities.org/doc/london-borough-council/redbridge","3BNONSCHFUND","Non-School Funding","3CNONSCH","Non Schools","REV","Revenue","R3962","Early Years - 3 and 4 Year Olds","05-THIRD","Third Party Payments","05A","Independent units within the council","6517","Non-Maintained Schools","3720747","202309",16/12/2022 00:00:00,24426,"17580","Childcare Services","REDACTED DATA","BUSY BEES CHRISTIAN PRE-SCHOOL NURSERY LTD","2545251","http://opencorporates.com/companies/gb/2545251",""
"London Borough of Redbridge","http://opendatacommunities.org/doc/london-borough-council/redbridge","1BOTHEROPI&E","Other Operating Income & Expenditure","1CTRADSURDEF","Trading Account Surpluses & Deficits","REV","Revenue","R9254","Infrastructure","04-SUPPLIES","Supplies And Services","04F","Communications and computing","5868","IT Support Contract","60506988","202309",30/11/2022 00:00:00,20132.84,"20690","Computer Support and Services","REDACTED DATA","Version 1 Solutions Limited","3438874","http://opencorporates.com/companies/gb/3438874","GB 704 8728 24"
"London Borough of Redbridge","http://opendatacommunities.org/doc/london-borough-council/redbridge","9BNONBVO","Outside the BVACOP Objective Structure","9CNONBVO","Outside the BVACOP Objective Structure","CAP","Capital","C2235","Crossrail Capital","99-NONBV","Capital, Balance Sheet and Control","50E","Capital - Contract Payments","9157","Footways & cycle tracks","3719536","202309",08/12/2022 00:00:00,20000,"18632","Civil Engineers","REDACTED DATA","KENSON CONTRACTORS BENINGTON LTD","1314691","http://opencorporates.com/companies/gb/1314691","301629589"
"London Borough of Redbridge","http://opendatacommunities.org/doc/london-borough-council/redbridge","3BOPTIONHLDG","Optional Holding Accounts","3CYOUTH","Youth Service","REV","Revenue","R3379","Youth Detention Accommodation","05-THIRD","Third Party Payments","05H","Private contractors","6956","Bed Night Costs - Remand","60506292","202309",23/11/2022 00:00:00,23870,"61847","Prisons","REDACTED DATA","HER MAJESTY'S PRISON & PROBATION SERVICE","",,"888818055"
"London Borough of Redbridge","http://opendatacommunities.org/doc/london-borough-council/redbridge","1BOTHEROPI&E","Other Operating Income & Expenditure","1CTRADSURDEF","Trading Account Surpluses & Deficits","REV","Revenue","R9572","Fairlop Gravel","04-SUPPLIES","Supplies And Services","04H","Grants and subscriptions","5954","Professional Fees","60508941","202309",25/11/2022 00:00:00,19677.97,"32415","Environmental Consultants","REDACTED DATA","SLR Consulting LTD","3880506","http://opencorporates.com/companies/gb/3880506","844295801"
"London Borough of Redbridge","http://opendatacommunities.org/doc/london-borough-council/redbridge","3BNONSCHFUND","Non-School Funding","6CCHILLOOKED","Children Looked After","REV","Revenue","R2238","Looked After Children Placements LA","05-THIRD","Third Party Payments","05H","Private contractors","6907","Private Homes","60506785","202309",30/11/2022 00:00:00,23571.3,"17780","Children's Homes","REDACTED DATA","ASPIRE 2 BE LTD","11221101","http://opencorporates.com/companies/gb/11221101",""
"London Borough of Redbridge","http://opendatacommunities.org/doc/london-borough-council/redbridge","6BADULTSOCIA","Adult Social Care","6CLONGT65","Long-Term Support 65+ Years","REV","Revenue","R4446","Learning Disabilities - Wanstead and Woodford","05-THIRD","Third Party Payments","05F","Voluntary associations","6802","Residential Homes","91366222","202309",22/11/2022 00:00:00,23476.8,"64710","Residential Care Homes","REDACTED DATA","HEATHCOTES SOUTHERN LTD","10142627","http://opencorporates.com/companies/gb/10142627",""
"London Borough of Redbridge","http://opendatacommunities.org/doc/london-borough-council/redbridge","3BNONSCHFUND","Non-School Funding","3CNONSCH","Non Schools","REV","Revenue","R3962","Early Years - 3 and 4 Year Olds","05-THIRD","Third Party Payments","05A","Independent units within the council","6517","Non-Maintained Schools","3720759","202309",16/12/2022 00:00:00,23451.62,"17580","Childcare Services","REDACTED DATA","Bambino Nursery Hainault Ltd","13453973","http://opencorporates.com/companies/gb/13453973",""
"London Borough of Redbridge","http://opendatacommunities.org/doc/london-borough-council/redbridge","6BSOCIALSERV","Social Services","6CCHILLOOKED","Children Looked After","REV","Revenue","R2117","SEN and CD Care and Support Packages Social Care","06-TRANSFER","Transfer Payments","06B","Social Services Clients","7050","Agency Homecare","60507947","202309",07/12/2022 00:00:00,23334.4,"17580","Childcare Services","REDACTED DATA","LORABLOOMS CARE SERVICES LIMITED","",,""
"London Borough of Redbridge","http://opendatacommunities.org/doc/london-borough-council/redbridge","6BADULTSOCIA","Adult Social Care","6CLONGT1864","Long-Term Support 18 - 64 Years","REV","Revenue","R4441","Older People - Seven Kings","05-THIRD","Third Party Payments","05F","Voluntary associations","6802","Residential Homes","91366312","202309",22/11/2022 00:00:00,23318.66,"64710","Residential Care Homes","REDACTED DATA","BELMONT VIEW","IP27608R","http://opencorporates.com/companies/gb/IP27608R","640094952"
"London Borough of Redbridge","http://opendatacommunities.org/doc/london-borough-council/redbridge","3BNONSCHFUND","Non-School Funding","3CNONSCH","Non Schools","REV","Revenue","R3962","Early Years - 3 and 4 Year Olds","05-THIRD","Third Party Payments","05A","Independent units within the council","6517","Non-Maintained Schools","3720623","202309",16/12/2022 00:00:00,23105.32,"59760","Playgroups, Nurseries and Creches","REDACTED DATA","LITTLE RASCALS (ILFORD) LTD","5813376","http://opencorporates.com/companies/gb/5813376",""
"London Borough of Redbridge","http://opendatacommunities.org/doc/london-borough-council/redbridge","6BADULTSOCIA","Adult Social Care","6CLONGT65","Long-Term Support 65+ Years","REV","Revenue","R4440","Learning Disabilities - Seven Kings","05-THIRD","Third Party Payments","05F","Voluntary associations","6802","Residential Homes","91366182","202309",22/11/2022 00:00:00,25267.92,"64710","Residential Care Homes","REDACTED DATA","OAKFIELD (EASTON MAUDIT) LTD","",,""
"London Borough of Redbridge","http://opendatacommunities.org/doc/london-borough-council/redbridge","6BADULTSOCIA","Adult Social Care","6CLONGT65","Long-Term Support 65+ Years","REV","Revenue","R4440","Learning Disabilities - Seven Kings","09-INCOME","Income","09C","Customer and Client Receipts","8555","Accommodation Charges","91366182","202309",22/11/2022 00:00:00,-2206.8,"64710","Residential Care Homes","REDACTED DATA","OAKFIELD (EASTON MAUDIT) LTD","",,""
"London Borough of Redbridge","http://opendatacommunities.org/doc/london-borough-council/redbridge","6BADULTSOCIA","Adult Social Care","6CLONGT1864","Long-Term Support 18 - 64 Years","REV","Revenue","R4437","Learning Disabilities - Cranbrook & Loxford","05-THIRD","Third Party Payments","05F","Voluntary associations","6802","Residential Homes","91366189","202309",22/11/2022 00:00:00,24271.44,"64710","Residential Care Homes","REDACTED DATA","CLEARWATER CARE (HACKNEY) LTD","5084728","http://opencorporates.com/companies/gb/5084728",""
"London Borough of Redbridge","http://opendatacommunities.org/doc/london-borough-council/redbridge","6BADULTSOCIA","Adult Social Care","6CLONGT1864","Long-Term Support 18 - 64 Years","REV","Revenue","R4437","Learning Disabilities - Cranbrook & Loxford","09-INCOME","Income","09C","Customer and Client Receipts","8555","Accommodation Charges","91366189","202309",22/11/2022 00:00:00,-1223.4,"64710","Residential Care Homes","REDACTED DATA","CLEARWATER CARE (HACKNEY) LTD","5084728","http://opencorporates.com/companies/gb/5084728",""
"London Borough of Redbridge","http://opendatacommunities.org/doc/london-borough-council/redbridge","3BNONSCHFUND","Non-School Funding","6CCHILLOOKED","Children Looked After","REV","Revenue","R2238","Looked After Children Placements LA","05-THIRD","Third Party Payments","05H","Private contractors","6907","Private Homes","60506915","202309",01/12/2022 00:00:00,22928.57,"17780","Children's Homes","REDACTED DATA","Swan Childrens Homes","11694149","http://opencorporates.com/companies/gb/11694149",""
"London Borough of Redbridge","http://opendatacommunities.org/doc/london-borough-council/redbridge","3BLEACENTFND","LEA Centrally Held School Funds","3CNONSCH","Non Schools","REV","Revenue","R2004","Non-maintained and Independent settings","05-THIRD","Third Party Payments","05H","Private contractors","6906","Independent Schools","60506182","202309",24/11/2022 00:00:00,22440,"67860","Schools - Independent and Preparatory","REDACTED DATA","CAVENDISH LEARNING (LONDON) LTD","9622592","http://opencorporates.com/companies/gb/9622592",""
"London Borough of Redbridge","http://opendatacommunities.org/doc/london-borough-council/redbridge","3BNONSCHFUND","Non-School Funding","3CNONSCH","Non Schools","REV","Revenue","R3962","Early Years - 3 and 4 Year Olds","05-THIRD","Third Party Payments","05A","Independent units within the council","6517","Non-Maintained Schools","3720731","202309",16/12/2022 00:00:00,22411.62,"67981","Schools - Local Authority","REDACTED DATA","REDBRIDGE PRIMARY SCHOOL A/C","",,""
"London Borough of Redbridge","http://opendatacommunities.org/doc/london-borough-council/redbridge","9BNONBVO","Outside the BVACOP Objective Structure","9CNONBVO","Outside the BVACOP Objective Structure","CAP","Capital","C2002","Disabled Facilities Grants (DFG)","99-NONBV","Capital, Balance Sheet and Control","50H","Capital - Deferred Charges","9251","Housing Grants - Mandatory","70126991","202309",11/11/2022 00:00:00,22157.93,"11040","Builders","REDACTED DATA","Avenue Property Construction Ltd (Grant Work)","",,"898930255"
"London Borough of Redbridge","http://opendatacommunities.org/doc/london-borough-council/redbridge","3BINDSCHFUND","Individual School Funds","3CNONSCH","Non Schools","REV","Revenue","R2001","Secondary Schools SEN Top Up Fees","05-THIRD","Third Party Payments","05G","Other establishments","7430","LBR Pre 16 Top Up","3718808","202309",05/12/2022 00:00:00,22105.13,"67981","Schools - Local Authority","REDACTED DATA","BEACON MULTI ACADEMY TRUST LTD","",,"246546447"
"London Borough of Redbridge","http://opendatacommunities.org/doc/london-borough-council/redbridge","3BLEACENTFND","LEA Centrally Held School Funds","3CNONSCH","Non Schools","REV","Revenue","R2004","Non-maintained and Independent settings","05-THIRD","Third Party Payments","05H","Private contractors","6906","Independent Schools","60508181","202309",01/12/2022 00:00:00,21907,"67860","Schools - Independent and Preparatory","REDACTED DATA","CAVENDISH LEARNING LTD T/A GRETTON SCHOOL","6444280","http://opencorporates.com/companies/gb/6444280",""
"London Borough of Redbridge","http://opendatacommunities.org/doc/london-borough-council/redbridge","9BNONBVO","Outside the BVACOP Objective Structure","9CNONBVO","Outside the BVACOP Objective Structure","CAP","Capital","C4344","School Conditioning","99-NONBV","Capital, Balance Sheet and Control","50E","Capital - Contract Payments","9150","Main Contract","70127182","202309",21/12/2022 00:00:00,18244.77,"21555","Construction Contractors - General","REDACTED DATA","Longley Group Ltd","7633349","http://opencorporates.com/companies/gb/7633349","165771972"
"London Borough of Redbridge","http://opendatacommunities.org/doc/london-borough-council/redbridge","9BNONBVO","Outside the BVACOP Objective Structure","9CNONBVO","Outside the BVACOP Objective Structure","CAP","Capital","C2106","External","99-NONBV","Capital, Balance Sheet and Control","50E","Capital - Contract Payments","9150","Main Contract","60508318","202309",15/12/2022 00:00:00,18195.79,"21555","Construction Contractors - General","REDACTED DATA","Quill Construction Limited","3806388","http://opencorporates.com/companies/gb/3806388","740199924"
"London Borough of Redbridge","http://opendatacommunities.org/doc/london-borough-council/redbridge","3BNONSCHFUND","Non-School Funding","3CNONSCH","Non Schools","REV","Revenue","R3962","Early Years - 3 and 4 Year Olds","05-THIRD","Third Party Payments","05A","Independent units within the council","6517","Non-Maintained Schools","3720806","202309",21/12/2022 00:00:00,21797.97,"59760","Playgroups, Nurseries and Creches","REDACTED DATA","TAMBA DAY NURSERY LTD CHADWELL HEATH","",,""
"London Borough of Redbridge","http://opendatacommunities.org/doc/london-borough-council/redbridge","3BNONSCHFUND","Non-School Funding","3CNONSCH","Non Schools","REV","Revenue","R3962","Early Years - 3 and 4 Year Olds","05-THIRD","Third Party Payments","05A","Independent units within the council","6517","Non-Maintained Schools","3720711","202309",16/12/2022 00:00:00,21611.21,"67981","Schools - Local Authority","REDACTED DATA","DOWNSHALL PRIMARY SCHOOL A/C","",,""
"London Borough of Redbridge","http://opendatacommunities.org/doc/london-borough-council/redbridge","3BNONSCHFUND","Non-School Funding","3CNONSCH","Non Schools","REV","Revenue","R3962","Early Years - 3 and 4 Year Olds","05-THIRD","Third Party Payments","05A","Independent units within the council","6517","Non-Maintained Schools","3720729","202309",16/12/2022 00:00:00,21611.21,"67981","Schools - Local Authority","REDACTED DATA","PARKHILL INFANT SCHOOL A/C","",,""
"London Borough of Redbridge","http://opendatacommunities.org/doc/london-borough-council/redbridge","3BLEACENTFND","LEA Centrally Held School Funds","3CNONSCH","Non Schools","REV","Revenue","R2211","SEND SALT & OT Services","04-SUPPLIES","Supplies And Services","04E","Services","7480","Payments To Schools","3720586","202309",09/12/2022 00:00:00,21591.7,"90038","Expenses","REDACTED DATA","Astrum Multi Academy Trust T/A Hatchside School","",,""
"London Borough of Redbridge","http://opendatacommunities.org/doc/london-borough-council/redbridge","3BNONSCHFUND","Non-School Funding","6CCHILLOOKED","Children Looked After","REV","Revenue","R2238","Looked After Children Placements LA","05-THIRD","Third Party Payments","05H","Private contractors","6907","Private Homes","60507316","202309",01/10/2022 00:00:00,21478.57,"43419","Home Care Services","REDACTED DATA","TULIP CARE TWO LTD T/AS TULIP CARE","6627219","http://opencorporates.com/companies/gb/6627219",""
"London Borough of Redbridge","http://opendatacommunities.org/doc/london-borough-council/redbridge","9BNONBVO","Outside the BVACOP Objective Structure","9CNONBVO","Outside the BVACOP Objective Structure","CAP","Capital","C4335","Swimming Pool at Wanstead","99-NONBV","Capital, Balance Sheet and Control","50E","Capital - Contract Payments","9150","Main Contract","60508482","202309",10/11/2022 00:00:00,17824.97,"11371","Building Refurbishment and Restoration Contractors","REDACTED DATA","JERRAM FALKUS CONSTRUCTION LTD","820289","http://opencorporates.com/companies/gb/820289","446900837"
"London Borough of Redbridge","http://opendatacommunities.org/doc/london-borough-council/redbridge","1BCENTRALPUB","Central Services to the Public","1CLOCALTAXCO","Local Tax Collection","REV","Revenue","R5760","Local Tax Collection","05-THIRD","Third Party Payments","05A","Independent units within the council","6513","Agency & Contracted Services","60507655","202309",06/12/2022 00:00:00,17747.5,"79980","Training Services","REDACTED DATA","MERITEC LTD","3224622","http://opencorporates.com/companies/gb/3224622","675499571"
"London Borough of Redbridge","http://opendatacommunities.org/doc/london-borough-council/redbridge","3BNONSCHFUND","Non-School Funding","6CCHILLOOKED","Children Looked After","REV","Revenue","R2238","Looked After Children Placements LA","05-THIRD","Third Party Payments","05H","Private contractors","6907","Private Homes","60504811","202309",01/11/2022 00:00:00,21214.2,"17580","Childcare Services","REDACTED DATA","OASIS ADOLESCENT SERVICES LTD","10606038","http://opencorporates.com/companies/gb/10606038",""
"London Borough of Redbridge","http://opendatacommunities.org/doc/london-borough-council/redbridge","3BLEACENTFND","LEA Centrally Held School Funds","3CNONSCH","Non Schools","REV","Revenue","R2004","Non-maintained and Independent settings","05-THIRD","Third Party Payments","05H","Private contractors","6906","Independent Schools","60506161","202309",11/11/2022 00:00:00,21000,"67860","Schools - Independent and Preparatory","REDACTED DATA","KEDLESTON SCHOOLS (LONDON) LTD","6494539","http://opencorporates.com/companies/gb/6494539",""
"London Borough of Redbridge","http://opendatacommunities.org/doc/london-borough-council/redbridge","1BOTHEROPI&E","Other Operating Income & Expenditure","1CTRADSURDEF","Trading Account Surpluses & Deficits","REV","Revenue","R9551","CLM Maintenance","02-PREMISES","Premises","02A","Repairs, alteration and maintenance of buildings","3001","Major Works Programme","3719176","202309",24/11/2022 00:00:00,17387.21,"69240","Security Services","REDACTED DATA","HALL & KAY FIRE SERVICES LTD T/A HALL & KAY FIRE ENGINEERING","5211559","http://opencorporates.com/companies/gb/5211559","199888505"
"London Borough of Redbridge","http://opendatacommunities.org/doc/london-borough-council/redbridge","3BNONSCHFUND","Non-School Funding","6CCHILLOOKED","Children Looked After","REV","Revenue","R2238","Looked After Children Placements LA","05-THIRD","Third Party Payments","05H","Private contractors","6907","Private Homes","60505423","202309",28/10/2022 00:00:00,20785.7,"43419","Home Care Services","REDACTED DATA","TULIP CARE TWO LTD T/AS TULIP CARE","6627219","http://opencorporates.com/companies/gb/6627219",""
"London Borough of Redbridge","http://opendatacommunities.org/doc/london-borough-council/redbridge","6BADULTSOCIA","Adult Social Care","6CLONGT65","Long-Term Support 65+ Years","REV","Revenue","R4446","Learning Disabilities - Wanstead and Woodford","06-TRANSFER","Transfer Payments","06B","Social Services Clients","7066","Supported Living","91366445","202309",22/11/2022 00:00:00,20759.04,"64710","Residential Care Homes","REDACTED DATA","My Life Choice","11188401","http://opencorporates.com/companies/gb/11188401",""
"London Borough of Redbridge","http://opendatacommunities.org/doc/london-borough-council/redbridge","3BNONSCHFUND","Non-School Funding","3CNONSCH","Non Schools","REV","Revenue","R3962","Early Years - 3 and 4 Year Olds","05-THIRD","Third Party Payments","05A","Independent units within the council","6517","Non-Maintained Schools","3720719","202309",16/12/2022 00:00:00,20699.63,"67981","Schools - Local Authority","REDACTED DATA","HIGHLANDS PRIMARY SCHOOL A/C","",,""
"London Borough of Redbridge","http://opendatacommunities.org/doc/london-borough-council/redbridge","3BNONSCHFUND","Non-School Funding","3CNONSCH","Non Schools","REV","Revenue","R3962","Early Years - 3 and 4 Year Olds","05-THIRD","Third Party Payments","05A","Independent units within the council","6517","Non-Maintained Schools","3720710","202309",16/12/2022 00:00:00,20677.39,"67981","Schools - Local Authority","REDACTED DATA","CRANBROOK PRIMARY SCHOOL","",,""
"London Borough of Redbridge","http://opendatacommunities.org/doc/london-borough-council/redbridge","3BLEACENTFND","LEA Centrally Held School Funds","3CNONSCH","Non Schools","REV","Revenue","R2004","Non-maintained and Independent settings","05-THIRD","Third Party Payments","05H","Private contractors","6906","Independent Schools","60506159","202309",11/11/2022 00:00:00,20519,"67860","Schools - Independent and Preparatory","REDACTED DATA","KEDLESTON SCHOOLS (LONDON) LTD","6494539","http://opencorporates.com/companies/gb/6494539",""
"London Borough of Redbridge","http://opendatacommunities.org/doc/london-borough-council/redbridge","9BNONBVO","Outside the BVACOP Objective Structure","9CNONBVO","Outside the BVACOP Objective Structure","CAP","Capital","C4344","School Conditioning","99-NONBV","Capital, Balance Sheet and Control","50E","Capital - Contract Payments","9150","Main Contract","70127189","202309",21/12/2022 00:00:00,17093.78,"21555","Construction Contractors - General","REDACTED DATA","Longley Group Ltd","7633349","http://opencorporates.com/companies/gb/7633349","165771972"
"London Borough of Redbridge","http://opendatacommunities.org/doc/london-borough-council/redbridge","3BLEACENTFND","LEA Centrally Held School Funds","3CSUPPORTSEN","Supporting Special Education Needs","REV","Revenue","R3022","Home Tuition","05-THIRD","Third Party Payments","05A","Independent units within the council","6513","Agency & Contracted Services","60507801","202309",02/10/2022 00:00:00,17074.81,"31230","Employment and Recruitment Agencies","REDACTED DATA","REMEDY RECRUITMENT GROUP LTD","4651426","http://opencorporates.com/companies/gb/4651426","820791924"
"London Borough of Redbridge","http://opendatacommunities.org/doc/london-borough-council/redbridge","6BSOCIALSERV","Social Services","6CCHILLOOKED","Children Looked After","REV","Revenue","R2117","SEN and CD Care and Support Packages Social Care","06-TRANSFER","Transfer Payments","06B","Social Services Clients","7050","Agency Homecare","60507948","202309",11/12/2022 00:00:00,20435.83,"17580","Childcare Services","REDACTED DATA","LORABLOOMS CARE SERVICES LIMITED","",,""
"London Borough of Redbridge","http://opendatacommunities.org/doc/london-borough-council/redbridge","5BGFHOUSING","General Fund Housing","5CHOUSBENADM","Housing Benefits Administration","REV","Revenue","R5771","Benefits Administration","04-SUPPLIES","Supplies And Services","04F","Communications and computing","5853","Computer Software","60505670","202309",20/11/2022 00:00:00,17000,"20703","Computer Systems and Software","REDACTED DATA","NEC Software Solutions UK Ltd","968498","http://opencorporates.com/companies/gb/968498","202159745"
"London Borough of Redbridge","http://opendatacommunities.org/doc/london-borough-council/redbridge","6BSOCIALSERV","Social Services","6CCHILCOMSNG","Children's Services - Commissioning & Social Work","REV","Revenue","R2186","F&A - Leaving Care Team","06-TRANSFER","Transfer Payments","06B","Social Services Clients","7054","Funding Entitlements","70127009","202309",15/12/2022 00:00:00,20000,"35240","Financial Services","REDACTED DATA","PREPAID FINANCIAL SERVICES LTD (E-WALLET)","",,"971986853"
"London Borough of Redbridge","http://opendatacommunities.org/doc/london-borough-council/redbridge","3BNONSCHFUND","Non-School Funding","3CNONSCH","Non Schools","REV","Revenue","R3962","Early Years - 3 and 4 Year Olds","05-THIRD","Third Party Payments","05A","Independent units within the council","6517","Non-Maintained Schools","3720712","202309",16/12/2022 00:00:00,19942.34,"67981","Schools - Local Authority","REDACTED DATA","FAIRLOP PRIMARY SCHOOL A/C","",,""
"London Borough of Redbridge","http://opendatacommunities.org/doc/london-borough-council/redbridge","3BLEACENTFND","LEA Centrally Held School Funds","3CNONSCH","Non Schools","REV","Revenue","R3256","ISS Free School Meals Contract","04-SUPPLIES","Supplies And Services","04B","Catering","5603","Hospitality (Catering)","60507780","202309",07/12/2022 00:00:00,16297.39,"16270","Catering Schools","REDACTED DATA","ISS CATERHOUSE- DIV OF ISS MEDICLEAN LTD(INVOICES)","1659837","http://opencorporates.com/companies/gb/1659837","417115775"
"London Borough of Redbridge","http://opendatacommunities.org/doc/london-borough-council/redbridge","2BENVIRONMEN","Environmental Services","2CSTCLEANS","Street Cleansing (not chargeable to Highways)","REV","Revenue","R6101","Head of Neighbourhoods","01-EMPLOYEES","Employees","01A","Direct employee expenses","4","Agency Staff - Pay","60507122","202309",02/12/2022 00:00:00,16266.25,"1961","Advertising - Agencies","REDACTED DATA","PENNA PLC (PENNA COMMUNICATIONS)","1918150","http://opencorporates.com/companies/gb/1918150","605849719"
"London Borough of Redbridge","http://opendatacommunities.org/doc/london-borough-council/redbridge","6BADULTSOCIA","Adult Social Care","6CLONGT65","Long-Term Support 65+ Years","REV","Revenue","R4440","Learning Disabilities - Seven Kings","05-THIRD","Third Party Payments","05F","Voluntary associations","6802","Residential Homes","91366243","202309",22/11/2022 00:00:00,-4974.97,"64710","Residential Care Homes","REDACTED DATA","CAREONE LTD (RUSSELL LODGE)","4270516","http://opencorporates.com/companies/gb/4270516",""
"London Borough of Redbridge","http://opendatacommunities.org/doc/london-borough-council/redbridge","6BADULTSOCIA","Adult Social Care","6CLONGT65","Long-Term Support 65+ Years","REV","Revenue","R4440","Learning Disabilities - Seven Kings","05-THIRD","Third Party Payments","05F","Voluntary associations","6802","Residential Homes","91366243","202309",22/11/2022 00:00:00,25376.03,"64710","Residential Care Homes","REDACTED DATA","CAREONE LTD (RUSSELL LODGE)","4270516","http://opencorporates.com/companies/gb/4270516",""
"London Borough of Redbridge","http://opendatacommunities.org/doc/london-borough-council/redbridge","6BADULTSOCIA","Adult Social Care","6CLONGT65","Long-Term Support 65+ Years","REV","Revenue","R4440","Learning Disabilities - Seven Kings","09-INCOME","Income","09C","Customer and Client Receipts","8555","Accommodation Charges","91366243","202309",22/11/2022 00:00:00,-1280.96,"64710","Residential Care Homes","REDACTED DATA","CAREONE LTD (RUSSELL LODGE)","4270516","http://opencorporates.com/companies/gb/4270516",""
"London Borough of Redbridge","http://opendatacommunities.org/doc/london-borough-council/redbridge","6BADULTSOCIA","Adult Social Care","6CLONGT65","Long-Term Support 65+ Years","REV","Revenue","R4440","Learning Disabilities - Seven Kings","09-INCOME","Income","09C","Customer and Client Receipts","8555","Accommodation Charges","91366243","202309",22/11/2022 00:00:00,395.36,"64710","Residential Care Homes","REDACTED DATA","CAREONE LTD (RUSSELL LODGE)","4270516","http://opencorporates.com/companies/gb/4270516",""
"London Borough of Redbridge","http://opendatacommunities.org/doc/london-borough-council/redbridge","3BNONSCHFUND","Non-School Funding","3CNONSCH","Non Schools","REV","Revenue","R3962","Early Years - 3 and 4 Year Olds","05-THIRD","Third Party Payments","05A","Independent units within the council","6517","Non-Maintained Schools","3720650","202309",16/12/2022 00:00:00,19476.77,"53120","Nursery Schools","REDACTED DATA","OXFORD DAY NURSERY LTD","8100587","http://opencorporates.com/companies/gb/8100587",""
"London Borough of Redbridge","http://opendatacommunities.org/doc/london-borough-council/redbridge","1BOTHEROPI&E","Other Operating Income & Expenditure","1CTRADSURDEF","Trading Account Surpluses & Deficits","REV","Revenue","R9557","CLM Utilities","02-PREMISES","Premises","02B","Energy costs","4000","Electricity","80043653","202309",29/11/2022 00:00:00,15995.66,"39564","Gas Companies","REDACTED DATA","KENT COUNTY COUNCIL (GAS & ELECTRIC)","",,"204269191"
"London Borough of Redbridge","http://opendatacommunities.org/doc/london-borough-council/redbridge","6BADULTSOCIA","Adult Social Care","6CLONGT1864","Long-Term Support 18 - 64 Years","REV","Revenue","R4437","Learning Disabilities - Cranbrook & Loxford","05-THIRD","Third Party Payments","05F","Voluntary associations","6802","Residential Homes","91366220","202309",22/11/2022 00:00:00,20013.92,"64710","Residential Care Homes","REDACTED DATA","FAIRCROSS CARE HOME","1794435324","http://opencorporates.com/companies/gb/1794435324",""
"London Borough of Redbridge","http://opendatacommunities.org/doc/london-borough-council/redbridge","6BADULTSOCIA","Adult Social Care","6CLONGT1864","Long-Term Support 18 - 64 Years","REV","Revenue","R4437","Learning Disabilities - Cranbrook & Loxford","09-INCOME","Income","09C","Customer and Client Receipts","8555","Accommodation Charges","91366220","202309",22/11/2022 00:00:00,-877.6,"64710","Residential Care Homes","REDACTED DATA","FAIRCROSS CARE HOME","1794435324","http://opencorporates.com/companies/gb/1794435324",""
"London Borough of Redbridge","http://opendatacommunities.org/doc/london-borough-council/redbridge","3BNONSCHFUND","Non-School Funding","3CNONSCH","Non Schools","REV","Revenue","R3962","Early Years - 3 and 4 Year Olds","05-THIRD","Third Party Payments","05A","Independent units within the council","6517","Non-Maintained Schools","3720703","202309",16/12/2022 00:00:00,18950.72,"67981","Schools - Local Authority","REDACTED DATA","ALDERSBROOK PRIMARY SCHOOL A/C","",,""
"London Borough of Redbridge","http://opendatacommunities.org/doc/london-borough-council/redbridge","3BNONSCHFUND","Non-School Funding","3CNONSCH","Non Schools","REV","Revenue","R3962","Early Years - 3 and 4 Year Olds","05-THIRD","Third Party Payments","05A","Independent units within the council","6517","Non-Maintained Schools","3720633","202309",16/12/2022 00:00:00,18929.82,"59760","Playgroups, Nurseries and Creches","REDACTED DATA","MAYTIME DAY NURSERY","",,""
"London Borough of Redbridge","http://opendatacommunities.org/doc/london-borough-council/redbridge","3BNONSCHFUND","Non-School Funding","3CNONSCH","Non Schools","REV","Revenue","R3962","Early Years - 3 and 4 Year Olds","05-THIRD","Third Party Payments","05A","Independent units within the council","6517","Non-Maintained Schools","3720619","202309",16/12/2022 00:00:00,18920.93,"59760","Playgroups, Nurseries and Creches","REDACTED DATA","BELMONT DAY NURSERY","5331750","http://opencorporates.com/companies/gb/5331750",""
"London Borough of Redbridge","http://opendatacommunities.org/doc/london-borough-council/redbridge","3BNONSCHFUND","Non-School Funding","3CNONSCH","Non Schools","REV","Revenue","R3962","Early Years - 3 and 4 Year Olds","05-THIRD","Third Party Payments","05A","Independent units within the council","6517","Non-Maintained Schools","3720637","202309",16/12/2022 00:00:00,18811.91,"53088","Nurseries and Creches","REDACTED DATA","A.M.A.B LIMITED - GREENLANE NURSERY & PRE-SCHOOL","3499061","http://opencorporates.com/companies/gb/3499061",""
"London Borough of Redbridge","http://opendatacommunities.org/doc/london-borough-council/redbridge","3BLEACENTFND","LEA Centrally Held School Funds","3CSCHSTRATMG","Schools Strategic Management","REV","Revenue","R3232","Eleven Plus","04-SUPPLIES","Supplies And Services","04D","Printing, stationery and general office expenses","5707","Advertising & publications non promotional","60507714","202309",07/12/2022 00:00:00,18743.27,"81491","Universities and Medical Schools","REDACTED DATA","UNIVERSITY OF CAMBRIDGE LOCAL EXAMINATIONS SYNDICATE (UCLES)","",,"823847609"
"London Borough of Redbridge","http://opendatacommunities.org/doc/london-borough-council/redbridge","3BOPTIONHLDG","Optional Holding Accounts","3CYOUTH","Youth Service","REV","Revenue","R3371","LBR Costs","04-SUPPLIES","Supplies And Services","04K","Miscellaneous expenses","6263","Supportive Activities","60508453","202309",01/12/2022 00:00:00,15581.88,"79980","Training Services","REDACTED DATA","Tipe Ltd","11521519","http://opencorporates.com/companies/gb/11521519","350646702"
"London Borough of Redbridge","http://opendatacommunities.org/doc/london-borough-council/redbridge","6BADULTSOCIA","Adult Social Care","6CLONGT1864","Long-Term Support 18 - 64 Years","REV","Revenue","R4437","Learning Disabilities - Cranbrook & Loxford","05-THIRD","Third Party Payments","05F","Voluntary associations","6802","Residential Homes","91366237","202309",29/11/2022 00:00:00,-11650,"53350","Nursing Homes","REDACTED DATA","OUTLOOK CARE","",,""
"London Borough of Redbridge","http://opendatacommunities.org/doc/london-borough-council/redbridge","6BADULTSOCIA","Adult Social Care","6CLONGT1864","Long-Term Support 18 - 64 Years","REV","Revenue","R4437","Learning Disabilities - Cranbrook & Loxford","05-THIRD","Third Party Payments","05F","Voluntary associations","6802","Residential Homes","91366237","202309",29/11/2022 00:00:00,30290,"53350","Nursing Homes","REDACTED DATA","OUTLOOK CARE","",,""
"London Borough of Redbridge","http://opendatacommunities.org/doc/london-borough-council/redbridge","3BINDSCHFUND","Individual School Funds","3CNONSCH","Non Schools","REV","Revenue","R2000","Primary Schools SEN Top Up Fees","05-THIRD","Third Party Payments","05G","Other establishments","7430","LBR Pre 16 Top Up","3718820","202309",05/12/2022 00:00:00,18635.58,"67981","Schools - Local Authority","REDACTED DATA","RAY LODGE PRIMARY SCHOOL A/C","",,""
"London Borough of Redbridge","http://opendatacommunities.org/doc/london-borough-council/redbridge","3BOPTIONHLDG","Optional Holding Accounts","3CYOUTH","Youth Service","REV","Revenue","R3371","LBR Costs","04-SUPPLIES","Supplies And Services","04K","Miscellaneous expenses","6263","Supportive Activities","60508468","202309",01/12/2022 00:00:00,15354,"79980","Training Services","REDACTED DATA","Tipe Ltd","11521519","http://opencorporates.com/companies/gb/11521519","350646702"
"London Borough of Redbridge","http://opendatacommunities.org/doc/london-borough-council/redbridge","3BLEACENTFND","LEA Centrally Held School Funds","3CNONSCH","Non Schools","REV","Revenue","R2004","Non-maintained and Independent settings","05-THIRD","Third Party Payments","05H","Private contractors","6906","Independent Schools","60506160","202309",11/11/2022 00:00:00,18333.33,"67860","Schools - Independent and Preparatory","REDACTED DATA","KEDLESTON SCHOOLS (LONDON) LTD","6494539","http://opencorporates.com/companies/gb/6494539",""
"London Borough of Redbridge","http://opendatacommunities.org/doc/london-borough-council/redbridge","1BOTHEROPI&E","Other Operating Income & Expenditure","1CTRADSURDEF","Trading Account Surpluses & Deficits","REV","Revenue","R9557","CLM Utilities","02-PREMISES","Premises","02B","Energy costs","4000","Electricity","80043652","202309",28/11/2022 00:00:00,15217.28,"39564","Gas Companies","REDACTED DATA","KENT COUNTY COUNCIL (GAS & ELECTRIC)","",,"204269191"
"London Borough of Redbridge","http://opendatacommunities.org/doc/london-borough-council/redbridge","6BADULTSOCIA","Adult Social Care","6CLONGT1864","Long-Term Support 18 - 64 Years","REV","Revenue","R4437","Learning Disabilities - Cranbrook & Loxford","06-TRANSFER","Transfer Payments","06B","Social Services Clients","7066","Supported Living","91366654","202309",22/11/2022 00:00:00,18138.72,"64710","Residential Care Homes","REDACTED DATA","Support by Heart Ltd","11852772","http://opencorporates.com/companies/gb/11852772",""
"London Borough of Redbridge","http://opendatacommunities.org/doc/london-borough-council/redbridge","2BENVIRONMEN","Environmental Services","2CENVTLHEALT","Environmental Health","REV","Revenue","R6782","Head of Consumer Protection & Licensing","01-EMPLOYEES","Employees","01A","Direct employee expenses","4","Agency Staff - Pay","60507664","202309",02/12/2022 00:00:00,15045,"1961","Advertising - Agencies","REDACTED DATA","PENNA PLC (PENNA COMMUNICATIONS)","1918150","http://opencorporates.com/companies/gb/1918150","605849719"
"London Borough of Redbridge","http://opendatacommunities.org/doc/london-borough-council/redbridge","9BNONBVO","Outside the BVACOP Objective Structure","9CNONBVO","Outside the BVACOP Objective Structure","REV","Revenue","R5132","Repairs and Maintenance - Other","02-PREMISES","Premises","02A","Repairs, alteration and maintenance of buildings","3027","Miscellaneous Maintenance","60506134","202309",24/11/2022 00:00:00,15000,"61860","Project Management","REDACTED DATA","Kelleher Group Ltd","9487900","http://opencorporates.com/companies/gb/9487900","168 6868 42"
"London Borough of Redbridge","http://opendatacommunities.org/doc/london-borough-council/redbridge","4BPUBLICTRAN","Public Transport","4CPARKING","Parking Services","REV","Revenue","R7037","Attendants Parking Enforcement","05-THIRD","Third Party Payments","05H","Private contractors","6911","Parking and Traffic Enforcement Contract","60507806","202309",06/12/2022 00:00:00,17991,"48583","Local Government","REDACTED DATA","CITY OF LONDON(LONDON COUNCILS)","",,"766069205"
"London Borough of Redbridge","http://opendatacommunities.org/doc/london-borough-council/redbridge","9BNONBVO","Outside the BVACOP Objective Structure","9CNONBVO","Outside the BVACOP Objective Structure","REV","Revenue","R0030","Levies","05-THIRD","Third Party Payments","05I","Other agencies -  Controllable","6951","Lea Valley Regional Park - Precept","60507117","202309",01/12/2022 00:00:00,17914.32,"79500","Trade Assoc and Regulatory Bodies","REDACTED DATA","LEE VALLEY REGIONAL PARK AUTHORITY","",,"220855971"
"London Borough of Redbridge","http://opendatacommunities.org/doc/london-borough-council/redbridge","3BNONSCHFUND","Non-School Funding","3CNONSCH","Non Schools","REV","Revenue","R3962","Early Years - 3 and 4 Year Olds","05-THIRD","Third Party Payments","05A","Independent units within the council","6517","Non-Maintained Schools","3720707","202309",16/12/2022 00:00:00,17875.94,"67981","Schools - Local Authority","REDACTED DATA","CLEVELAND ROAD PRIMARY SCHOOL","",,""
"London Borough of Redbridge","http://opendatacommunities.org/doc/london-borough-council/redbridge","9BNONBVO","Outside the BVACOP Objective Structure","9CNONBVO","Outside the BVACOP Objective Structure","CAP","Capital","C2116","Internal Housing","99-NONBV","Capital, Balance Sheet and Control","50E","Capital - Contract Payments","9150","Main Contract","60506535","202309",29/11/2022 00:00:00,14755.64,"30580","Electricians and Electrical Contractors","REDACTED DATA","EVANS & SHEA LTD","9365711","http://opencorporates.com/companies/gb/9365711","212776513"
"London Borough of Redbridge","http://opendatacommunities.org/doc/london-borough-council/redbridge","3BNONSCHFUND","Non-School Funding","3CNONSCH","Non Schools","REV","Revenue","R3962","Early Years - 3 and 4 Year Olds","05-THIRD","Third Party Payments","05A","Independent units within the council","6517","Non-Maintained Schools","3720714","202309",16/12/2022 00:00:00,17609.13,"67981","Schools - Local Authority","REDACTED DATA","GEARIES PRIMARY SCHOOL A/C","",,""
"London Borough of Redbridge","http://opendatacommunities.org/doc/london-borough-council/redbridge","3BNONSCHFUND","Non-School Funding","3CNONSCH","Non Schools","REV","Revenue","R3962","Early Years - 3 and 4 Year Olds","05-THIRD","Third Party Payments","05A","Independent units within the council","6517","Non-Maintained Schools","3720725","202309",16/12/2022 00:00:00,17342.33,"67981","Schools - Local Authority","REDACTED DATA","NEWBURY PARK PRIMARY SCHOOL ACCOUNT","",,""
"London Borough of Redbridge","http://opendatacommunities.org/doc/london-borough-council/redbridge","3BNONSCHFUND","Non-School Funding","3CNONSCH","Non Schools","REV","Revenue","R3962","Early Years - 3 and 4 Year Olds","05-THIRD","Third Party Payments","05A","Independent units within the council","6517","Non-Maintained Schools","3720742","202309",16/12/2022 00:00:00,17342.33,"17580","Childcare Services","REDACTED DATA","THE ATAM ACADEMY","7549443","http://opencorporates.com/companies/gb/7549443",""
"London Borough of Redbridge","http://opendatacommunities.org/doc/london-borough-council/redbridge","9BNONBVO","Outside the BVACOP Objective Structure","9CNONBVO","Outside the BVACOP Objective Structure","CAP","Capital","C4344","School Conditioning","99-NONBV","Capital, Balance Sheet and Control","50E","Capital - Contract Payments","9150","Main Contract","70127181","202309",21/12/2022 00:00:00,14375.93,"21555","Construction Contractors - General","REDACTED DATA","Longley Group Ltd","7633349","http://opencorporates.com/companies/gb/7633349","165771972"
"London Borough of Redbridge","http://opendatacommunities.org/doc/london-borough-council/redbridge","3BNONSCHFUND","Non-School Funding","3CNONSCH","Non Schools","REV","Revenue","R3962","Early Years - 3 and 4 Year Olds","05-THIRD","Third Party Payments","05A","Independent units within the council","6517","Non-Maintained Schools","3720721","202309",16/12/2022 00:00:00,17222.27,"67981","Schools - Local Authority","REDACTED DATA","LOXFORD SCHOOL TRUST LTD","8743560","http://opencorporates.com/companies/gb/8743560","246546447"
"London Borough of Redbridge","http://opendatacommunities.org/doc/london-borough-council/redbridge","6BADULTSOCIA","Adult Social Care","6CLONGT1864","Long-Term Support 18 - 64 Years","REV","Revenue","R4443","Learning Disabilities - Fairlop","06-TRANSFER","Transfer Payments","06B","Social Services Clients","7053","Direct Payments","70127147","202309",20/12/2022 00:00:00,13185.6,"90005","Home Care Services DP","REDACTED DATA","REDACTED DATA","",,""
